{"text_format":"1","workbook":"xlsx","n_sheets":8,"sheets":["Cover","Statistics","Success Criteria","Colour Contrast Analysis","Non-text Contrast","Changelog","Comboboxes","Data Table"],"not_rendered":{"charts":0,"images":155,"macros":1,"external_links":0,"defined_names":3,"comments":0,"pivot_tables":0},"unopened":[],"bounds":{"document_bytes":16777216,"sheet_cells":100000,"rows_first":2000,"rows_last":500,"rows_between":2000,"halvings":0,"cell_chars":16384,"cell_head_chars":4096},"cells_cut":0,"cells_raw":0,"read":"whole","date_system":"1900"}

{"sheet":"Cover","index":0,"n_rows":0,"n_cols":0,"rows_kept":0,"cut":false,"hidden":true,"merged":[[0,0,0,3]]}

{"sheet":"Statistics","index":1,"n_rows":68,"n_cols":26,"rows_kept":68,"cut":false,"hidden":false,"merged":[[11,22,12,22],[11,23,12,23],[0,20,0,25],[1,20,9,25],[6,11,6,14],[0,0,0,14],[11,0,11,2],[11,25,12,25],[11,24,12,24],[11,20,12,20],[6,7,6,10],[9,2,9,6],[9,7,9,10],[9,11,9,14],[6,2,6,6],[7,2,7,6],[8,2,8,6],[7,7,7,10],[7,11,7,14],[8,7,8,10],[8,11,8,14],[1,2,1,6],[2,2,2,6],[3,2,3,6],[4,2,4,6],[5,2,5,6],[5,7,5,10],[1,7,1,10],[2,11,2,14],[3,11,3,14],[4,11,4,14],[5,11,5,14],[2,7,2,10],[3,7,3,10],[4,7,4,10],[67,0,67,2],[66,0,66,2],[11,3,11,6],[11,7,11,10],[11,21,12,21],[64,7,64,10],[64,3,64,6],[64,15,64,18],[11,15,11,18],[11,11,11,14],[64,11,64,14]]}
["\nWCAG 2.1 website accessibility audit\nStatistics",null,null,null,null,null,null,null,null,null,null,null,null,null,null,null,null,null,null,null,"Hide these columns before delivery to the client"]
["Client",null,"Greater London Authority",null,null,null,null,"Test Environment",null,null,null,null,null,null,null,null,null,null,null,null,"Many cells are protected and cannot be edited. Unprotect the worksheet to delete columns or rows.\nDo not add columns or rows.\n\nSee Steve Green if amendments are necessary."]
["Website",null,"SafeStats",null,null,null,null,"Primary Operating System",null,null,null,"Windows 10"]
["URL",null,"https://safestats.london.gov.uk",null,null,null,null,"Primary Browser",null,null,null,"Chrome 76.0.3809.100"]
["Quotation Number",null,"005058",null,null,null,null,"Primary Screen Reader",null,null,null,"Jaws 2018"]
["Report Version Number",null,"1",null,null,null,null,"Screen Size",null,null,null,"24 Inch"]
["This document last updated by:",null,"Wing Kuet",null,null,null,null,"Screen Resolution",null,null,null,"1920x1080px Widescreen"]
["This document last updated on:",null,"12th December 2019",null,null,null,null,"Secondary Browser 1",null,null,null,"Firefox 68.0.2"]
[null,null,null,null,null,null,null,"Secondary Browser 2",null,null,null,"Internet Explorer v11.348"]
[null,null,null,null,null,null,null,"Flash Player",null,null,null,"N/A"]
[]
[null,null,null,"Level A",null,null,null,"Level AA",null,null,null,"Level AAA",null,null,null,"Total",null,null,null,null,"Level A Checkpoints Done ","Level A Checkpoints Complete ","Level AA Checkpoints Done ","Level AA Checkpoints Complete ","Level AAA Checkpoints Done ","Level AAA Checkpoints Complete "]
["ID","Page Name","Page URL","Pass","Fail","N/A","Not tested","Pass","Fail","N/A ","Not tested","Pass","Fail","N/A ","Not tested","Pass","Fail","N/A ","Not tested"]
[1,"Header and footer","N/A",{"$f":"SUM(COUNTIF('Success Criteria'!E7:E69,\"PASS\"),COUNTIF('Success Criteria'!E7:E69,\"PASS with comments\"))","v":17},{"$f":"COUNTIF('Success Criteria'!E7:E69,\"NON COMPLIANT\")","v":3},{"$f":"COUNTIF('Success Criteria'!E7:E69,\"N/A\")","v":10},{"$f":"COUNTIF('Success Criteria'!E7:E69,\"not tested\")","v":0},{"$f":"SUM(COUNTIF('Success Criteria'!$E73:$E114,\"PASS\"),COUNTIF('Success Criteria'!$E73:$E114,\"PASS with comments\"))","v":7},{"$f":"COUNTIF('Success Criteria'!$E73:$E114,\"NON COMPLIANT\")","v":4},{"$f":"COUNTIF('Success Criteria'!$E73:$E114,\"N/A\")","v":9},{"$f":"COUNTIF('Success Criteria'!$E73:$E114,\"not tested\")","v":0},{"$f":"SUM(COUNTIF('Success Criteria'!$E119:$E173,\"PASS\"),COUNTIF('Success Criteria'!$E119:$E173,\"PASS with comments\"))","v":0},{"$f":"COUNTIF('Success Criteria'!$E119:$E173,\"NON COMPLIANT\")","v":0},{"$f":"COUNTIF('Success Criteria'!$E119:$E173,\"N/A\")","v":0},{"$f":"COUNTIF('Success Criteria'!$E119:$E173,\"not tested\")","v":28},{"$f":"SUM(D14+H14+L14)","v":24},{"$f":"SUM(E14+I14+M14)","v":7},{"$f":"SUM(F14+J14+N14)","v":19},{"$f":"SUM(G14+K14+O14)","v":28},null,{"$f":"SUM(D14:G14)","v":30},{"$f":"IF(U14=30,1,\"\")","v":1},{"$f":"SUM($H14:$K14)","v":20},{"$f":"IF(W14=20,1,\"\")","v":1},{"$f":"SUM($L14:$O14)","v":28},{"$f":"IF(Y14=28,1,\"\")","v":1}]
[2,"Sign in","https://safestats.london.gov.uk",{"$f":"SUM(COUNTIF('Success Criteria'!F7:F69,\"PASS\"),COUNTIF('Success Criteria'!F7:F69,\"PASS with comments\"))","v":16},{"$f":"COUNTIF('Success Criteria'!F7:F69,\"NON COMPLIANT\")","v":3},{"$f":"COUNTIF('Success Criteria'!F7:F69,\"N/A\")","v":11},{"$f":"COUNTIF('Success Criteria'!F7:F69,\"not tested\")","v":0},{"$f":"SUM(COUNTIF('Success Criteria'!$F73:$F114,\"PASS\"),COUNTIF('Success Criteria'!$F73:$F114,\"PASS with comments\"))","v":8},{"$f":"COUNTIF('Success Criteria'!$F73:$F114,\"NON COMPLIANT\")","v":3},{"$f":"COUNTIF('Success Criteria'!$F73:$F114,\"N/A\")","v":9},{"$f":"COUNTIF('Success Criteria'!$F73:$F114,\"not tested\")","v":0},{"$f":"SUM(COUNTIF('Success Criteria'!$F119:$F173,\"PASS\"),COUNTIF('Success Criteria'!$F119:$F173,\"PASS with comments\"))","v":0},{"$f":"COUNTIF('Success Criteria'!$F119:$F173,\"NON COMPLIANT\")","v":0},{"$f":"COUNTIF('Success Criteria'!$F119:$F173,\"N/A\")","v":0},{"$f":"COUNTIF('Success Criteria'!$F119:$F173,\"not tested\")","v":28},{"$f":"SUM(D15+H15+L15)","v":24},{"$f":"SUM(E15+I15+M15)","v":6},{"$f":"SUM(F15+J15+N15)","v":20},{"$f":"SUM(G15+K15+O15)","v":28},null,30,1,{"$f":"SUM($H15:$K15)","v":20},1,{"$f":"SUM($L15:$O15)","v":28},{"$f":"IF(Y15=28,1,\"\")","v":1}]
[3,"Register","https://safestats.london.gov.uk/auth/signup",{"$f":"SUM(COUNTIF('Success Criteria'!G7:G69,\"PASS\"),COUNTIF('Success Criteria'!G7:G69,\"PASS with comments\"))","v":15},{"$f":"COUNTIF('Success Criteria'!G7:G69,\"NON COMPLIANT\")","v":5},{"$f":"COUNTIF('Success Criteria'!G7:G69,\"N/A\")","v":10},{"$f":"COUNTIF('Success Criteria'!G7:G69,\"not tested\")","v":0},{"$f":"SUM(COUNTIF('Success Criteria'!$G73:$G114,\"PASS\"),COUNTIF('Success Criteria'!$G73:$G114,\"PASS with comments\"))","v":7},{"$f":"COUNTIF('Success Criteria'!$G73:$G114,\"NON COMPLIANT\")","v":5},{"$f":"COUNTIF('Success Criteria'!$G73:$G114,\"N/A\")","v":8},{"$f":"COUNTIF('Success Criteria'!$G73:$G114,\"not tested\")","v":0},{"$f":"SUM(COUNTIF('Success Criteria'!$G119:$G173,\"PASS\"),COUNTIF('Success Criteria'!$G119:$G173,\"PASS with comments\"))","v":0},{"$f":"COUNTIF('Success Criteria'!$G119:$G173,\"NON COMPLIANT\")","v":0},{"$f":"COUNTIF('Success Criteria'!$G119:$G173,\"N/A\")","v":0},{"$f":"COUNTIF('Success Criteria'!$G119:$G173,\"not tested\")","v":28},22,10,18,28,null,30,1,20,1,28,1]
[4,"Home","https://safestats.london.gov.uk/safestats/home",{"$f":"SUM(COUNTIF('Success Criteria'!H7:H69,\"PASS\"),COUNTIF('Success Criteria'!H7:H69,\"PASS with comments\"))","v":16},{"$f":"COUNTIF('Success Criteria'!H7:H69,\"NON COMPLIANT\")","v":4},{"$f":"COUNTIF('Success Criteria'!H7:H69,\"N/A\")","v":10},{"$f":"COUNTIF('Success Criteria'!H7:H69,\"not tested\")","v":0},{"$f":"SUM(COUNTIF('Success Criteria'!$H73:$H114,\"PASS\"),COUNTIF('Success Criteria'!$H73:$H114,\"PASS with comments\"))","v":7},{"$f":"COUNTIF('Success Criteria'!$H73:$H114,\"NON COMPLIANT\")","v":5},{"$f":"COUNTIF('Success Criteria'!$H73:$H114,\"N/A\")","v":8},{"$f":"COUNTIF('Success Criteria'!$H73:$H114,\"not tested\")","v":0},{"$f":"SUM(COUNTIF('Success Criteria'!$H119:$H173,\"PASS\"),COUNTIF('Success Criteria'!$H119:$H173,\"PASS with comments\"))","v":0},{"$f":"COUNTIF('Success Criteria'!$H119:$H173,\"NON COMPLIANT\")","v":0},{"$f":"COUNTIF('Success Criteria'!$H119:$H173,\"N/A\")","v":0},{"$f":"COUNTIF('Success Criteria'!$H119:$H173,\"not tested\")","v":28},23,9,18,28,null,30,1,20,1,28,1]
[5,"Data Explorer results","https://safestats.london.gov.uk/safestats/home",{"$f":"SUM(COUNTIF('Success Criteria'!I7:I69,\"PASS\"),COUNTIF('Success Criteria'!I7:I69,\"PASS with comments\"))","v":14},{"$f":"COUNTIF('Success Criteria'!I7:I69,\"NON COMPLIANT\")","v":6},{"$f":"COUNTIF('Success Criteria'!I7:I69,\"N/A\")","v":10},{"$f":"COUNTIF('Success Criteria'!I7:I69,\"not tested\")","v":0},{"$f":"SUM(COUNTIF('Success Criteria'!$I73:$I114,\"PASS\"),COUNTIF('Success Criteria'!$I73:$I114,\"PASS with comments\"))","v":7},{"$f":"COUNTIF('Success Criteria'!$I73:$I114,\"NON COMPLIANT\")","v":5},{"$f":"COUNTIF('Success Criteria'!$I73:$I114,\"N/A\")","v":8},{"$f":"COUNTIF('Success Criteria'!$I73:$I114,\"not tested\")","v":0},{"$f":"SUM(COUNTIF('Success Criteria'!$I119:$I173,\"PASS\"),COUNTIF('Success Criteria'!$I119:$I173,\"PASS with comments\"))","v":0},{"$f":"COUNTIF('Success Criteria'!$I119:$I173,\"NON COMPLIANT\")","v":0},{"$f":"COUNTIF('Success Criteria'!$I119:$I173,\"N/A\")","v":0},{"$f":"COUNTIF('Success Criteria'!$I119:$I173,\"not tested\")","v":28},21,11,18,28,null,30,1,20,1,28,1]
[6,"Query Builder","https://safestats.london.gov.uk/safestats/home",{"$f":"SUM(COUNTIF('Success Criteria'!J7:J69,\"PASS\"),COUNTIF('Success Criteria'!J7:J69,\"PASS with comments\"))","v":13},{"$f":"COUNTIF('Success Criteria'!J7:J69,\"NON COMPLIANT\")","v":7},{"$f":"COUNTIF('Success Criteria'!J7:J69,\"N/A\")","v":10},{"$f":"COUNTIF('Success Criteria'!J7:J69,\"not tested\")","v":0},{"$f":"SUM(COUNTIF('Success Criteria'!$J73:$J114,\"PASS\"),COUNTIF('Success Criteria'!$J73:$J114,\"PASS with comments\"))","v":7},{"$f":"COUNTIF('Success Criteria'!$J73:$J114,\"NON COMPLIANT\")","v":5},{"$f":"COUNTIF('Success Criteria'!$J73:$J114,\"N/A\")","v":8},{"$f":"COUNTIF('Success Criteria'!$J73:$J114,\"not tested\")","v":0},{"$f":"SUM(COUNTIF('Success Criteria'!$J119:$J173,\"PASS\"),COUNTIF('Success Criteria'!$J119:$J173,\"PASS with comments\"))","v":0},{"$f":"COUNTIF('Success Criteria'!$J119:$J173,\"NON COMPLIANT\")","v":0},{"$f":"COUNTIF('Success Criteria'!$J119:$J173,\"N/A\")","v":0},{"$f":"COUNTIF('Success Criteria'!$J119:$J173,\"not tested\")","v":28},20,12,18,28,null,30,1,20,1,28,1]
[7,"Query Builder expanded with Offence Group overlay","https://safestats.london.gov.uk/safestats/home",{"$f":"SUM(COUNTIF('Success Criteria'!K7:K69,\"PASS\"),COUNTIF('Success Criteria'!K7:K69,\"PASS with comments\"))","v":13},{"$f":"COUNTIF('Success Criteria'!K7:K69,\"NON COMPLIANT\")","v":7},{"$f":"COUNTIF('Success Criteria'!K7:K69,\"N/A\")","v":10},{"$f":"COUNTIF('Success Criteria'!K7:K69,\"not tested\")","v":0},{"$f":"SUM(COUNTIF('Success Criteria'!$K73:$K114,\"PASS\"),COUNTIF('Success Criteria'!$K73:$K114,\"PASS with comments\"))","v":8},{"$f":"COUNTIF('Success Criteria'!$K73:$K114,\"NON COMPLIANT\")","v":4},{"$f":"COUNTIF('Success Criteria'!$K73:$K114,\"N/A\")","v":8},{"$f":"COUNTIF('Success Criteria'!$K73:$K114,\"not tested\")","v":0},{"$f":"SUM(COUNTIF('Success Criteria'!$K119:$K173,\"PASS\"),COUNTIF('Success Criteria'!$K119:$K173,\"PASS with comments\"))","v":0},{"$f":"COUNTIF('Success Criteria'!$K119:$K173,\"NON COMPLIANT\")","v":0},{"$f":"COUNTIF('Success Criteria'!$K119:$K173,\"N/A\")","v":0},{"$f":"COUNTIF('Success Criteria'!$K119:$K173,\"not tested\")","v":28},21,11,18,28,null,30,1,20,1,28,1]
[8,"Query Builder expanded with Location map overlay","https://safestats.london.gov.uk/safestats/home",{"$f":"SUM(COUNTIF('Success Criteria'!L7:L69,\"PASS\"),COUNTIF('Success Criteria'!L7:L69,\"PASS with comments\"))","v":14},{"$f":"COUNTIF('Success Criteria'!L7:L69,\"NON COMPLIANT\")","v":6},{"$f":"COUNTIF('Success Criteria'!L7:L69,\"N/A\")","v":10},{"$f":"COUNTIF('Success Criteria'!L7:L69,\"not tested\")","v":0},{"$f":"SUM(COUNTIF('Success Criteria'!$L73:$L114,\"PASS\"),COUNTIF('Success Criteria'!$L73:$L114,\"PASS with comments\"))","v":6},{"$f":"COUNTIF('Success Criteria'!$L73:$L114,\"NON COMPLIANT\")","v":6},{"$f":"COUNTIF('Success Criteria'!$L73:$L114,\"N/A\")","v":8},{"$f":"COUNTIF('Success Criteria'!$L73:$L114,\"not tested\")","v":0},{"$f":"SUM(COUNTIF('Success Criteria'!$L119:$L173,\"PASS\"),COUNTIF('Success Criteria'!$L119:$L173,\"PASS with comments\"))","v":0},{"$f":"COUNTIF('Success Criteria'!$L119:$L173,\"NON COMPLIANT\")","v":0},{"$f":"COUNTIF('Success Criteria'!$L119:$L173,\"N/A\")","v":0},{"$f":"COUNTIF('Success Criteria'!$L119:$L173,\"not tested\")","v":28},20,12,18,28,null,30,1,20,1,28,1]
[9,"Query Builder - Save Query","https://safestats.london.gov.uk/safestats/home",{"$f":"SUM(COUNTIF('Success Criteria'!M7:M69,\"PASS\"),COUNTIF('Success Criteria'!M7:M69,\"PASS with comments\"))","v":14},{"$f":"COUNTIF('Success Criteria'!M7:M69,\"NON COMPLIANT\")","v":6},{"$f":"COUNTIF('Success Criteria'!M7:M69,\"N/A\")","v":10},{"$f":"COUNTIF('Success Criteria'!M7:M69,\"not tested\")","v":0},{"$f":"SUM(COUNTIF('Success Criteria'!$M73:$M114,\"PASS\"),COUNTIF('Success Criteria'!$M73:$M114,\"PASS with comments\"))","v":8},{"$f":"COUNTIF('Success Criteria'!$M73:$M114,\"NON COMPLIANT\")","v":4},{"$f":"COUNTIF('Success Criteria'!$M73:$M114,\"N/A\")","v":8},{"$f":"COUNTIF('Success Criteria'!$M73:$M114,\"not tested\")","v":0},{"$f":"SUM(COUNTIF('Success Criteria'!$M119:$M173,\"PASS\"),COUNTIF('Success Criteria'!$M119:$M173,\"PASS with comments\"))","v":0},{"$f":"COUNTIF('Success Criteria'!$M119:$M173,\"NON COMPLIANT\")","v":0},{"$f":"COUNTIF('Success Criteria'!$M119:$M173,\"N/A\")","v":0},{"$f":"COUNTIF('Success Criteria'!$M119:$M173,\"not tested\")","v":28},22,10,18,28,null,30,1,20,1,28,1]
[10,"Query Builder - Join","https://safestats.london.gov.uk/safestats/home",{"$f":"SUM(COUNTIF('Success Criteria'!N7:N69,\"PASS\"),COUNTIF('Success Criteria'!N7:N69,\"PASS with comments\"))","v":14},{"$f":"COUNTIF('Success Criteria'!N7:N69,\"NON COMPLIANT\")","v":6},{"$f":"COUNTIF('Success Criteria'!N7:N69,\"N/A\")","v":10},{"$f":"COUNTIF('Success Criteria'!N7:N69,\"not tested\")","v":0},{"$f":"SUM(COUNTIF('Success Criteria'!$N73:$N114,\"PASS\"),COUNTIF('Success Criteria'!$N73:$N114,\"PASS with comments\"))","v":7},{"$f":"COUNTIF('Success Criteria'!$N73:$N114,\"NON COMPLIANT\")","v":5},{"$f":"COUNTIF('Success Criteria'!$N73:$N114,\"N/A\")","v":8},{"$f":"COUNTIF('Success Criteria'!$N73:$N114,\"not tested\")","v":0},{"$f":"SUM(COUNTIF('Success Criteria'!$N119:$N173,\"PASS\"),COUNTIF('Success Criteria'!$N119:$N173,\"PASS with comments\"))","v":0},{"$f":"COUNTIF('Success Criteria'!$N119:$N173,\"NON COMPLIANT\")","v":0},{"$f":"COUNTIF('Success Criteria'!$N119:$N173,\"N/A\")","v":0},{"$f":"COUNTIF('Success Criteria'!$N119:$N173,\"not tested\")","v":28},21,11,18,28,null,30,1,20,1,28,1]
[11,"Query Builder - Results","https://safestats.london.gov.uk/safestats/home",{"$f":"SUM(COUNTIF('Success Criteria'!O7:O69,\"PASS\"),COUNTIF('Success Criteria'!O7:O69,\"PASS with comments\"))","v":15},{"$f":"COUNTIF('Success Criteria'!O7:O69,\"NON COMPLIANT\")","v":5},{"$f":"COUNTIF('Success Criteria'!O7:O69,\"N/A\")","v":10},{"$f":"COUNTIF('Success Criteria'!O7:O69,\"not tested\")","v":0},{"$f":"SUM(COUNTIF('Success Criteria'!$O73:$O114,\"PASS\"),COUNTIF('Success Criteria'!$O73:$O114,\"PASS with comments\"))","v":7},{"$f":"COUNTIF('Success Criteria'!$O73:$O114,\"NON COMPLIANT\")","v":5},{"$f":"COUNTIF('Success Criteria'!$O73:$O114,\"N/A\")","v":8},{"$f":"COUNTIF('Success Criteria'!$O73:$O114,\"not tested\")","v":0},{"$f":"SUM(COUNTIF('Success Criteria'!$O119:$O173,\"PASS\"),COUNTIF('Success Criteria'!$O119:$O173,\"PASS with comments\"))","v":0},{"$f":"COUNTIF('Success Criteria'!$O119:$O173,\"NON COMPLIANT\")","v":0},{"$f":"COUNTIF('Success Criteria'!$O119:$O173,\"N/A\")","v":0},{"$f":"COUNTIF('Success Criteria'!$O119:$O173,\"not tested\")","v":28},22,10,18,28,null,30,1,20,1,28,1]
[12,"Page 12","URL 12",{"$f":"SUM(COUNTIF('Success Criteria'!P7:P69,\"PASS\"),COUNTIF('Success Criteria'!P7:P69,\"PASS with comments\"))","v":0},{"$f":"COUNTIF('Success Criteria'!P7:P69,\"NON COMPLIANT\")","v":0},{"$f":"COUNTIF('Success Criteria'!P7:P69,\"N/A\")","v":0},{"$f":"COUNTIF('Success Criteria'!P7:P69,\"not tested\")","v":0},{"$f":"SUM(COUNTIF('Success Criteria'!$P73:$P114,\"PASS\"),COUNTIF('Success Criteria'!$P73:$P114,\"PASS with comments\"))","v":0},{"$f":"COUNTIF('Success Criteria'!$P73:$P114,\"NON COMPLIANT\")","v":0},{"$f":"COUNTIF('Success Criteria'!$P73:$P114,\"N/A\")","v":0},{"$f":"COUNTIF('Success Criteria'!$P73:$P114,\"not tested\")","v":0},{"$f":"SUM(COUNTIF('Success Criteria'!$P119:$P173,\"PASS\"),COUNTIF('Success Criteria'!$P119:$P173,\"PASS with comments\"))","v":0},{"$f":"COUNTIF('Success Criteria'!$P119:$P173,\"NON COMPLIANT\")","v":0},{"$f":"COUNTIF('Success Criteria'!$P119:$P173,\"N/A\")","v":0},{"$f":"COUNTIF('Success Criteria'!$P119:$P173,\"not tested\")","v":28},0,0,0,28,null,0,"",0,"",28,1]
[13,"Page 13","URL 13",{"$f":"SUM(COUNTIF('Success Criteria'!Q7:Q69,\"PASS\"),COUNTIF('Success Criteria'!Q7:Q69,\"PASS with comments\"))","v":0},{"$f":"COUNTIF('Success Criteria'!Q7:Q69,\"NON COMPLIANT\")","v":0},{"$f":"COUNTIF('Success Criteria'!Q7:Q69,\"N/A\")","v":0},{"$f":"COUNTIF('Success Criteria'!Q7:Q69,\"not tested\")","v":0},{"$f":"SUM(COUNTIF('Success Criteria'!$Q73:$Q114,\"PASS\"),COUNTIF('Success Criteria'!$Q73:$Q114,\"PASS with comments\"))","v":0},{"$f":"COUNTIF('Success Criteria'!$Q73:$Q114,\"NON COMPLIANT\")","v":0},{"$f":"COUNTIF('Success Criteria'!$Q73:$Q114,\"N/A\")","v":0},{"$f":"COUNTIF('Success Criteria'!$Q73:$Q114,\"not tested\")","v":0},{"$f":"SUM(COUNTIF('Success Criteria'!$Q119:$Q173,\"PASS\"),COUNTIF('Success Criteria'!$Q119:$Q173,\"PASS with comments\"))","v":0},{"$f":"COUNTIF('Success Criteria'!$Q119:$Q173,\"NON COMPLIANT\")","v":0},{"$f":"COUNTIF('Success Criteria'!$Q119:$Q173,\"N/A\")","v":0},{"$f":"COUNTIF('Success Criteria'!$Q119:$Q173,\"not tested\")","v":28},0,0,0,28,null,0,"",0,"",28,1]
[14,"Page 14","URL 14",{"$f":"SUM(COUNTIF('Success Criteria'!R7:R69,\"PASS\"),COUNTIF('Success Criteria'!R7:R69,\"PASS with comments\"))","v":0},{"$f":"COUNTIF('Success Criteria'!R7:R69,\"NON COMPLIANT\")","v":0},{"$f":"COUNTIF('Success Criteria'!R7:R69,\"N/A\")","v":0},{"$f":"COUNTIF('Success Criteria'!R7:R69,\"not tested\")","v":0},{"$f":"SUM(COUNTIF('Success Criteria'!$R73:$R114,\"PASS\"),COUNTIF('Success Criteria'!$R73:$R114,\"PASS with comments\"))","v":0},{"$f":"COUNTIF('Success Criteria'!$R73:$R114,\"NON COMPLIANT\")","v":0},{"$f":"COUNTIF('Success Criteria'!$R73:$R114,\"N/A\")","v":0},{"$f":"COUNTIF('Success Criteria'!$R73:$R114,\"not tested\")","v":0},{"$f":"SUM(COUNTIF('Success Criteria'!$R119:$R173,\"PASS\"),COUNTIF('Success Criteria'!$R119:$R173,\"PASS with comments\"))","v":0},{"$f":"COUNTIF('Success Criteria'!$R119:$R173,\"NON COMPLIANT\")","v":0},{"$f":"COUNTIF('Success Criteria'!$R119:$R173,\"N/A\")","v":0},{"$f":"COUNTIF('Success Criteria'!$R119:$R173,\"not tested\")","v":28},0,0,0,28,null,0,"",0,"",28,1]
[15,"Page 15","URL 15",{"$f":"SUM(COUNTIF('Success Criteria'!S7:S69,\"PASS\"),COUNTIF('Success Criteria'!S7:S69,\"PASS with comments\"))","v":0},{"$f":"COUNTIF('Success Criteria'!S7:S69,\"NON COMPLIANT\")","v":0},{"$f":"COUNTIF('Success Criteria'!S7:S69,\"N/A\")","v":0},{"$f":"COUNTIF('Success Criteria'!S7:S69,\"not tested\")","v":0},{"$f":"SUM(COUNTIF('Success Criteria'!$S73:$S114,\"PASS\"),COUNTIF('Success Criteria'!$S73:$S114,\"PASS with comments\"))","v":0},{"$f":"COUNTIF('Success Criteria'!$S73:$S114,\"NON COMPLIANT\")","v":0},{"$f":"COUNTIF('Success Criteria'!$S73:$S114,\"N/A\")","v":0},{"$f":"COUNTIF('Success Criteria'!$S73:$S114,\"not tested\")","v":0},{"$f":"SUM(COUNTIF('Success Criteria'!$S119:$S173,\"PASS\"),COUNTIF('Success Criteria'!$S119:$S173,\"PASS with comments\"))","v":0},{"$f":"COUNTIF('Success Criteria'!$S119:$S173,\"NON COMPLIANT\")","v":0},{"$f":"COUNTIF('Success Criteria'!$S119:$S173,\"N/A\")","v":0},{"$f":"COUNTIF('Success Criteria'!$S119:$S173,\"not tested\")","v":28},0,0,0,28,null,0,"",0,"",28,1]
[16,"Page 16","URL 16",{"$f":"SUM(COUNTIF('Success Criteria'!T7:T69,\"PASS\"),COUNTIF('Success Criteria'!T7:T69,\"PASS with comments\"))","v":0},{"$f":"COUNTIF('Success Criteria'!T7:T69,\"NON COMPLIANT\")","v":0},{"$f":"COUNTIF('Success Criteria'!T7:T69,\"N/A\")","v":0},{"$f":"COUNTIF('Success Criteria'!T7:T69,\"not tested\")","v":0},{"$f":"SUM(COUNTIF('Success Criteria'!$T73:$T114,\"PASS\"),COUNTIF('Success Criteria'!$T73:$T114,\"PASS with comments\"))","v":0},{"$f":"COUNTIF('Success Criteria'!$T73:$T114,\"NON COMPLIANT\")","v":0},{"$f":"COUNTIF('Success Criteria'!$T73:$T114,\"N/A\")","v":0},{"$f":"COUNTIF('Success Criteria'!$T73:$T114,\"not tested\")","v":0},{"$f":"SUM(COUNTIF('Success Criteria'!$T119:$T173,\"PASS\"),COUNTIF('Success Criteria'!$T119:$T173,\"PASS with comments\"))","v":0},{"$f":"COUNTIF('Success Criteria'!$T119:$T173,\"NON COMPLIANT\")","v":0},{"$f":"COUNTIF('Success Criteria'!$T119:$T173,\"N/A\")","v":0},{"$f":"COUNTIF('Success Criteria'!$T119:$T173,\"not tested\")","v":28},0,0,0,28,null,0,"",0,"",28,1]
[17,"Page 17","URL 17",{"$f":"SUM(COUNTIF('Success Criteria'!U7:U69,\"PASS\"),COUNTIF('Success Criteria'!U7:U69,\"PASS with comments\"))","v":0},{"$f":"COUNTIF('Success Criteria'!U7:U69,\"NON COMPLIANT\")","v":0},{"$f":"COUNTIF('Success Criteria'!U7:U69,\"N/A\")","v":0},{"$f":"COUNTIF('Success Criteria'!U7:U69,\"not tested\")","v":0},{"$f":"SUM(COUNTIF('Success Criteria'!$U73:$U114,\"PASS\"),COUNTIF('Success Criteria'!$U73:$U114,\"PASS with comments\"))","v":0},{"$f":"COUNTIF('Success Criteria'!$U73:$U114,\"NON COMPLIANT\")","v":0},{"$f":"COUNTIF('Success Criteria'!$U73:$U114,\"N/A\")","v":0},{"$f":"COUNTIF('Success Criteria'!$U73:$U114,\"not tested\")","v":0},{"$f":"SUM(COUNTIF('Success Criteria'!$U119:$U173,\"PASS\"),COUNTIF('Success Criteria'!$U119:$U173,\"PASS with comments\"))","v":0},{"$f":"COUNTIF('Success Criteria'!$U119:$U173,\"NON COMPLIANT\")","v":0},{"$f":"COUNTIF('Success Criteria'!$U119:$U173,\"N/A\")","v":0},{"$f":"COUNTIF('Success Criteria'!$U119:$U173,\"not tested\")","v":28},0,0,0,28,null,0,"",0,"",28,1]
[18,"Page 18","URL 18",{"$f":"SUM(COUNTIF('Success Criteria'!V7:V69,\"PASS\"),COUNTIF('Success Criteria'!V7:V69,\"PASS with comments\"))","v":0},{"$f":"COUNTIF('Success Criteria'!V7:V69,\"NON COMPLIANT\")","v":0},{"$f":"COUNTIF('Success Criteria'!V7:V69,\"N/A\")","v":0},{"$f":"COUNTIF('Success Criteria'!V7:V69,\"not tested\")","v":0},{"$f":"SUM(COUNTIF('Success Criteria'!$V73:$V114,\"PASS\"),COUNTIF('Success Criteria'!$V73:$V114,\"PASS with comments\"))","v":0},{"$f":"COUNTIF('Success Criteria'!$V73:$V114,\"NON COMPLIANT\")","v":0},{"$f":"COUNTIF('Success Criteria'!$V73:$V114,\"N/A\")","v":0},{"$f":"COUNTIF('Success Criteria'!$V73:$V114,\"not tested\")","v":0},{"$f":"SUM(COUNTIF('Success Criteria'!$V119:$V173,\"PASS\"),COUNTIF('Success Criteria'!$V119:$V173,\"PASS with comments\"))","v":0},{"$f":"COUNTIF('Success Criteria'!$V119:$V173,\"NON COMPLIANT\")","v":0},{"$f":"COUNTIF('Success Criteria'!$V119:$V173,\"N/A\")","v":0},{"$f":"COUNTIF('Success Criteria'!$V119:$V173,\"not tested\")","v":28},0,0,0,28,null,0,"",0,"",28,1]
[19,"Page 19","URL 19",{"$f":"SUM(COUNTIF('Success Criteria'!W7:W69,\"PASS\"),COUNTIF('Success Criteria'!W7:W69,\"PASS with comments\"))","v":0},{"$f":"COUNTIF('Success Criteria'!W7:W69,\"NON COMPLIANT\")","v":0},{"$f":"COUNTIF('Success Criteria'!W7:W69,\"N/A\")","v":0},{"$f":"COUNTIF('Success Criteria'!W7:W69,\"not tested\")","v":0},{"$f":"SUM(COUNTIF('Success Criteria'!$W73:$W114,\"PASS\"),COUNTIF('Success Criteria'!$W73:$W114,\"PASS with comments\"))","v":0},{"$f":"COUNTIF('Success Criteria'!$W73:$W114,\"NON COMPLIANT\")","v":0},{"$f":"COUNTIF('Success Criteria'!$W73:$W114,\"N/A\")","v":0},{"$f":"COUNTIF('Success Criteria'!$W73:$W114,\"not tested\")","v":0},{"$f":"SUM(COUNTIF('Success Criteria'!$W119:$W173,\"PASS\"),COUNTIF('Success Criteria'!$W119:$W173,\"PASS with comments\"))","v":0},{"$f":"COUNTIF('Success Criteria'!$W119:$W173,\"NON COMPLIANT\")","v":0},{"$f":"COUNTIF('Success Criteria'!$W119:$W173,\"N/A\")","v":0},{"$f":"COUNTIF('Success Criteria'!$W119:$W173,\"not tested\")","v":28},0,0,0,28,null,0,"",0,"",28,1]
[20,"Page 20","URL 20",{"$f":"SUM(COUNTIF('Success Criteria'!X7:X69,\"PASS\"),COUNTIF('Success Criteria'!X7:X69,\"PASS with comments\"))","v":0},{"$f":"COUNTIF('Success Criteria'!X7:X69,\"NON COMPLIANT\")","v":0},{"$f":"COUNTIF('Success Criteria'!X7:X69,\"N/A\")","v":0},{"$f":"COUNTIF('Success Criteria'!X7:X69,\"not tested\")","v":0},{"$f":"SUM(COUNTIF('Success Criteria'!$X73:$X114,\"PASS\"),COUNTIF('Success Criteria'!$X73:$X114,\"PASS with comments\"))","v":0},{"$f":"COUNTIF('Success Criteria'!$X73:$X114,\"NON COMPLIANT\")","v":0},{"$f":"COUNTIF('Success Criteria'!$X73:$X114,\"N/A\")","v":0},{"$f":"COUNTIF('Success Criteria'!$X73:$X114,\"not tested\")","v":0},{"$f":"SUM(COUNTIF('Success Criteria'!$X119:$X173,\"PASS\"),COUNTIF('Success Criteria'!$X119:$X173,\"PASS with comments\"))","v":0},{"$f":"COUNTIF('Success Criteria'!$X119:$X173,\"NON COMPLIANT\")","v":0},{"$f":"COUNTIF('Success Criteria'!$X119:$X173,\"N/A\")","v":0},{"$f":"COUNTIF('Success Criteria'!$X119:$X173,\"not tested\")","v":28},0,0,0,28,null,0,"",0,"",28,1]
[21,"Page 21","URL 21",{"$f":"SUM(COUNTIF('Success Criteria'!Y7:Y69,\"PASS\"),COUNTIF('Success Criteria'!Y7:Y69,\"PASS with comments\"))","v":0},{"$f":"COUNTIF('Success Criteria'!Y7:Y69,\"NON COMPLIANT\")","v":0},{"$f":"COUNTIF('Success Criteria'!Y7:Y69,\"N/A\")","v":0},{"$f":"COUNTIF('Success Criteria'!Y7:Y69,\"not tested\")","v":0},{"$f":"SUM(COUNTIF('Success Criteria'!$Y73:$Y114,\"PASS\"),COUNTIF('Success Criteria'!$Y73:$Y114,\"PASS with comments\"))","v":0},{"$f":"COUNTIF('Success Criteria'!$Y73:$Y114,\"NON COMPLIANT\")","v":0},{"$f":"COUNTIF('Success Criteria'!$Y73:$Y114,\"N/A\")","v":0},{"$f":"COUNTIF('Success Criteria'!$Y73:$Y114,\"not tested\")","v":0},{"$f":"SUM(COUNTIF('Success Criteria'!$Y119:$Y173,\"PASS\"),COUNTIF('Success Criteria'!$Y119:$Y173,\"PASS with comments\"))","v":0},{"$f":"COUNTIF('Success Criteria'!$Y119:$Y173,\"NON COMPLIANT\")","v":0},{"$f":"COUNTIF('Success Criteria'!$Y119:$Y173,\"N/A\")","v":0},{"$f":"COUNTIF('Success Criteria'!$Y119:$Y173,\"not tested\")","v":28},0,0,0,28,null,0,"",0,"",28,1]
[22,"Page 22","URL 22",{"$f":"SUM(COUNTIF('Success Criteria'!Z7:Z69,\"PASS\"),COUNTIF('Success Criteria'!Z7:Z69,\"PASS with comments\"))","v":0},{"$f":"COUNTIF('Success Criteria'!Z7:Z69,\"NON COMPLIANT\")","v":0},{"$f":"COUNTIF('Success Criteria'!Z7:Z69,\"N/A\")","v":0},{"$f":"COUNTIF('Success Criteria'!Z7:Z69,\"not tested\")","v":0},{"$f":"SUM(COUNTIF('Success Criteria'!$Z73:$Z114,\"PASS\"),COUNTIF('Success Criteria'!$Z73:$Z114,\"PASS with comments\"))","v":0},{"$f":"COUNTIF('Success Criteria'!$Z73:$Z114,\"NON COMPLIANT\")","v":0},{"$f":"COUNTIF('Success Criteria'!$Z73:$Z114,\"N/A\")","v":0},{"$f":"COUNTIF('Success Criteria'!$Z73:$Z114,\"not tested\")","v":0},{"$f":"SUM(COUNTIF('Success Criteria'!$Z119:$Z173,\"PASS\"),COUNTIF('Success Criteria'!$Z119:$Z173,\"PASS with comments\"))","v":0},{"$f":"COUNTIF('Success Criteria'!$Z119:$Z173,\"NON COMPLIANT\")","v":0},{"$f":"COUNTIF('Success Criteria'!$Z119:$Z173,\"N/A\")","v":0},{"$f":"COUNTIF('Success Criteria'!$Z119:$Z173,\"not tested\")","v":28},0,0,0,28,null,0,"",0,"",28,1]
[23,"Page 23","URL 23",{"$f":"SUM(COUNTIF('Success Criteria'!AA7:AA69,\"PASS\"),COUNTIF('Success Criteria'!AA7:AA69,\"PASS with comments\"))","v":0},{"$f":"COUNTIF('Success Criteria'!AA7:AA69,\"NON COMPLIANT\")","v":0},{"$f":"COUNTIF('Success Criteria'!AA7:AA69,\"N/A\")","v":0},{"$f":"COUNTIF('Success Criteria'!AA7:AA69,\"not tested\")","v":0},{"$f":"SUM(COUNTIF('Success Criteria'!$AA73:$AA114,\"PASS\"),COUNTIF('Success Criteria'!$AA73:$AA114,\"PASS with comments\"))","v":0},{"$f":"COUNTIF('Success Criteria'!$AA73:$AA114,\"NON COMPLIANT\")","v":0},{"$f":"COUNTIF('Success Criteria'!$AA73:$AA114,\"N/A\")","v":0},{"$f":"COUNTIF('Success Criteria'!$AA73:$AA114,\"not tested\")","v":0},{"$f":"SUM(COUNTIF('Success Criteria'!$AA119:$AA173,\"PASS\"),COUNTIF('Success Criteria'!$AA119:$AA173,\"PASS with comments\"))","v":0},{"$f":"COUNTIF('Success Criteria'!$AA119:$AA173,\"NON COMPLIANT\")","v":0},{"$f":"COUNTIF('Success Criteria'!$AA119:$AA173,\"N/A\")","v":0},{"$f":"COUNTIF('Success Criteria'!$AA119:$AA173,\"not tested\")","v":28},0,0,0,28,null,0,"",0,"",28,1]
[24,"Page 24","URL 24",{"$f":"SUM(COUNTIF('Success Criteria'!AB7:AB69,\"PASS\"),COUNTIF('Success Criteria'!AB7:AB69,\"PASS with comments\"))","v":0},{"$f":"COUNTIF('Success Criteria'!AB7:AB69,\"NON COMPLIANT\")","v":0},{"$f":"COUNTIF('Success Criteria'!AB7:AB69,\"N/A\")","v":0},{"$f":"COUNTIF('Success Criteria'!AB7:AB69,\"not tested\")","v":0},{"$f":"SUM(COUNTIF('Success Criteria'!$AB73:$AB114,\"PASS\"),COUNTIF('Success Criteria'!$AB73:$AB114,\"PASS with comments\"))","v":0},{"$f":"COUNTIF('Success Criteria'!$AB73:$AB114,\"NON COMPLIANT\")","v":0},{"$f":"COUNTIF('Success Criteria'!$AB73:$AB114,\"N/A\")","v":0},{"$f":"COUNTIF('Success Criteria'!$AB73:$AB114,\"not tested\")","v":0},{"$f":"SUM(COUNTIF('Success Criteria'!$AB119:$AB173,\"PASS\"),COUNTIF('Success Criteria'!$AB119:$AB173,\"PASS with comments\"))","v":0},{"$f":"COUNTIF('Success Criteria'!$AB119:$AB173,\"NON COMPLIANT\")","v":0},{"$f":"COUNTIF('Success Criteria'!$AB119:$AB173,\"N/A\")","v":0},{"$f":"COUNTIF('Success Criteria'!$AB119:$AB173,\"not tested\")","v":28},0,0,0,28,null,0,"",0,"",28,1]
[25,"Page 25","URL 25",{"$f":"SUM(COUNTIF('Success Criteria'!AC7:AC69,\"PASS\"),COUNTIF('Success Criteria'!AC7:AC69,\"PASS with comments\"))","v":0},{"$f":"COUNTIF('Success Criteria'!AC7:AC69,\"NON COMPLIANT\")","v":0},{"$f":"COUNTIF('Success Criteria'!AC7:AC69,\"N/A\")","v":0},{"$f":"COUNTIF('Success Criteria'!AC7:AC69,\"not tested\")","v":0},{"$f":"SUM(COUNTIF('Success Criteria'!$AC73:$AC114,\"PASS\"),COUNTIF('Success Criteria'!$AC73:$AC114,\"PASS with comments\"))","v":0},{"$f":"COUNTIF('Success Criteria'!$AC73:$AC114,\"NON COMPLIANT\")","v":0},{"$f":"COUNTIF('Success Criteria'!$AC73:$AC114,\"N/A\")","v":0},{"$f":"COUNTIF('Success Criteria'!$AC73:$AC114,\"not tested\")","v":0},{"$f":"SUM(COUNTIF('Success Criteria'!$AC119:$AC173,\"PASS\"),COUNTIF('Success Criteria'!$AC119:$AC173,\"PASS with comments\"))","v":0},{"$f":"COUNTIF('Success Criteria'!$AC119:$AC173,\"NON COMPLIANT\")","v":0},{"$f":"COUNTIF('Success Criteria'!$AC119:$AC173,\"N/A\")","v":0},{"$f":"COUNTIF('Success Criteria'!$AC119:$AC173,\"not tested\")","v":28},0,0,0,28,null,0,"",0,"",28,1]
[26,"Page 26","URL 26",{"$f":"SUM(COUNTIF('Success Criteria'!AD7:AD69,\"PASS\"),COUNTIF('Success Criteria'!AD7:AD69,\"PASS with comments\"))","v":0},{"$f":"COUNTIF('Success Criteria'!AD7:AD69,\"NON COMPLIANT\")","v":0},{"$f":"COUNTIF('Success Criteria'!AD7:AD69,\"N/A\")","v":0},{"$f":"COUNTIF('Success Criteria'!AD7:AD69,\"not tested\")","v":0},{"$f":"SUM(COUNTIF('Success Criteria'!$AD73:$AD114,\"PASS\"),COUNTIF('Success Criteria'!$AD73:$AD114,\"PASS with comments\"))","v":0},{"$f":"COUNTIF('Success Criteria'!$AD73:$AD114,\"NON COMPLIANT\")","v":0},{"$f":"COUNTIF('Success Criteria'!$AD73:$AD114,\"N/A\")","v":0},{"$f":"COUNTIF('Success Criteria'!$AD73:$AD114,\"not tested\")","v":0},{"$f":"SUM(COUNTIF('Success Criteria'!$AD119:$AD173,\"PASS\"),COUNTIF('Success Criteria'!$AD119:$AD173,\"PASS with comments\"))","v":0},{"$f":"COUNTIF('Success Criteria'!$AD119:$AD173,\"NON COMPLIANT\")","v":0},{"$f":"COUNTIF('Success Criteria'!$AD119:$AD173,\"N/A\")","v":0},{"$f":"COUNTIF('Success Criteria'!$AD119:$AD173,\"not tested\")","v":28},0,0,0,28,null,0,"",0,"",28,1]
[27,"Page 27","URL 27",{"$f":"SUM(COUNTIF('Success Criteria'!AE7:AE69,\"PASS\"),COUNTIF('Success Criteria'!AE7:AE69,\"PASS with comments\"))","v":0},{"$f":"COUNTIF('Success Criteria'!AE7:AE69,\"NON COMPLIANT\")","v":0},{"$f":"COUNTIF('Success Criteria'!AE7:AE69,\"N/A\")","v":0},{"$f":"COUNTIF('Success Criteria'!AE7:AE69,\"not tested\")","v":0},{"$f":"SUM(COUNTIF('Success Criteria'!$AE73:$AE114,\"PASS\"),COUNTIF('Success Criteria'!$AE73:$AE114,\"PASS with comments\"))","v":0},{"$f":"COUNTIF('Success Criteria'!$AE73:$AE114,\"NON COMPLIANT\")","v":0},{"$f":"COUNTIF('Success Criteria'!$AE73:$AE114,\"N/A\")","v":0},{"$f":"COUNTIF('Success Criteria'!$AE73:$AE114,\"not tested\")","v":0},{"$f":"SUM(COUNTIF('Success Criteria'!$AE119:$AE173,\"PASS\"),COUNTIF('Success Criteria'!$AE119:$AE173,\"PASS with comments\"))","v":0},{"$f":"COUNTIF('Success Criteria'!$AE119:$AE173,\"NON COMPLIANT\")","v":0},{"$f":"COUNTIF('Success Criteria'!$AE119:$AE173,\"N/A\")","v":0},{"$f":"COUNTIF('Success Criteria'!$AE119:$AE173,\"not tested\")","v":28},0,0,0,28,null,0,"",0,"",28,1]
[28,"Page 28","URL 28",{"$f":"SUM(COUNTIF('Success Criteria'!AF7:AF69,\"PASS\"),COUNTIF('Success Criteria'!AF7:AF69,\"PASS with comments\"))","v":0},{"$f":"COUNTIF('Success Criteria'!AF7:AF69,\"NON COMPLIANT\")","v":0},{"$f":"COUNTIF('Success Criteria'!AF7:AF69,\"N/A\")","v":0},{"$f":"COUNTIF('Success Criteria'!AF7:AF69,\"not tested\")","v":0},{"$f":"SUM(COUNTIF('Success Criteria'!$AF73:$AF114,\"PASS\"),COUNTIF('Success Criteria'!$AF73:$AF114,\"PASS with comments\"))","v":0},{"$f":"COUNTIF('Success Criteria'!$AF73:$AF114,\"NON COMPLIANT\")","v":0},{"$f":"COUNTIF('Success Criteria'!$AF73:$AF114,\"N/A\")","v":0},{"$f":"COUNTIF('Success Criteria'!$AF73:$AF114,\"not tested\")","v":0},{"$f":"SUM(COUNTIF('Success Criteria'!$AF119:$AF173,\"PASS\"),COUNTIF('Success Criteria'!$AF119:$AF173,\"PASS with comments\"))","v":0},{"$f":"COUNTIF('Success Criteria'!$AF119:$AF173,\"NON COMPLIANT\")","v":0},{"$f":"COUNTIF('Success Criteria'!$AF119:$AF173,\"N/A\")","v":0},{"$f":"COUNTIF('Success Criteria'!$AF119:$AF173,\"not tested\")","v":28},0,0,0,28,null,0,"",0,"",28,1]
[29,"Page 29","URL 29",{"$f":"SUM(COUNTIF('Success Criteria'!AG7:AG69,\"PASS\"),COUNTIF('Success Criteria'!AG7:AG69,\"PASS with comments\"))","v":0},{"$f":"COUNTIF('Success Criteria'!AG7:AG69,\"NON COMPLIANT\")","v":0},{"$f":"COUNTIF('Success Criteria'!AG7:AG69,\"N/A\")","v":0},{"$f":"COUNTIF('Success Criteria'!AG7:AG69,\"not tested\")","v":0},{"$f":"SUM(COUNTIF('Success Criteria'!$AG73:$AG114,\"PASS\"),COUNTIF('Success Criteria'!$AG73:$AG114,\"PASS with comments\"))","v":0},{"$f":"COUNTIF('Success Criteria'!$AG73:$AG114,\"NON COMPLIANT\")","v":0},{"$f":"COUNTIF('Success Criteria'!$AG73:$AG114,\"N/A\")","v":0},{"$f":"COUNTIF('Success Criteria'!$AG73:$AG114,\"not tested\")","v":0},{"$f":"SUM(COUNTIF('Success Criteria'!$AG119:$AG173,\"PASS\"),COUNTIF('Success Criteria'!$AG119:$AG173,\"PASS with comments\"))","v":0},{"$f":"COUNTIF('Success Criteria'!$AG119:$AG173,\"NON COMPLIANT\")","v":0},{"$f":"COUNTIF('Success Criteria'!$AG119:$AG173,\"N/A\")","v":0},{"$f":"COUNTIF('Success Criteria'!$AG119:$AG173,\"not tested\")","v":28},0,0,0,28,null,0,"",0,"",28,1]
[30,"Page 30","URL 30",{"$f":"SUM(COUNTIF('Success Criteria'!AH7:AH69,\"PASS\"),COUNTIF('Success Criteria'!AH7:AH69,\"PASS with comments\"))","v":0},{"$f":"COUNTIF('Success Criteria'!AH7:AH69,\"NON COMPLIANT\")","v":0},{"$f":"COUNTIF('Success Criteria'!AH7:AH69,\"N/A\")","v":0},{"$f":"COUNTIF('Success Criteria'!AH7:AH69,\"not tested\")","v":0},{"$f":"SUM(COUNTIF('Success Criteria'!$AH73:$AH114,\"PASS\"),COUNTIF('Success Criteria'!$AH73:$AH114,\"PASS with comments\"))","v":0},{"$f":"COUNTIF('Success Criteria'!$AH73:$AH114,\"NON COMPLIANT\")","v":0},{"$f":"COUNTIF('Success Criteria'!$AH73:$AH114,\"N/A\")","v":0},{"$f":"COUNTIF('Success Criteria'!$AH73:$AH114,\"not tested\")","v":0},{"$f":"SUM(COUNTIF('Success Criteria'!$AH119:$AH173,\"PASS\"),COUNTIF('Success Criteria'!$AH119:$AH173,\"PASS with comments\"))","v":0},{"$f":"COUNTIF('Success Criteria'!$AH119:$AH173,\"NON COMPLIANT\")","v":0},{"$f":"COUNTIF('Success Criteria'!$AH119:$AH173,\"N/A\")","v":0},{"$f":"COUNTIF('Success Criteria'!$AH119:$AH173,\"not tested\")","v":28},0,0,0,28,null,0,"",0,"",28,1]
[31,"Page 31","URL 31",{"$f":"SUM(COUNTIF('Success Criteria'!AI7:AI69,\"PASS\"),COUNTIF('Success Criteria'!AI7:AI69,\"PASS with comments\"))","v":0},{"$f":"COUNTIF('Success Criteria'!AI7:AI69,\"NON COMPLIANT\")","v":0},{"$f":"COUNTIF('Success Criteria'!AI7:AI69,\"N/A\")","v":0},{"$f":"COUNTIF('Success Criteria'!AI7:AI69,\"not tested\")","v":0},{"$f":"SUM(COUNTIF('Success Criteria'!$AI73:$AI114,\"PASS\"),COUNTIF('Success Criteria'!$AI73:$AI114,\"PASS with comments\"))","v":0},{"$f":"COUNTIF('Success Criteria'!$AI73:$AI114,\"NON COMPLIANT\")","v":0},{"$f":"COUNTIF('Success Criteria'!$AI73:$AI114,\"N/A\")","v":0},{"$f":"COUNTIF('Success Criteria'!$AI73:$AI114,\"not tested\")","v":0},{"$f":"SUM(COUNTIF('Success Criteria'!$AI119:$AI173,\"PASS\"),COUNTIF('Success Criteria'!$AI119:$AI173,\"PASS with comments\"))","v":0},{"$f":"COUNTIF('Success Criteria'!$AI119:$AI173,\"NON COMPLIANT\")","v":0},{"$f":"COUNTIF('Success Criteria'!$AI119:$AI173,\"N/A\")","v":0},{"$f":"COUNTIF('Success Criteria'!$AI119:$AI173,\"not tested\")","v":28},0,0,0,28,null,0,"",0,"",28,1]
[32,"Page 32","URL 32",{"$f":"SUM(COUNTIF('Success Criteria'!AJ7:AJ69,\"PASS\"),COUNTIF('Success Criteria'!AJ7:AJ69,\"PASS with comments\"))","v":0},{"$f":"COUNTIF('Success Criteria'!AJ7:AJ69,\"NON COMPLIANT\")","v":0},{"$f":"COUNTIF('Success Criteria'!AJ7:AJ69,\"N/A\")","v":0},{"$f":"COUNTIF('Success Criteria'!AJ7:AJ69,\"not tested\")","v":0},{"$f":"SUM(COUNTIF('Success Criteria'!$AJ73:$AJ114,\"PASS\"),COUNTIF('Success Criteria'!$AJ73:$AJ114,\"PASS with comments\"))","v":0},{"$f":"COUNTIF('Success Criteria'!$AJ73:$AJ114,\"NON COMPLIANT\")","v":0},{"$f":"COUNTIF('Success Criteria'!$AJ73:$AJ114,\"N/A\")","v":0},{"$f":"COUNTIF('Success Criteria'!$AJ73:$AJ114,\"not tested\")","v":0},{"$f":"SUM(COUNTIF('Success Criteria'!$AJ119:$AJ173,\"PASS\"),COUNTIF('Success Criteria'!$AJ119:$AJ173,\"PASS with comments\"))","v":0},{"$f":"COUNTIF('Success Criteria'!$AJ119:$AJ173,\"NON COMPLIANT\")","v":0},{"$f":"COUNTIF('Success Criteria'!$AJ119:$AJ173,\"N/A\")","v":0},{"$f":"COUNTIF('Success Criteria'!$AJ119:$AJ173,\"not tested\")","v":28},0,0,0,28,null,0,"",0,"",28,1]
[33,"Page 33","URL 33",{"$f":"SUM(COUNTIF('Success Criteria'!AK7:AK69,\"PASS\"),COUNTIF('Success Criteria'!AK7:AK69,\"PASS with comments\"))","v":0},{"$f":"COUNTIF('Success Criteria'!AK7:AK69,\"NON COMPLIANT\")","v":0},{"$f":"COUNTIF('Success Criteria'!AK7:AK69,\"N/A\")","v":0},{"$f":"COUNTIF('Success Criteria'!AK7:AK69,\"not tested\")","v":0},{"$f":"SUM(COUNTIF('Success Criteria'!$AK73:$AK114,\"PASS\"),COUNTIF('Success Criteria'!$AK73:$AK114,\"PASS with comments\"))","v":0},{"$f":"COUNTIF('Success Criteria'!$AK73:$AK114,\"NON COMPLIANT\")","v":0},{"$f":"COUNTIF('Success Criteria'!$AK73:$AK114,\"N/A\")","v":0},{"$f":"COUNTIF('Success Criteria'!$AK73:$AK114,\"not tested\")","v":0},{"$f":"SUM(COUNTIF('Success Criteria'!$AK119:$AK173,\"PASS\"),COUNTIF('Success Criteria'!$AK119:$AK173,\"PASS with comments\"))","v":0},{"$f":"COUNTIF('Success Criteria'!$AK119:$AK173,\"NON COMPLIANT\")","v":0},{"$f":"COUNTIF('Success Criteria'!$AK119:$AK173,\"N/A\")","v":0},{"$f":"COUNTIF('Success Criteria'!$AK119:$AK173,\"not tested\")","v":28},0,0,0,28,null,{"$f":"SUM(D46:G46)","v":0},{"$f":"IF(U46=30,1,\"\")","v":""},0,"",28,1]
[34,"Page 34","URL 34",{"$f":"SUM(COUNTIF('Success Criteria'!AL7:AL69,\"PASS\"),COUNTIF('Success Criteria'!AL7:AL69,\"PASS with comments\"))","v":0},{"$f":"COUNTIF('Success Criteria'!AL7:AL69,\"NON COMPLIANT\")","v":0},{"$f":"COUNTIF('Success Criteria'!AL7:AL69,\"N/A\")","v":0},{"$f":"COUNTIF('Success Criteria'!AL7:AL69,\"not tested\")","v":0},{"$f":"SUM(COUNTIF('Success Criteria'!$AL73:$AL114,\"PASS\"),COUNTIF('Success Criteria'!$AL73:$AL114,\"PASS with comments\"))","v":0},{"$f":"COUNTIF('Success Criteria'!$AL73:$AL114,\"NON COMPLIANT\")","v":0},{"$f":"COUNTIF('Success Criteria'!$AL73:$AL114,\"N/A\")","v":0},{"$f":"COUNTIF('Success Criteria'!$AL73:$AL114,\"not tested\")","v":0},{"$f":"SUM(COUNTIF('Success Criteria'!$AL119:$AL173,\"PASS\"),COUNTIF('Success Criteria'!$AL119:$AL173,\"PASS with comments\"))","v":0},{"$f":"COUNTIF('Success Criteria'!$AL119:$AL173,\"NON COMPLIANT\")","v":0},{"$f":"COUNTIF('Success Criteria'!$AL119:$AL173,\"N/A\")","v":0},{"$f":"COUNTIF('Success Criteria'!$AL119:$AL173,\"not tested\")","v":28},0,0,0,28,null,0,"",0,"",28,1]
[35,"Page 35","URL 35",{"$f":"SUM(COUNTIF('Success Criteria'!AM7:AM69,\"PASS\"),COUNTIF('Success Criteria'!AM7:AM69,\"PASS with comments\"))","v":0},{"$f":"COUNTIF('Success Criteria'!AM7:AM69,\"NON COMPLIANT\")","v":0},{"$f":"COUNTIF('Success Criteria'!AM7:AM69,\"N/A\")","v":0},{"$f":"COUNTIF('Success Criteria'!AM7:AM69,\"not tested\")","v":0},{"$f":"SUM(COUNTIF('Success Criteria'!$AM73:$AM114,\"PASS\"),COUNTIF('Success Criteria'!$AM73:$AM114,\"PASS with comments\"))","v":0},{"$f":"COUNTIF('Success Criteria'!$AM73:$AM114,\"NON COMPLIANT\")","v":0},{"$f":"COUNTIF('Success Criteria'!$AM73:$AM114,\"N/A\")","v":0},{"$f":"COUNTIF('Success Criteria'!$AM73:$AM114,\"not tested\")","v":0},{"$f":"SUM(COUNTIF('Success Criteria'!$AM119:$AM173,\"PASS\"),COUNTIF('Success Criteria'!$AM119:$AM173,\"PASS with comments\"))","v":0},{"$f":"COUNTIF('Success Criteria'!$AM119:$AM173,\"NON COMPLIANT\")","v":0},{"$f":"COUNTIF('Success Criteria'!$AM119:$AM173,\"N/A\")","v":0},{"$f":"COUNTIF('Success Criteria'!$AM119:$AM173,\"not tested\")","v":28},0,0,0,28,null,0,"",0,"",28,1]
[36,"Page 36","URL 36",{"$f":"SUM(COUNTIF('Success Criteria'!AN7:AN69,\"PASS\"),COUNTIF('Success Criteria'!AN7:AN69,\"PASS with comments\"))","v":0},{"$f":"COUNTIF('Success Criteria'!AN7:AN69,\"NON COMPLIANT\")","v":0},{"$f":"COUNTIF('Success Criteria'!AN7:AN69,\"N/A\")","v":0},{"$f":"COUNTIF('Success Criteria'!AN7:AN69,\"not tested\")","v":0},{"$f":"SUM(COUNTIF('Success Criteria'!$AN73:$AN114,\"PASS\"),COUNTIF('Success Criteria'!$AN73:$AN114,\"PASS with comments\"))","v":0},{"$f":"COUNTIF('Success Criteria'!$AN73:$AN114,\"NON COMPLIANT\")","v":0},{"$f":"COUNTIF('Success Criteria'!$AN73:$AN114,\"N/A\")","v":0},{"$f":"COUNTIF('Success Criteria'!$AN73:$AN114,\"not tested\")","v":0},{"$f":"SUM(COUNTIF('Success Criteria'!$AN119:$AN173,\"PASS\"),COUNTIF('Success Criteria'!$AN119:$AN173,\"PASS with comments\"))","v":0},{"$f":"COUNTIF('Success Criteria'!$AN119:$AN173,\"NON COMPLIANT\")","v":0},{"$f":"COUNTIF('Success Criteria'!$AN119:$AN173,\"N/A\")","v":0},{"$f":"COUNTIF('Success Criteria'!$AN119:$AN173,\"not tested\")","v":28},0,0,0,28,null,0,"",0,"",28,1]
[37,"Page 37","URL 37",{"$f":"SUM(COUNTIF('Success Criteria'!AO7:AO69,\"PASS\"),COUNTIF('Success Criteria'!AO7:AO69,\"PASS with comments\"))","v":0},{"$f":"COUNTIF('Success Criteria'!AO7:AO69,\"NON COMPLIANT\")","v":0},{"$f":"COUNTIF('Success Criteria'!AO7:AO69,\"N/A\")","v":0},{"$f":"COUNTIF('Success Criteria'!AO7:AO69,\"not tested\")","v":0},{"$f":"SUM(COUNTIF('Success Criteria'!$AO73:$AO114,\"PASS\"),COUNTIF('Success Criteria'!$AO73:$AO114,\"PASS with comments\"))","v":0},{"$f":"COUNTIF('Success Criteria'!$AO73:$AO114,\"NON COMPLIANT\")","v":0},{"$f":"COUNTIF('Success Criteria'!$AO73:$AO114,\"N/A\")","v":0},{"$f":"COUNTIF('Success Criteria'!$AO73:$AO114,\"not tested\")","v":0},{"$f":"SUM(COUNTIF('Success Criteria'!$AO119:$AO173,\"PASS\"),COUNTIF('Success Criteria'!$AO119:$AO173,\"PASS with comments\"))","v":0},{"$f":"COUNTIF('Success Criteria'!$AO119:$AO173,\"NON COMPLIANT\")","v":0},{"$f":"COUNTIF('Success Criteria'!$AO119:$AO173,\"N/A\")","v":0},{"$f":"COUNTIF('Success Criteria'!$AO119:$AO173,\"not tested\")","v":28},0,0,0,28,null,0,"",0,"",28,1]
[38,"Page 38","URL 38",{"$f":"SUM(COUNTIF('Success Criteria'!AP7:AP69,\"PASS\"),COUNTIF('Success Criteria'!AP7:AP69,\"PASS with comments\"))","v":0},{"$f":"COUNTIF('Success Criteria'!AP7:AP69,\"NON COMPLIANT\")","v":0},{"$f":"COUNTIF('Success Criteria'!AP7:AP69,\"N/A\")","v":0},{"$f":"COUNTIF('Success Criteria'!AP7:AP69,\"not tested\")","v":0},{"$f":"SUM(COUNTIF('Success Criteria'!$AP73:$AP114,\"PASS\"),COUNTIF('Success Criteria'!$AP73:$AP114,\"PASS with comments\"))","v":0},{"$f":"COUNTIF('Success Criteria'!$AP73:$AP114,\"NON COMPLIANT\")","v":0},{"$f":"COUNTIF('Success Criteria'!$AP73:$AP114,\"N/A\")","v":0},{"$f":"COUNTIF('Success Criteria'!$AP73:$AP114,\"not tested\")","v":0},{"$f":"SUM(COUNTIF('Success Criteria'!$AP119:$AP173,\"PASS\"),COUNTIF('Success Criteria'!$AP119:$AP173,\"PASS with comments\"))","v":0},{"$f":"COUNTIF('Success Criteria'!$AP119:$AP173,\"NON COMPLIANT\")","v":0},{"$f":"COUNTIF('Success Criteria'!$AP119:$AP173,\"N/A\")","v":0},{"$f":"COUNTIF('Success Criteria'!$AP119:$AP173,\"not tested\")","v":28},0,0,0,28,null,0,"",0,"",28,1]
[39,"Page 39","URL 39",{"$f":"SUM(COUNTIF('Success Criteria'!AQ7:AQ69,\"PASS\"),COUNTIF('Success Criteria'!AQ7:AQ69,\"PASS with comments\"))","v":0},{"$f":"COUNTIF('Success Criteria'!AQ7:AQ69,\"NON COMPLIANT\")","v":0},{"$f":"COUNTIF('Success Criteria'!AQ7:AQ69,\"N/A\")","v":0},{"$f":"COUNTIF('Success Criteria'!AQ7:AQ69,\"not tested\")","v":0},{"$f":"SUM(COUNTIF('Success Criteria'!$AQ73:$AQ114,\"PASS\"),COUNTIF('Success Criteria'!$AQ73:$AQ114,\"PASS with comments\"))","v":0},{"$f":"COUNTIF('Success Criteria'!$AQ73:$AQ114,\"NON COMPLIANT\")","v":0},{"$f":"COUNTIF('Success Criteria'!$AQ73:$AQ114,\"N/A\")","v":0},{"$f":"COUNTIF('Success Criteria'!$AQ73:$AQ114,\"not tested\")","v":0},{"$f":"SUM(COUNTIF('Success Criteria'!$AQ119:$AQ173,\"PASS\"),COUNTIF('Success Criteria'!$AQ119:$AQ173,\"PASS with comments\"))","v":0},{"$f":"COUNTIF('Success Criteria'!$AQ119:$AQ173,\"NON COMPLIANT\")","v":0},{"$f":"COUNTIF('Success Criteria'!$AQ119:$AQ173,\"N/A\")","v":0},{"$f":"COUNTIF('Success Criteria'!$AQ119:$AQ173,\"not tested\")","v":28},0,0,0,28,null,0,"",0,"",28,1]
[40,"Page 40","URL 40",{"$f":"SUM(COUNTIF('Success Criteria'!AR7:AR69,\"PASS\"),COUNTIF('Success Criteria'!AR7:AR69,\"PASS with comments\"))","v":0},{"$f":"COUNTIF('Success Criteria'!AR7:AR69,\"NON COMPLIANT\")","v":0},{"$f":"COUNTIF('Success Criteria'!AR7:AR69,\"N/A\")","v":0},{"$f":"COUNTIF('Success Criteria'!AR7:AR69,\"not tested\")","v":0},{"$f":"SUM(COUNTIF('Success Criteria'!$AR73:$AR114,\"PASS\"),COUNTIF('Success Criteria'!$AR73:$AR114,\"PASS with comments\"))","v":0},{"$f":"COUNTIF('Success Criteria'!$AR73:$AR114,\"NON COMPLIANT\")","v":0},{"$f":"COUNTIF('Success Criteria'!$AR73:$AR114,\"N/A\")","v":0},{"$f":"COUNTIF('Success Criteria'!$AR73:$AR114,\"not tested\")","v":0},{"$f":"SUM(COUNTIF('Success Criteria'!$AR119:$AR173,\"PASS\"),COUNTIF('Success Criteria'!$AR119:$AR173,\"PASS with comments\"))","v":0},{"$f":"COUNTIF('Success Criteria'!$AR119:$AR173,\"NON COMPLIANT\")","v":0},{"$f":"COUNTIF('Success Criteria'!$AR119:$AR173,\"N/A\")","v":0},{"$f":"COUNTIF('Success Criteria'!$AR119:$AR173,\"not tested\")","v":28},0,0,0,28,null,0,"",0,"",28,1]
[41,"Page 41","URL 41",{"$f":"SUM(COUNTIF('Success Criteria'!AS7:AS69,\"PASS\"),COUNTIF('Success Criteria'!AS7:AS69,\"PASS with comments\"))","v":0},{"$f":"COUNTIF('Success Criteria'!AS7:AS69,\"NON COMPLIANT\")","v":0},{"$f":"COUNTIF('Success Criteria'!AS7:AS69,\"N/A\")","v":0},{"$f":"COUNTIF('Success Criteria'!AS7:AS69,\"not tested\")","v":0},{"$f":"SUM(COUNTIF('Success Criteria'!$AS73:$AS114,\"PASS\"),COUNTIF('Success Criteria'!$AS73:$AS114,\"PASS with comments\"))","v":0},{"$f":"COUNTIF('Success Criteria'!$AS73:$AS114,\"NON COMPLIANT\")","v":0},{"$f":"COUNTIF('Success Criteria'!$AS73:$AS114,\"N/A\")","v":0},{"$f":"COUNTIF('Success Criteria'!$AS73:$AS114,\"not tested\")","v":0},{"$f":"SUM(COUNTIF('Success Criteria'!$AS119:$AS173,\"PASS\"),COUNTIF('Success Criteria'!$AS119:$AS173,\"PASS with comments\"))","v":0},{"$f":"COUNTIF('Success Criteria'!$AS119:$AS173,\"NON COMPLIANT\")","v":0},{"$f":"COUNTIF('Success Criteria'!$AS119:$AS173,\"N/A\")","v":0},{"$f":"COUNTIF('Success Criteria'!$AS119:$AS173,\"not tested\")","v":28},0,0,0,28,null,0,"",0,"",28,1]
[42,"Page 42","URL 42",{"$f":"SUM(COUNTIF('Success Criteria'!AT7:AT69,\"PASS\"),COUNTIF('Success Criteria'!AT7:AT69,\"PASS with comments\"))","v":0},{"$f":"COUNTIF('Success Criteria'!AT7:AT69,\"NON COMPLIANT\")","v":0},{"$f":"COUNTIF('Success Criteria'!AT7:AT69,\"N/A\")","v":0},{"$f":"COUNTIF('Success Criteria'!AT7:AT69,\"not tested\")","v":0},{"$f":"SUM(COUNTIF('Success Criteria'!$AT73:$AT114,\"PASS\"),COUNTIF('Success Criteria'!$AT73:$AT114,\"PASS with comments\"))","v":0},{"$f":"COUNTIF('Success Criteria'!$AT73:$AT114,\"NON COMPLIANT\")","v":0},{"$f":"COUNTIF('Success Criteria'!$AT73:$AT114,\"N/A\")","v":0},{"$f":"COUNTIF('Success Criteria'!$AT73:$AT114,\"not tested\")","v":0},{"$f":"SUM(COUNTIF('Success Criteria'!$AT119:$AT173,\"PASS\"),COUNTIF('Success Criteria'!$AT119:$AT173,\"PASS with comments\"))","v":0},{"$f":"COUNTIF('Success Criteria'!$AT119:$AT173,\"NON COMPLIANT\")","v":0},{"$f":"COUNTIF('Success Criteria'!$AT119:$AT173,\"N/A\")","v":0},{"$f":"COUNTIF('Success Criteria'!$AT119:$AT173,\"not tested\")","v":28},0,0,0,28,null,0,"",0,"",28,1]
[43,"Page 43","URL 43",{"$f":"SUM(COUNTIF('Success Criteria'!AU7:AU69,\"PASS\"),COUNTIF('Success Criteria'!AU7:AU69,\"PASS with comments\"))","v":0},{"$f":"COUNTIF('Success Criteria'!AU7:AU69,\"NON COMPLIANT\")","v":0},{"$f":"COUNTIF('Success Criteria'!AU7:AU69,\"N/A\")","v":0},{"$f":"COUNTIF('Success Criteria'!AU7:AU69,\"not tested\")","v":0},{"$f":"SUM(COUNTIF('Success Criteria'!$AU73:$AU114,\"PASS\"),COUNTIF('Success Criteria'!$AU73:$AU114,\"PASS with comments\"))","v":0},{"$f":"COUNTIF('Success Criteria'!$AU73:$AU114,\"NON COMPLIANT\")","v":0},{"$f":"COUNTIF('Success Criteria'!$AU73:$AU114,\"N/A\")","v":0},{"$f":"COUNTIF('Success Criteria'!$AU73:$AU114,\"not tested\")","v":0},{"$f":"SUM(COUNTIF('Success Criteria'!$AU119:$AU173,\"PASS\"),COUNTIF('Success Criteria'!$AU119:$AU173,\"PASS with comments\"))","v":0},{"$f":"COUNTIF('Success Criteria'!$AU119:$AU173,\"NON COMPLIANT\")","v":0},{"$f":"COUNTIF('Success Criteria'!$AU119:$AU173,\"N/A\")","v":0},{"$f":"COUNTIF('Success Criteria'!$AU119:$AU173,\"not tested\")","v":28},0,0,0,28,null,0,"",0,"",28,1]
[44,"Page 44","URL 44",{"$f":"SUM(COUNTIF('Success Criteria'!AV7:AV69,\"PASS\"),COUNTIF('Success Criteria'!AV7:AV69,\"PASS with comments\"))","v":0},{"$f":"COUNTIF('Success Criteria'!AV7:AV69,\"NON COMPLIANT\")","v":0},{"$f":"COUNTIF('Success Criteria'!AV7:AV69,\"N/A\")","v":0},{"$f":"COUNTIF('Success Criteria'!AV7:AV69,\"not tested\")","v":0},{"$f":"SUM(COUNTIF('Success Criteria'!$AV73:$AV114,\"PASS\"),COUNTIF('Success Criteria'!$AV73:$AV114,\"PASS with comments\"))","v":0},{"$f":"COUNTIF('Success Criteria'!$AV73:$AV114,\"NON COMPLIANT\")","v":0},{"$f":"COUNTIF('Success Criteria'!$AV73:$AV114,\"N/A\")","v":0},{"$f":"COUNTIF('Success Criteria'!$AV73:$AV114,\"not tested\")","v":0},{"$f":"SUM(COUNTIF('Success Criteria'!$AV119:$AV173,\"PASS\"),COUNTIF('Success Criteria'!$AV119:$AV173,\"PASS with comments\"))","v":0},{"$f":"COUNTIF('Success Criteria'!$AV119:$AV173,\"NON COMPLIANT\")","v":0},{"$f":"COUNTIF('Success Criteria'!$AV119:$AV173,\"N/A\")","v":0},{"$f":"COUNTIF('Success Criteria'!$AV119:$AV173,\"not tested\")","v":28},0,0,0,28,null,0,"",0,"",28,1]
[45,"Page 45","URL 45",{"$f":"SUM(COUNTIF('Success Criteria'!AW7:AW69,\"PASS\"),COUNTIF('Success Criteria'!AW7:AW69,\"PASS with comments\"))","v":0},{"$f":"COUNTIF('Success Criteria'!AW7:AW69,\"NON COMPLIANT\")","v":0},{"$f":"COUNTIF('Success Criteria'!AW7:AW69,\"N/A\")","v":0},{"$f":"COUNTIF('Success Criteria'!AW7:AW69,\"not tested\")","v":0},{"$f":"SUM(COUNTIF('Success Criteria'!$AW73:$AW114,\"PASS\"),COUNTIF('Success Criteria'!$AW73:$AW114,\"PASS with comments\"))","v":0},{"$f":"COUNTIF('Success Criteria'!$AW73:$AW114,\"NON COMPLIANT\")","v":0},{"$f":"COUNTIF('Success Criteria'!$AW73:$AW114,\"N/A\")","v":0},{"$f":"COUNTIF('Success Criteria'!$AW73:$AW114,\"not tested\")","v":0},{"$f":"SUM(COUNTIF('Success Criteria'!$AW119:$AW173,\"PASS\"),COUNTIF('Success Criteria'!$AW119:$AW173,\"PASS with comments\"))","v":0},{"$f":"COUNTIF('Success Criteria'!$AW119:$AW173,\"NON COMPLIANT\")","v":0},{"$f":"COUNTIF('Success Criteria'!$AW119:$AW173,\"N/A\")","v":0},{"$f":"COUNTIF('Success Criteria'!$AW119:$AW173,\"not tested\")","v":28},0,0,0,28,null,0,"",0,"",28,1]
[46,"Page 46","URL 46",{"$f":"SUM(COUNTIF('Success Criteria'!AX7:AX69,\"PASS\"),COUNTIF('Success Criteria'!AX7:AX69,\"PASS with comments\"))","v":0},{"$f":"COUNTIF('Success Criteria'!AX7:AX69,\"NON COMPLIANT\")","v":0},{"$f":"COUNTIF('Success Criteria'!AX7:AX69,\"N/A\")","v":0},{"$f":"COUNTIF('Success Criteria'!AX7:AX69,\"not tested\")","v":0},{"$f":"SUM(COUNTIF('Success Criteria'!$AX73:$AX114,\"PASS\"),COUNTIF('Success Criteria'!$AX73:$AX114,\"PASS with comments\"))","v":0},{"$f":"COUNTIF('Success Criteria'!$AX73:$AX114,\"NON COMPLIANT\")","v":0},{"$f":"COUNTIF('Success Criteria'!$AX73:$AX114,\"N/A\")","v":0},{"$f":"COUNTIF('Success Criteria'!$AX73:$AX114,\"not tested\")","v":0},{"$f":"SUM(COUNTIF('Success Criteria'!$AX119:$AX173,\"PASS\"),COUNTIF('Success Criteria'!$AX119:$AX173,\"PASS with comments\"))","v":0},{"$f":"COUNTIF('Success Criteria'!$AX119:$AX173,\"NON COMPLIANT\")","v":0},{"$f":"COUNTIF('Success Criteria'!$AX119:$AX173,\"N/A\")","v":0},{"$f":"COUNTIF('Success Criteria'!$AX119:$AX173,\"not tested\")","v":28},0,0,0,28,null,0,"",0,"",28,1]
[47,"Page 47","URL 47",{"$f":"SUM(COUNTIF('Success Criteria'!AY7:AY69,\"PASS\"),COUNTIF('Success Criteria'!AY7:AY69,\"PASS with comments\"))","v":0},{"$f":"COUNTIF('Success Criteria'!AY7:AY69,\"NON COMPLIANT\")","v":0},{"$f":"COUNTIF('Success Criteria'!AY7:AY69,\"N/A\")","v":0},{"$f":"COUNTIF('Success Criteria'!AY7:AY69,\"not tested\")","v":0},{"$f":"SUM(COUNTIF('Success Criteria'!$AY73:$AY114,\"PASS\"),COUNTIF('Success Criteria'!$AY73:$AY114,\"PASS with comments\"))","v":0},{"$f":"COUNTIF('Success Criteria'!$AY73:$AY114,\"NON COMPLIANT\")","v":0},{"$f":"COUNTIF('Success Criteria'!$AY73:$AY114,\"N/A\")","v":0},{"$f":"COUNTIF('Success Criteria'!$AY73:$AY114,\"not tested\")","v":0},{"$f":"SUM(COUNTIF('Success Criteria'!$AY119:$AY173,\"PASS\"),COUNTIF('Success Criteria'!$AY119:$AY173,\"PASS with comments\"))","v":0},{"$f":"COUNTIF('Success Criteria'!$AY119:$AY173,\"NON COMPLIANT\")","v":0},{"$f":"COUNTIF('Success Criteria'!$AY119:$AY173,\"N/A\")","v":0},{"$f":"COUNTIF('Success Criteria'!$AY119:$AY173,\"not tested\")","v":28},0,0,0,28,null,0,"",0,"",28,1]
[48,"Page 48","URL 48",{"$f":"SUM(COUNTIF('Success Criteria'!AZ7:AZ69,\"PASS\"),COUNTIF('Success Criteria'!AZ7:AZ69,\"PASS with comments\"))","v":0},{"$f":"COUNTIF('Success Criteria'!AZ7:AZ69,\"NON COMPLIANT\")","v":0},{"$f":"COUNTIF('Success Criteria'!AZ7:AZ69,\"N/A\")","v":0},{"$f":"COUNTIF('Success Criteria'!AZ7:AZ69,\"not tested\")","v":0},{"$f":"SUM(COUNTIF('Success Criteria'!$AZ73:$AZ114,\"PASS\"),COUNTIF('Success Criteria'!$AZ73:$AZ114,\"PASS with comments\"))","v":0},{"$f":"COUNTIF('Success Criteria'!$AZ73:$AZ114,\"NON COMPLIANT\")","v":0},{"$f":"COUNTIF('Success Criteria'!$AZ73:$AZ114,\"N/A\")","v":0},{"$f":"COUNTIF('Success Criteria'!$AZ73:$AZ114,\"not tested\")","v":0},{"$f":"SUM(COUNTIF('Success Criteria'!$AZ119:$AZ173,\"PASS\"),COUNTIF('Success Criteria'!$AZ119:$AZ173,\"PASS with comments\"))","v":0},{"$f":"COUNTIF('Success Criteria'!$AZ119:$AZ173,\"NON COMPLIANT\")","v":0},{"$f":"COUNTIF('Success Criteria'!$AZ119:$AZ173,\"N/A\")","v":0},{"$f":"COUNTIF('Success Criteria'!$AZ119:$AZ173,\"not tested\")","v":28},0,0,0,28,null,0,"",0,"",28,1]
[49,"Page 49","URL 49",{"$f":"SUM(COUNTIF('Success Criteria'!BA7:BA69,\"PASS\"),COUNTIF('Success Criteria'!BA7:BA69,\"PASS with comments\"))","v":0},{"$f":"COUNTIF('Success Criteria'!BA7:BA69,\"NON COMPLIANT\")","v":0},{"$f":"COUNTIF('Success Criteria'!BA7:BA69,\"N/A\")","v":0},{"$f":"COUNTIF('Success Criteria'!BA7:BA69,\"not tested\")","v":0},{"$f":"SUM(COUNTIF('Success Criteria'!$BA73:$BA114,\"PASS\"),COUNTIF('Success Criteria'!$BA73:$BA114,\"PASS with comments\"))","v":0},{"$f":"COUNTIF('Success Criteria'!$BA73:$BA114,\"NON COMPLIANT\")","v":0},{"$f":"COUNTIF('Success Criteria'!$BA73:$BA114,\"N/A\")","v":0},{"$f":"COUNTIF('Success Criteria'!$BA73:$BA114,\"not tested\")","v":0},{"$f":"SUM(COUNTIF('Success Criteria'!$BA119:$BA173,\"PASS\"),COUNTIF('Success Criteria'!$BA119:$BA173,\"PASS with comments\"))","v":0},{"$f":"COUNTIF('Success Criteria'!$BA119:$BA173,\"NON COMPLIANT\")","v":0},{"$f":"COUNTIF('Success Criteria'!$BA119:$BA173,\"N/A\")","v":0},{"$f":"COUNTIF('Success Criteria'!$BA119:$BA173,\"not tested\")","v":28},0,0,0,28,null,0,"",0,"",28,1]
[50,"Page 50","URL 50",{"$f":"SUM(COUNTIF('Success Criteria'!BB7:BB69,\"PASS\"),COUNTIF('Success Criteria'!BB7:BB69,\"PASS with comments\"))","v":0},{"$f":"COUNTIF('Success Criteria'!BB7:BB69,\"NON COMPLIANT\")","v":0},{"$f":"COUNTIF('Success Criteria'!BB7:BB69,\"N/A\")","v":0},{"$f":"COUNTIF('Success Criteria'!BB7:BB69,\"not tested\")","v":0},{"$f":"SUM(COUNTIF('Success Criteria'!$BB73:$BB114,\"PASS\"),COUNTIF('Success Criteria'!$BB73:$BB114,\"PASS with comments\"))","v":0},{"$f":"COUNTIF('Success Criteria'!$BB73:$BB114,\"NON COMPLIANT\")","v":0},{"$f":"COUNTIF('Success Criteria'!$BB73:$BB114,\"N/A\")","v":0},{"$f":"COUNTIF('Success Criteria'!$BB73:$BB114,\"not tested\")","v":0},{"$f":"SUM(COUNTIF('Success Criteria'!$BB119:$BB173,\"PASS\"),COUNTIF('Success Criteria'!$BB119:$BB173,\"PASS with comments\"))","v":0},{"$f":"COUNTIF('Success Criteria'!$BB119:$BB173,\"NON COMPLIANT\")","v":0},{"$f":"COUNTIF('Success Criteria'!$BB119:$BB173,\"N/A\")","v":0},{"$f":"COUNTIF('Success Criteria'!$BB119:$BB173,\"not tested\")","v":28},0,0,0,28,null,0,"",0,"",28,1]
[null,null,null,null,null,null,null,null,null,null,null,null,null,null,null,null,null,null,null,null,null,"Total",null,"Total",null,"Total"]
[null,null,null,"Level A",null,null,null,"Level AA",null,null,null,"Level AAA",null,null,null,"Total",null,null,null,null,null,{"$f":"SUM(V14:V64)","v":11},null,{"$f":"SUM(X14:X64)","v":11},null,{"$f":"SUM(Z14:Z64)","v":50}]
[null,null,null,"Pass","Fail","N/A","Not tested","Pass","Fail","N/A ","Not tested","Pass","Fail","N/A ","Not tested","Pass","Fail","N/A ","Not tested"]
["Total",null,null,{"$f":"SUM(D14:D63)","v":161},58,111,0,79,51,90,0,{"$f":"SUM(L14:L63)","v":0},0,0,1400,{"$f":"SUM(P14:P63)","v":240},{"$f":"SUM(Q14:Q63)","v":109},{"$f":"SUM(R14:R63)","v":201},{"$f":"SUM(S14:S63)","v":1400}]
["Average per page",null,null,{"$f":"D67/$V$65","v":14.636363636363637},{"$f":"E67/$V$65","v":5.2727272727272725},{"$f":"F67/$V$65","v":10.090909090909092},{"$f":"G67/$V$65","v":0},{"$f":"H67/$X$65","v":7.1818181818181817},{"$f":"I67/$X$65","v":4.6363636363636367},{"$f":"J67/$X$65","v":8.1818181818181817},{"$f":"K67/$X$65","v":0},{"$f":"L67/$Z$65","v":0},{"$f":"M67/$Z$65","v":0},{"$f":"N67/$Z$65","v":0},{"$f":"O67/$Z$65","v":28},{"$f":"D68+H68+L68","v":21.81818181818182},{"$f":"E68+I68+M68","v":9.9090909090909101},{"$f":"F68+J68+N68","v":18.272727272727273},{"$f":"G68+K68+O68","v":28}]

{"sheet":"Success Criteria","index":2,"n_rows":173,"n_cols":54,"rows_kept":173,"cut":false,"hidden":false,"merged":[[2,0,3,0],[2,1,2,3],[3,1,3,3],[0,0,1,3]]}
["\nWCAG 2.1 website accessibility audit\nSuccess Criteria",null,null,null,"Initially tested on","Initially tested on","Initially tested on","Initially tested on","Initially tested on","Initially tested on","Initially tested on","Initially tested on","Initially tested on","Initially tested on","Initially tested on","Initially tested on","Initially tested on","Initially tested on","Initially tested on","Initially tested on","Initially tested on","Initially tested on","Initially tested on","Initially tested on","Initially tested on","Initially tested on","Initially tested on","Initially tested on","Initially tested on","Initially tested on","Initially tested on","Initially tested on","Initially tested on","Initially tested on","Initially tested on","Initially tested on","Initially tested on","Initially tested on","Initially tested on","Initially tested on","Initially tested on","Initially tested on","Initially tested on","Initially tested on","Initially tested on","Initially tested on","Initially tested on","Initially tested on","Initially tested on","Initially tested on","Initially tested on","Initially tested on","Initially tested on","Initially tested on"]
[null,null,null,null,"2019-12-03","2019-11-18","2019-12-02","2019-12-03","2019-12-03","2019-12-05","2019-12-09","2019-12-10","2019-12-11","2019-12-11","2019-12-12"]
["Key","Cells highlighted in pink indicate non-compliances.",null,null,{"$f":"TRANSPOSE(Statistics!$B$14:$C$63)","v":"Header and footer"},"Sign in","Register","Home","Data Explorer results","Query Builder","Query Builder expanded with Offence Group overlay","Query Builder expanded with Location map overlay","Query Builder - Save Query","Query Builder - Join","Query Builder - Results","Page 12","Page 13","Page 14","Page 15","Page 16","Page 17","Page 18","Page 19","Page 20","Page 21","Page 22","Page 23","Page 24","Page 25","Page 26","Page 27","Page 28","Page 29","Page 30","Page 31","Page 32","Page 33","Page 34","Page 35","Page 36","Page 37","Page 38","Page 39","Page 40","Page 41","Page 42","Page 43","Page 44","Page 45","Page 46","Page 47","Page 48","Page 49","Page 50"]
[null,"Cells highlighted in tan indicate that the criteria are technically met with caveats or recommendations.",null,null,"N/A","https://safestats.london.gov.uk","https://safestats.london.gov.uk/auth/signup","https://safestats.london.gov.uk/safestats/home","https://safestats.london.gov.uk/safestats/home","https://safestats.london.gov.uk/safestats/home","https://safestats.london.gov.uk/safestats/home","https://safestats.london.gov.uk/safestats/home","https://safestats.london.gov.uk/safestats/home","https://safestats.london.gov.uk/safestats/home","https://safestats.london.gov.uk/safestats/home","URL 12","URL 13","URL 14","URL 15","URL 16","URL 17","URL 18","URL 19","URL 20","URL 21","URL 22","URL 23","URL 24","URL 25","URL 26","URL 27","URL 28","URL 29","URL 30","URL 31","URL 32","URL 33","URL 34","URL 35","URL 36","URL 37","URL 38","URL 39","URL 40","URL 41","URL 42","URL 43","URL 44","URL 45","URL 46","URL 47","URL 48","URL 49","URL 50"]
[null,null,"Level A Success Criteria"]
["W3C Ref.","Level.",null,"Principle 1: Perceivable - Information and user interface components must be presentable to users in ways they can perceive.",{"$f":"COUNTIF(E7:E68,\"NON COMPLIANT\") & \" Level A Non-compliances\" & \"\n\" & COUNTIF(E73:E173,\"NON COMPLIANT\") & \" Level AA Non-compliances\"","v":"3 Level A Non-compliances\n4 Level AA Non-compliances"},"3 Level A Non-compliances\n3 Level AA Non-compliances","5 Level A Non-compliances\n5 Level AA Non-compliances","4 Level A Non-compliances\n5 Level AA Non-compliances","6 Level A Non-compliances\n5 Level AA Non-compliances","7 Level A Non-compliances\n5 Level AA Non-compliances","7 Level A Non-compliances\n4 Level AA Non-compliances","6 Level A Non-compliances\n6 Level AA Non-compliances","6 Level A Non-compliances\n4 Level AA Non-compliances","6 Level A Non-compliances\n5 Level AA Non-compliances","5 Level A Non-compliances\n5 Level AA Non-compliances","0 Level A Non-compliances\n0 Level AA Non-compliances","0 Level A Non-compliances\n0 Level AA Non-compliances","0 Level A Non-compliances\n0 Level AA Non-compliances","0 Level A Non-compliances\n0 Level AA Non-compliances","0 Level A Non-compliances\n0 Level AA Non-compliances","0 Level A Non-compliances\n0 Level AA Non-compliances","0 Level A Non-compliances\n0 Level AA Non-compliances","0 Level A Non-compliances\n0 Level AA Non-compliances","0 Level A Non-compliances\n0 Level AA Non-compliances","0 Level A Non-compliances\n0 Level AA Non-compliances","0 Level A Non-compliances\n0 Level AA Non-compliances","0 Level A Non-compliances\n0 Level AA Non-compliances","0 Level A Non-compliances\n0 Level AA Non-compliances","0 Level A Non-compliances\n0 Level AA Non-compliances","0 Level A Non-compliances\n0 Level AA Non-compliances","0 Level A Non-compliances\n0 Level AA Non-compliances","0 Level A Non-compliances\n0 Level AA Non-compliances","0 Level A Non-compliances\n0 Level AA Non-compliances","0 Level A Non-compliances\n0 Level AA Non-compliances","0 Level A Non-compliances\n0 Level AA Non-compliances","0 Level A Non-compliances\n0 Level AA Non-compliances","0 Level A Non-compliances\n0 Level AA Non-compliances","0 Level A Non-compliances\n0 Level AA Non-compliances","0 Level A Non-compliances\n0 Level AA Non-compliances","0 Level A Non-compliances\n0 Level AA Non-compliances","0 Level A Non-compliances\n0 Level AA Non-compliances","0 Level A Non-compliances\n0 Level AA Non-compliances","0 Level A Non-compliances\n0 Level AA Non-compliances","0 Level A Non-compliances\n0 Level AA Non-compliances","0 Level A Non-compliances\n0 Level AA Non-compliances","0 Level A Non-compliances\n0 Level AA Non-compliances","0 Level A Non-compliances\n0 Level AA Non-compliances","0 Level A Non-compliances\n0 Level AA Non-compliances","0 Level A Non-compliances\n0 Level AA Non-compliances","0 Level A Non-compliances\n0 Level AA Non-compliances","0 Level A Non-compliances\n0 Level AA Non-compliances","0 Level A Non-compliances\n0 Level AA Non-compliances","0 Level A Non-compliances\n0 Level AA Non-compliances","0 Level A Non-compliances\n0 Level AA Non-compliances"]
["1.1.1","A","Non-text Content","All non-text content that is presented to the user has a text alternative that serves the equivalent purpose.","NON COMPLIANT","NON COMPLIANT","NON COMPLIANT","NON COMPLIANT","PASS","NON COMPLIANT","NON COMPLIANT","PASS","NON COMPLIANT","NON COMPLIANT","NON COMPLIANT"]
[null,null,null,null,"The Safestats logo should have a text alternative but does not. Include an alt attribute to the image element with the text alternative.","The Safestats logo should have a text alternative but does not. Include an alt attribute to the image element with the text alternative.","The Safestats logo should have a text alternative but does not. Include an alt attribute to the image element with the text alternative.","The icon that appears to the right side of each link should be null but has alternative text. Ensure that each icon has an alt=\"\" attribute.",null,"The Safestats logo should have a text alternative but does not. Include an alt attribute to the image element with the text alternative.","The Safestats logo should have a text alternative but does not. Include an alt attribute to the image element with the text alternative.",null,"The Safestats logo should have a text alternative but does not. Include an alt attribute to the image element with the text alternative.","The Safestats logo should have a text alternative but does not. Include an alt attribute to the image element with the text alternative.","The Safestats logo should have a text alternative but does not. Include an alt attribute to the image element with the text alternative."]
["1.2.1","A","Audio-only and Video-only (Pre-recorded)","For pre-recorded audio-only and pre-recorded video-only media, an alternative for time-based media or an audio track is provided that presents equivalent information. ","N/A","N/A","N/A","N/A","N/A","N/A","N/A","N/A","N/A","N/A","N/A"]
[null,null,null,null,"N/A because there is no non-live audio only content on the page.","N/A because there is no non-live audio only content on the page.","N/A because there is no non-live audio only content on the page.","N/A because there is no non-live audio only content on the page.","N/A because there is no non-live audio only content on the page.","N/A because there is no non-live audio only content on the page.","N/A because there is no non-live audio only content on the page.","N/A because there is no non-live audio only content on the page.","N/A because there is no non-live audio only content on the page.","N/A because there is no non-live audio only content on the page.","N/A because there is no non-live audio only content on the page."]
["1.2.2","A","Captions (Pre-recorded)","Captions are provided for all pre-recorded audio content in synchronized media, except when the media is a media alternative for text and is clearly labelled as such. ","N/A","N/A","N/A","N/A","N/A","N/A","N/A","N/A","N/A","N/A","N/A"]
[null,null,null,null,"N/A because no pre-recorded audio only or pre-recorded video-only media on the page.","N/A because no pre-recorded audio only or pre-recorded video-only media on the page.","N/A because no pre-recorded audio only or pre-recorded video-only media on the page.","N/A because no pre-recorded audio only or pre-recorded video-only media on the page.","N/A because no pre-recorded audio only or pre-recorded video-only media on the page.","N/A because no pre-recorded audio only or pre-recorded video-only media on the page.","N/A because no pre-recorded audio only or pre-recorded video-only media on the page.","N/A because no pre-recorded audio only or pre-recorded video-only media on the page.","N/A because no pre-recorded audio only or pre-recorded video-only media on the page.","N/A because no pre-recorded audio only or pre-recorded video-only media on the page.","N/A because no pre-recorded audio only or pre-recorded video-only media on the page."]
["1.2.3","A","Audio Description or Media Alternative (Pre-recorded)","An alternative for time-based media or audio description of the pre-recorded video content is provided for synchronized media, except when the media is a media alternative for text and is clearly labelled as such.","N/A","N/A","N/A","N/A","N/A","N/A","N/A","N/A","N/A","N/A","N/A"]
[null,null,null,null,"N/A because there is no video that conveys content visually that is not presented via an audio track.","N/A because there is no video that conveys content visually that is not presented via an audio track.","N/A because there is no video that conveys content visually that is not presented via an audio track.","N/A because there is no video that conveys content visually that is not presented via an audio track.","N/A because there is no video that conveys content visually that is not presented via an audio track.","N/A because there is no video that conveys content visually that is not presented via an audio track.","N/A because there is no video that conveys content visually that is not presented via an audio track.","N/A because there is no video that conveys content visually that is not presented via an audio track.","N/A because there is no video that conveys content visually that is not presented via an audio track.","N/A because there is no video that conveys content visually that is not presented via an audio track.","N/A because there is no video that conveys content visually that is not presented via an audio track."]
["1.3.1","A","Info and Relationships","Information, structure, and relationships conveyed through presentation can be programmatically determined or are available in text.","PASS","NON COMPLIANT","NON COMPLIANT","NON COMPLIANT","NON COMPLIANT","NON COMPLIANT","NON COMPLIANT","NON COMPLIANT","NON COMPLIANT","NON COMPLIANT","NON COMPLIANT"]
[null,null,null,null,null,"Pages should be structured in a hierarchical manner, generally with one 1st degree headings (<h1>) being the most important (usually page titles or main content heading) but it does not.  Include a h1 heading such as Sign in page below the SafeStats logo and above the user name label.","Pages should be structured in a hierarchical manner, generally with one 1st degree headings (<h1>) being the most important (usually page titles or main content heading) but it does not. Change the <h3> heading 'Sign Up Form' to a <H1> heading instead below the SafeStats logo and above the text 'Request Access to SafeStats'.","Pages should be structured in a hierarchical manner, generally with one 1st degree headings (<h1>) being the most important (usually page titles or main content heading) but it does not. \nCreate a <h1> heading titled 'Homepage'.\nChange the <h3> headings ('Data Explorer','Query Builder','User Pages','Help Pages','Latest Updates') to a <h2> heading instead.\n\nThe links (Data Explorer, Query Builder, User Pages, Help Pages, Latest Updates) appear in the layout of a lit but it is not coded in that way but instead  uses a series of html <div> elements. Create an HTML unordered list of the links instead.","Pages should be structured in a hierarchical manner, generally with one 1st degree headings (<h1>) being the most important (usually page titles or main content heading) but it does not. \nChange the text 'Results' to a <h1> heading.\n\nChange the following <h4> headings to a <h2> heading: British Transport Police, Emergency Department, London Ambulance Service, Metropolitan Police Service, Transport for London.\n\nCreate a <h1> heading titled 'Homepage'.\nChange the <h3> headings ('Data Explorer','Query Builder','User Pages','Help Pages','Latest Updates') to a <h2> heading instead.\n\nThe links (Data Explorer, Query Builder, User Pages, Help Pages, Latest Updates) appear in the layout of a lit but it is not coded in that way but instead  uses a series of html <div> elements. Create an HTML unordered list of the links instead.\n\nThe results appears in the layout of an accordion but is not coded in that way but instead is a tablist and should be an accordion.  \n\nUse the Accordion example provided by W3C as a reference for an accessible accordion at w3.org/TR/wai-aria-practices-1.2/examples/accordion/accordion.html","Pages should be structured in a hierarchical manner, generally with one 1st degree headings (<h1>) being the most important (usually page titles or main content heading) but it does not. \nChange the text 'Results' to a <h1> heading.\n\nChange the text 'Query Builder' to <h1> heading.\nChange the <h4> headings ('Data provider selections','British Transport Police','Location Selections','Date/Time selections','Group By') to <h2> headings instead.\n\nWhen either a field is added or a nest field is added  there is no programmatic notice of change even though visually there is new fields or nest fields that appear on the page. It is recommended to include an ARIA live region to help.\n\nThe left hand accordion navigation menu is visually presented as an accordion but is not programmatically structured as an accordion.\nUse the Accordion example provided by W3C as a reference for an accessible accordion at w3.org/TR/wai-aria-practices-1.2/examples/accordion/accordion.html","Pages should be structured in a hierarchical manner, generally with one 1st degree headings (<h1>) being the most important (usually page titles or main content heading) but it does not. \nChange the text 'Results' to a <h1> heading.\n\nChange the text 'Query Builder' to <h1> heading.\nChange the <h4> headings ('Data provider selections','British Transport Police','Location Selections','Date/Time selections','Group By') to <h2> headings instead.\n\nWhen either a field is added or a nest field is added  there is no programmatic notice of change even though visually there is new fields or nest fields that appear on the page. It is recommended to include an ARIA live region to help.\n\nThe left hand accordion navigation menu is visually presented as an accordion but is not programmatically structured as an accordion.\nUse the Accordion example provided by W3C as a reference for an accessible accordion at w3.org/TR/wai-aria-practices-1.2/examples/accordion/accordion.html\n\nThe 'Preview' link appears in the layout of a button but is not coded in that way. Remove the role=\"tab\" attribute.","Pages should be structured in a hierarchical manner, generally with one 1st degree headings (<h1>) being the most important (usually page titles or main content heading) but it does not. \nChange the text 'Results' to a <h1> heading.\n\nChange the text 'Query Builder' to <h1> heading.\nChange the <h4> headings ('Data provider selections','British Transport Police','Location Selections','Date/Time selections','Group By') to <h2> headings instead.\n\nThe left hand accordion navigation menu is visually presented as an accordion but is not programmatically structured as an accordion.\nUse the Accordion example provided by W3C as a reference for an accessible accordion at w3.org/TR/wai-aria-practices-1.2/examples/accordion/accordion.html\n\nThe 'Preview' link appears in the layout of a button but is not coded in that way. Remove the role=\"tab\" attribute.","Pages should be structured in a hierarchical manner, generally with one 1st degree headings (<h1>) being the most important (usually page titles or main content heading) but it does not. \nChange the <h5> text 'Save Query' to a <h1> heading.","Pages should be structured in a hierarchical manner, generally with one 1st degree headings (<h1>) being the most important (usually page titles or main content heading) but it does not. \nChange the <h5> text 'Additional Data' to a <h1> heading.\n\n\nHTML List items should have a <ul>,<ol> element or role=\"lists\"parent element but do not.  The example in the code is:\n\n<li class=\"nav-item\"> <a class=\"nav-link\" href=\"#preview-1\" role=\"tab\" data-toggle \"tab\" aria-selected=\"false\">MPS</a> </li>\n\nand \n\n<li class=\"nav-item\"> <a class=\"nav-link active show\" href=\"#preview-2\" role=tab\" data-toggle=\"tab\" aria-selected=\"true\">BTP</a> </li>","Pages should be structured in a hierarchical manner, generally with one 1st degree headings (<h1>) being the most important (usually page titles or main content heading) but it does not. \nChange the text 'Query Builder' to a <h1> heading.\nCreate a <h2> heading titled Filters'.\n\nChange the following <h4> to a <h3> heading: \n1) Data provider selections\n2) Location Selections\n3) Date / time selections\n4) Group by\n\nAdd a <h2> heading 'Search results data filters' above the tablist of buttons that appear above the text 'Showing x of x records'.\nAdd a <h3> heading 'search results' above the data table.\n\n\nHTML List items should have a <ul>,<ol> element or role=\"lists\"parent element but do not.  The example in the code is:\n\n<li class=\"nav-item\"> <a class=\"nav-link\" href=\"#preview-1\" role=\"tab\" data-toggle \"tab\" aria-selected=\"false\">MPS</a> </li>\n\nand \n\n<li class=\"nav-item\"> <a class=\"nav-link active show\" href=\"#preview-2\" role=tab\" data-toggle=\"tab\" aria-selected=\"true\">BTP</a> </li>"]
["1.3.2","A","Meaningful Sequence","When the sequence in which content is presented affects its meaning, a correct reading sequence can be programmatically determined.","PASS","PASS","PASS","PASS","PASS","PASS","PASS","PASS","PASS","PASS","PASS"]
[]
["1.3.3","A","Sensory Characteristics","Instructions provided for understanding and operating content do not rely solely on sensory characteristics of components such as shape, size, visual location, orientation, or sound. ","PASS","PASS","PASS","PASS","PASS","PASS","PASS","PASS","PASS","PASS","PASS"]
[]
["1.4.1","A","Use of Colour","Colour is not used as the only visual means of conveying information, indicating an action, prompting a response, or distinguishing a visual element.","PASS","PASS","PASS","PASS","PASS","PASS","PASS","PASS","PASS","PASS","PASS"]
[]
["1.4.2","A","Audio Control","If any audio on a Web page plays automatically for more than 3 seconds, either a mechanism is available to pause or stop the audio, or a mechanism is available to control audio volume independently from the overall system volume level. ","N/A","N/A","N/A","N/A","N/A","N/A","N/A","N/A","N/A","N/A","N/A"]
[null,null,null,null,"N/A because there is no audio on the header or footer that plays automatically.","N/A because there is no audio on the header or footer that plays automatically.","N/A because there is no audio on the header or footer that plays automatically.","N/A because there is no audio on the header or footer that plays automatically.","N/A because there is no audio on the header or footer that plays automatically.","N/A because there is no audio on the header or footer that plays automatically.","N/A because there is no audio on the header or footer that plays automatically.","N/A because there is no audio on the header or footer that plays automatically.","N/A because there is no audio on the header or footer that plays automatically.","N/A because there is no audio on the header or footer that plays automatically.","N/A because there is no audio on the header or footer that plays automatically."]
["W3C Ref.","Level.",null,"Principle 2: Operable - User interface components and navigation must be operable."]
["2.1.1","A","Keyboard Navigation","All functionality of the content is operable through a keyboard interface without requiring specific timings for individual keystrokes, except where the underlying function requires input that depends on the path of the user's movement and not just the endpoints.","PASS","PASS","PASS","PASS","NON COMPLIANT","NON COMPLIANT","NON COMPLIANT","NON COMPLIANT","PASS","NON COMPLIANT","PASS"]
[null,null,null,null,null,null,null,null,"The  following buttons should be keyboard navigable but are not because they do not receive keyboard focus and do not have an keypress event handler for the button: Add all fields to query builder, Add selected fields to query builder, Reset Search. \nEnsure there each button is able to receive keyboard focus by adding the tabindex=\"0\" attribute to the button and also ensure there is a keypress event handler for that button.","The  expand and collapse icon links to the right side of the headings (Data provider selections, Location Selections, Date/time selections, Group By) and the  select dropdown list that appears for each of those headings should be keyboard navigable but are not because they do not receive keyboard focus and do not have an keypress event handler for the icon link. Add a tabindex=\"0\" attribute and a keypress event handler for the down arrow icon link or the up arrow icon link to expand and collapse the accordion upon a keypress.\n\nInclude a keypress event handler for all the dropdown lists buttons that appears as well when they receive focus.\n\nWhen any drop down list is expanded it is not possible for the list to display the last item in the list. Instead the list item that has focus reverts back to the top of the list instead.\n\n\n\n\n","The 'Select All' and the 'Deselect All' links should be selectable via keyboard but do not because they do not receive keyboard focus.\n\nThe optgroup links that select or deselects all within that optgroup category should be selectable  via keyboard but do not because they receive keyboard focus.","The  expand and collapse icon links to the right side of the headings (Data provider selections, Location Selections, Date/time selections, Group By) and the  select dropdown list that appears for each of those headings should be keyboard navigable but are not because they do not receive keyboard focus and do not have an keypress event handler for the icon link. Add a tabindex=\"0\" attribute and a keypress event handler for the down arrow icon link or the up arrow icon link to expand and collapse the accordion upon a keypress.\n\nThe 'Select All' and the 'Deselect All' links that appear below the 'Borough(s) and related smaller geographies' heading should be selectable via keyboard but do not because they do not receive keyboard focus.",null,"The SelectPicker dropdown should be keyboard selectable but it is not. Add a keypress event handler to the dropdown list to enable the dropdown list to be expanded and collapsed as well as to enable the user to select items from the dropdown list. "]
["2.1.2","A","No Keyboard Trap","If keyboard focus can be moved to a component of the page using a keyboard interface, then focus can be moved away from that component using only a keyboard interface, and, if it requires more than unmodified arrow or tab keys or other standard exit methods, the user is advised of the method for moving focus away.","PASS","PASS","PASS","PASS","PASS","PASS","PASS","PASS","PASS","PASS","PASS"]
[]
["2.1.4","A","Character Key Shortcuts","If a keyboard shortcut is implemented in content using only letter (including upper- and lower-case letters), punctuation, number, or symbol characters, then at least one of the following is true:\n\nTurn off: A mechanism is available to turn the shortcut off;\nRemap: A mechanism is available to remap the shortcut to use one or more non-printable keyboard characters (e.g. Ctrl, Alt, etc);\nActive only on focus: The keyboard shortcut for a user interface component is only active when that component has focus.","PASS","PASS","PASS","PASS","PASS","PASS","PASS","PASS","PASS","PASS","PASS"]
[]
["2.2.1","A","Timing Adjustable","Provide users enough time to read and use content.","N/A","N/A","NON COMPLIANT","NON COMPLIANT","NON COMPLIANT","NON COMPLIANT","NON COMPLIANT","NON COMPLIANT","NON COMPLIANT","NON COMPLIANT","NON COMPLIANT"]
[null,null,null,null,"N/A because the footer is a part of every single page and in this context just the header component is considered","N/A because the footer is a part of every single page and in this context just the header component is considered","After a period of inactivity a session timeout occurs with a message  appearing on screen that that there is a timeout due to inactivity. There should be a warning before the session timeout occurs and there should be the facility to extend, adjust or turn off the session timeout period.\n\n","After a period of inactivity a session timeout occurs with a message  appearing on screen that that there is a timeout due to inactivity. There should be a warning before the session timeout occurs and there should be the facility to extend, adjust or turn off the session timeout period.\n\n","After a period of inactivity a session timeout occurs with a message  appearing on screen that that there is a timeout due to inactivity. There should be a warning before the session timeout occurs and there should be the facility to extend, adjust or turn off the session timeout period.\n\n","After a period of inactivity a session timeout occurs with a message  appearing on screen that that there is a timeout due to inactivity. There should be a warning before the session timeout occurs and there should be the facility to extend, adjust or turn off the session timeout period.\n\n","After a period of inactivity a session timeout occurs with a message  appearing on screen that that there is a timeout due to inactivity. There should be a warning before the session timeout occurs and there should be the facility to extend, adjust or turn off the session timeout period.\n\n","After a period of inactivity a session timeout occurs with a message  appearing on screen that that there is a timeout due to inactivity. There should be a warning before the session timeout occurs and there should be the facility to extend, adjust or turn off the session timeout period.\n\n","After a period of inactivity a session timeout occurs with a message  appearing on screen that that there is a timeout due to inactivity. There should be a warning before the session timeout occurs and there should be the facility to extend, adjust or turn off the session timeout period.\n\n","After a period of inactivity a session timeout occurs with a message  appearing on screen that that there is a timeout due to inactivity. There should be a warning before the session timeout occurs and there should be the facility to extend, adjust or turn off the session timeout period.\n\n","After a period of inactivity a session timeout occurs with a message  appearing on screen that that there is a timeout due to inactivity. There should be a warning before the session timeout occurs and there should be the facility to extend, adjust or turn off the session timeout period.\n\n"]
["2.2.2","A","Pause, Stop, Hide","For moving, blinking, scrolling, or auto-updating information.","N/A","N/A","N/A","N/A","N/A","N/A","N/A","N/A","N/A","N/A","N/A"]
[null,null,null,null,"N/A because there are no automatically moving, blinking, or scrolling content (such as carousels, marquees, or animations) that last longer than 5 seconds than can be paused, stopped, or hidden by the user.","N/A because there are no automatically moving, blinking, or scrolling content (such as carousels, marquees, or animations) that last longer than 5 seconds than can be paused, stopped, or hidden by the user.","N/A because there are no automatically moving, blinking, or scrolling content (such as carousels, marquees, or animations) that last longer than 5 seconds than can be paused, stopped, or hidden by the user.","N/A because there are no automatically moving, blinking, or scrolling content (such as carousels, marquees, or animations) that last longer than 5 seconds than can be paused, stopped, or hidden by the user.","N/A because there are no automatically moving, blinking, or scrolling content (such as carousels, marquees, or animations) that last longer than 5 seconds than can be paused, stopped, or hidden by the user.","N/A because there are no automatically moving, blinking, or scrolling content (such as carousels, marquees, or animations) that last longer than 5 seconds than can be paused, stopped, or hidden by the user.","N/A because there are no automatically moving, blinking, or scrolling content (such as carousels, marquees, or animations) that last longer than 5 seconds than can be paused, stopped, or hidden by the user.","N/A because there are no automatically moving, blinking, or scrolling content (such as carousels, marquees, or animations) that last longer than 5 seconds than can be paused, stopped, or hidden by the user.","N/A because there are no automatically moving, blinking, or scrolling content (such as carousels, marquees, or animations) that last longer than 5 seconds than can be paused, stopped, or hidden by the user.","N/A because there are no automatically moving, blinking, or scrolling content (such as carousels, marquees, or animations) that last longer than 5 seconds than can be paused, stopped, or hidden by the user.","N/A because there are no automatically moving, blinking, or scrolling content (such as carousels, marquees, or animations) that last longer than 5 seconds than can be paused, stopped, or hidden by the user."]
["2.3.1","A","Three Flashes or Below Threshold","Web pages do not contain anything that flashes more than three times in any one second period, or the flash is below the general flash and red flash thresholds.","N/A","N/A","N/A","N/A","N/A","N/A","N/A","N/A","N/A","N/A","N/A"]
[null,null,null,null,"N/A because the page does not contain anything that flashes more that three times in any one second period.","N/A because the page does not contain anything that flashes more that three times in any one second period.","N/A because the page does not contain anything that flashes more that three times in any one second period.","N/A because the page does not contain anything that flashes more that three times in any one second period.","N/A because the page does not contain anything that flashes more that three times in any one second period.","N/A because the page does not contain anything that flashes more that three times in any one second period.","N/A because the page does not contain anything that flashes more that three times in any one second period.","N/A because the page does not contain anything that flashes more that three times in any one second period.","N/A because the page does not contain anything that flashes more that three times in any one second period.","N/A because the page does not contain anything that flashes more that three times in any one second period.","N/A because the page does not contain anything that flashes more that three times in any one second period."]
["2.4.1","A","Bypass Blocks","A mechanism is available to bypass blocks of content that are repeated on multiple Web pages.","NON COMPLIANT","N/A","N/A","N/A","N/A","N/A","N/A","N/A","N/A","N/A","N/A"]
[null,null,null,null,"There should be a 'skip to main content' link that enables keyboard users to reach main content faster my moving the keyboard focus to the main content section of the page. However, there is no link at all. See the Skip Navigation link example at: https://webaim.org/techniques/skipnav/","N/A because the page is a sign in page and does not have content that is repeated on multiple web pages.","N/A because the page is a sign up page and does not have content that is repeated on multiple web pages.","Refer to column 'E' for details on Bypass Blocks.","Refer to column 'E' for details on Bypass Blocks.","Refer to column 'E' for details on Bypass Blocks.","Refer to column 'E' for details on Bypass Blocks.","Refer to column 'E' for details on Bypass Blocks.","Refer to column 'E' for details on Bypass Blocks.","Refer to column 'E' for details on Bypass Blocks.","Refer to column 'E' for details on Bypass Blocks."]
["2.4.2","A","Page Titled","Web pages have titles that describe topic or purpose.","PASS with comments","PASS with comments","PASS with comments","PASS with comments","PASS with comments","PASS with comments","PASS with comments","PASS with comments","PASS with comments","PASS with comments","PASS with comments"]
[null,null,null,null,"The page should have the context of the page as well as the company in which the page  represents. E.g. Home page | SafeStats","The page should have the context of the page as well as the company in which the page  represents. E.g. Sign in page | SafeStats","The page should have the context of the page as well as the company in which the page  represents. E.g. Sign up page | SafeStats","The page should have the context of the page as well as the company in which the page  represents. E.g. Home page | SafeStats","The page should have the context of the page as well as the company in which the page  represents. E.g. Data Explorer Results page | SafeStats","The page should have the context of the page as well as the company in which the page  represents. E.g. Query Builder page | SafeStats","The page should have the context of the page as well as the company in which the page  represents. E.g. Query Builder page | SafeStats","The page should have the context of the page as well as the company in which the page  represents. E.g. Query Builder page | SafeStats","The page should have the context of the page as well as the company in which the page  represents. E.g. Query Builder page | SafeStats","The page should have the context of the page as well as the company in which the page  represents. E.g. Query Builder join page | SafeStats","The page should have the context of the page as well as the company in which the page  represents. E.g. Query Builder results page | SafeStats"]
["2.4.3","A","Focus Order","If a Web page can be navigated sequentially and the navigation sequences affect meaning or operation, focusable components receive focus in an order that preserves meaning and operability.","PASS","PASS","PASS","PASS","PASS","PASS","PASS","PASS","PASS","PASS","PASS"]
[]
["2.4.4","A","Link Purpose (In Context)","The purpose of each link can be determined from the link text alone or from the link text together with its programmatically determined link context, except where the purpose of the link would be ambiguous to users in general.","PASS","PASS","PASS","PASS","PASS","PASS","PASS","PASS","PASS","PASS","PASS"]
[]
["2.5.1","A","Pointer Gestures","All functionality that uses multipoint or path-based gestures for operation can be operated with a single pointer without a path-based gesture, unless a multipoint or path-based gesture is essential.","N/A","N/A","N/A","N/A","N/A","N/A","N/A","N/A","N/A","N/A","N/A"]
[null,null,null,null,"N/A because there are no multipoint or path-based gestures that are essential to the functionality of the page.","N/A because there are no multipoint or path-based gestures that are essential to the functionality of the page.","N/A because there are no multipoint or path-based gestures that are essential to the functionality of the page.","N/A because there are no multipoint or path-based gestures that are essential to the functionality of the page.","N/A because there are no multipoint or path-based gestures that are essential to the functionality of the page.","N/A because there are no multipoint or path-based gestures that are essential to the functionality of the page.","N/A because there are no multipoint or path-based gestures that are essential to the functionality of the page.","N/A because there are no multipoint or path-based gestures that are essential to the functionality of the page.","N/A because there are no multipoint or path-based gestures that are essential to the functionality of the page.","N/A because there are no multipoint or path-based gestures that are essential to the functionality of the page.","N/A because there are no multipoint or path-based gestures that are essential to the functionality of the page."]
["2.5.2","A","Pointer Cancellation","For functionality that can be operated using a single pointer, at least one of the following is true:\n\nNo Down-Event: The down-event of the pointer is not used to execute any part of the function;\nAbort or Undo: Completion of the function is on the up-event, and a mechanism is available to abort the function before completion or to undo the function after completion;\nUp Reversal: The up-event reverses any outcome of the preceding down-event;\nEssential: Completing the function on the down-event is essential.","N/A","N/A","N/A","N/A","N/A","N/A","N/A","N/A","N/A","N/A","N/A"]
[null,null,null,null,"N/A because there are no non-essential down-events (e.g. onmousedown) activation when clicking, tapping, or long pressing the screen.","N/A because there are no non-essential down-events (e.g. onmousedown) activation when clicking, tapping, or long pressing the screen.","N/A because there are no non-essential down-events (e.g. onmousedown) activation when clicking, tapping, or long pressing the screen.","N/A because there are no non-essential down-events (e.g. onmousedown) activation when clicking, tapping, or long pressing the screen.","N/A because there are no non-essential down-events (e.g. onmousedown) activation when clicking, tapping, or long pressing the screen.","N/A because there are no non-essential down-events (e.g. onmousedown) activation when clicking, tapping, or long pressing the screen.","N/A because there are no non-essential down-events (e.g. onmousedown) activation when clicking, tapping, or long pressing the screen.","N/A because there are no non-essential down-events (e.g. onmousedown) activation when clicking, tapping, or long pressing the screen.","N/A because there are no non-essential down-events (e.g. onmousedown) activation when clicking, tapping, or long pressing the screen.","N/A because there are no non-essential down-events (e.g. onmousedown) activation when clicking, tapping, or long pressing the screen.","N/A because there are no non-essential down-events (e.g. onmousedown) activation when clicking, tapping, or long pressing the screen."]
["2.5.3","A","Label in Name","For user interface components with labels that include text or images of text, the name contains the text that is presented visually.","PASS","PASS","PASS","PASS","PASS","PASS","PASS","PASS","PASS","PASS","PASS"]
[]
["2.5.4","A","Motion Actuation","Functionality that can be operated by device motion or user motion can also be operated by user interface components and responding to the motion can be disabled to prevent accidental actuation, except when:\n\nSupported Interface: The motion is used to operate functionality through an accessibility supported interface;\nEssential: The motion is essential for the function and doing so would invalidate the activity.","N/A","N/A","N/A","N/A","N/A","N/A","N/A","N/A","N/A","N/A","N/A"]
[null,null,null,null,"N/A because there are no functionality that is triggered by moving the device (such as shaking, or panning a mobile device)","N/A because there are no functionality that is triggered by moving the device (such as shaking, or panning a mobile device)","N/A because there are no functionality that is triggered by moving the device (such as shaking, or panning a mobile device)","N/A because there are no functionality that is triggered by moving the device (such as shaking, or panning a mobile device)","N/A because there are no functionality that is triggered by moving the device (such as shaking, or panning a mobile device)","N/A because there are no functionality that is triggered by moving the device (such as shaking, or panning a mobile device)","N/A because there are no functionality that is triggered by moving the device (such as shaking, or panning a mobile device)","N/A because there are no functionality that is triggered by moving the device (such as shaking, or panning a mobile device)","N/A because there are no functionality that is triggered by moving the device (such as shaking, or panning a mobile device)","N/A because there are no functionality that is triggered by moving the device (such as shaking, or panning a mobile device)","N/A because there are no functionality that is triggered by moving the device (such as shaking, or panning a mobile device)"]
["W3C Ref.","Level.",null,"Principle 3: Understandable - Information and the operation of user interface must be understandable."]
["3.1.1","A","Language of Page","The default human language of each Web page can be programmatically determined. ","PASS","PASS","PASS","PASS","PASS","PASS","PASS","PASS","PASS","PASS","PASS"]
[]
["3.2.1","A","On Focus","When any component receives focus, it does not initiate a change of context.","PASS","PASS","PASS","PASS","PASS","PASS","PASS","PASS","PASS","PASS","PASS"]
[]
["3.2.2","A","On Input","Changing the setting of any user interface component does not automatically cause a change of context unless the user has been advised of the behaviour before using the component","PASS","PASS","PASS","PASS","PASS","PASS","PASS","PASS","PASS","PASS","PASS"]
[]
["3.3.1","A","Error Identification","If an input error is automatically detected, the item that is in error is identified and the error is described to the user in text.","PASS","PASS","PASS","PASS","PASS","PASS","PASS","PASS","PASS","PASS","PASS"]
[]
["3.3.2","A","Labels or Instructions","Labels or instructions are provided when content requires user input.","PASS","PASS","PASS","PASS","NON COMPLIANT","NON COMPLIANT","NON COMPLIANT","NON COMPLIANT","NON COMPLIANT","PASS","PASS"]
[null,null,null,null,null,null,null,null,"The search input box should have a label but does not. Include a label.  E.g. \n<label for=\"search_id\"><input type=\"text\" value class=\"main-search\" id=\"input-search\" id=\"search_id\" placeholder \"Search the Safestats data sets using individual keywords e.g. knife\">\n\nAll checkboxes should have a label but does not. Include a label. E.g. \n<input type=\"checkbox\" id=\"chk_0_0\"><label for=chk_0_0\">Offence Group</label>","For each dropdown list  that appears under the headings (e.g. British Transport Police) ensure that there is text in the label as there is a label element which is blank.  This label should always be appearing."," \nFor each dropdown list  that appears under the headings (e.g. British Transport Police) ensure that there is text in the label as there is a label element which is blank.  This label should always be appearing.\n\nThe text combobox should have instructional text to inform the user that entering characters into the text input box will act as a filter and  will automatically submit upon each text character entered. However, it does not.  Provide instructional text above the text input box for all users to be read.\n\nFor each optgroup tag there should have instructional text to inform the user that selecting the link will select all list items in the optgroup category and selecting the link again will deselect all the list items in the optgroup category.","The map should have instructional text to inform the user that selecting a radio button from the larger geographies section will result in layer lines to be drawn on the map.  A textual description, if possible, of what the map lines represent should also be given above the map to give context about the map and the lines on it.","The Description label is not correctly associated to the <textarea> element.  The for=\"input\" attribute should be changed to 'txt_query_builder_description'."]
["W3C Ref.","Level.",null,"Guideline 4.1 Compatible: Maximize compatibility with current and future user agents, including assistive technologies."]
["4.1.1","A","Parsing","In content implemented using mark-up languages, elements have complete start and end tags, elements are nested according to their specifications, elements do not contain duplicate attributes, and any IDs are unique, except where the specifications allow these features.","NON COMPLIANT","NON COMPLIANT","NON COMPLIANT","NON COMPLIANT","NON COMPLIANT","NON COMPLIANT","NON COMPLIANT","NON COMPLIANT","NON COMPLIANT","NON COMPLIANT","NON COMPLIANT"]
[null,null,null,null,"When validating the DOM, the W3C Nu Validator reports that the header and footer there are 0 accessibility errors that violate this success criteria.\n\nWhen validating the initial source code there are 0 accessibility errors that violate this success criteria.","When validating the DOM, the W3C Nu Validator reports that the header and footer contains 1 accessibility error(Element div not allowed as child of element button in this context;) that violates this success criteria.  \n\nWhen validating the initial source code there are 0 accessibility errors that violate this success criteria.","When validating the DOM, the W3C Nu Validator reports that the header and footer contains 3 accessibility errors (Element div not allowed as child of element button in this context;) that violates this success criteria.  \n\nWhen validating the initial source code there are 3 accessibility errors (Element div not allowed as child of element button in this context;) that violate this success criteria.","When validating the DOM, the W3C Nu Validator reports that the header and footer there are 0 accessibility errors that violate this success criteria.\n\nWhen validating the initial source code there are 0 accessibility errors that violate this success criteria.","When validating the DOM, the W3C Nu Validator reports that the header and footer there are 49 accessibility errors that violate this success criteria:\n1) Duplicate ID btn_my_Account\n2) Duplicate ID logoutForm\n3) Duplicate ID btnLogout\n4) Duplicate ID nestedheadingOneSub0_0\n5) Duplicate ID nestedheadingOneSub0_1\n6) Duplicate ID nestedheadingOneSub0_2\n7) Duplicate ID nestedheadingOneSub2_2\n8) Duplicate ID nestedheadingOneSub2_4\n9) Duplicate ID nestedheadingOneSub4_0\n10) Element div not allowed as child of element span in this context\n\nWhen validating the initial source code there are 0 accessibility errors that violate this success criteria.","When validating the DOM, the W3C Nu Validator reports that the header and footer there are 18 accessibility errors that violate this success criteria:\n1) Element div not allowed as child of element button in this context;\n\nWhen validating the initial source code there are 0 accessibility errors that violate this success criteria.","When validating the DOM, the W3C Nu Validator reports that the header and footer there are 67 accessibility errors that violate this success criteria:\n1) Duplicate ID dataSetCode-1column-8928; \n2) Duplicate ID dataSetCode-1column-8986;\n3) Duplicate ID dataSetCode-1column-8987; \n4) Duplicate ID dataSetCode-1column-8988;\n5) Duplicate ID dataSetCode-1column-8924; \n6) Duplicate ID dataSetCode-1column-9005;\n7) Duplicate ID dataSetCode-1column-9006; \n8) Duplicate ID dataSetCode-1column-8915;\n9) Duplicate ID dataSetCode-1column-8929; \n10) Duplicate ID dataSetCode-1column-11201;\n11) Duplicate ID dataSetCode-1column-11142; \n12) Duplicate ID dataSetCode-1column-11222;\n13) Duplicate ID dataSetCode-1column-11223; \n14) Duplicate ID dataSetCode-1column-11133;\n15) Element div not allowed as child of element button in this context;\n\nWhen validating the initial source code there are 0 accessibility errors that violate this success criteria.","When validating the DOM, the W3C Nu Validator reports that the header and footer there are 73 accessibility errors that violate this success criteria:\n1) Duplicate ID dataSetCode-1column-8928; \n2) Duplicate ID dataSetCode-1column-8986;\n3) Duplicate ID dataSetCode-1column-8987; \n4) Duplicate ID dataSetCode-1column-8988;\n5) Duplicate ID dataSetCode-1column-8924; \n6) Duplicate ID dataSetCode-1column-9005;\n7) Duplicate ID dataSetCode-1column-9006; \n8) Duplicate ID dataSetCode-1column-8915;\n9) Duplicate ID dataSetCode-1column-8929; \n10) Duplicate ID dataSetCode-1column-11201;\n11) Duplicate ID dataSetCode-1column-11142; \n12) Duplicate ID dataSetCode-1column-11222;\n13) Duplicate ID dataSetCode-1column-11223; \n14) Duplicate ID dataSetCode-1column-11133;\n15) Element div not allowed as child of element label in this context;\n16) Element div not allowed as child of element button in this context;\n\nWhen validating the initial source code there are 0 accessibility errors that violate this success criteria.","When validating the DOM, the W3C Nu Validator reports that the header and footer there are 51 accessibility errors that violate this success criteria:\n1) Duplicate ID dataSetCode-1column-8928; \n2) Duplicate ID dataSetCode-1column-8986;\n3) Duplicate ID dataSetCode-1column-8987; \n4) Duplicate ID dataSetCode-1column-8988;\n5) Duplicate ID dataSetCode-1column-8924; \n6) Duplicate ID dataSetCode-1column-9005;\n7) Duplicate ID dataSetCode-1column-9006; \n8) Duplicate ID dataSetCode-1column-8915;\n9) Duplicate ID dataSetCode-1column-8929; \n10) Element div not allowed as child of element button in this context;\n\nWhen validating the initial source code there are 0 accessibility errors that violate this success criteria.","When validating the DOM, the W3C Nu Validator reports that the header and footer there are 78 accessibility errors that violate this success criteria:\n1) Duplicate ID dataSetCode-1column-8928; \n2) Duplicate ID dataSetCode-1column-8986;\n3) Duplicate ID dataSetCode-1column-8987; \n4) Duplicate ID dataSetCode-1column-8988;\n5) Duplicate ID dataSetCode-1column-8924; \n6) Duplicate ID dataSetCode-1column-9005;\n7) Duplicate ID dataSetCode-1column-9006; \n8) Duplicate ID dataSetCode-1column-8915;\n9) Duplicate ID dataSetCode-1column-8929; \n10) Duplicate ID dataSetCode-1column-11201;\n11) Duplicate ID dataSetCode-1column-11142; \n12) Duplicate ID dataSetCode-1column-11222;\n13) Duplicate ID dataSetCode-1column-11223; \n14) Duplicate ID dataSetCode-1column-11133;\n15) Element div not allowed as child of element label in this context;\n16) Element div not allowed as child of element button in this context;\n\nWhen validating the initial source code there are 0 accessibility errors that violate this success criteria.","When validating the DOM, the W3C Nu Validator reports that the header and footer there are 76 accessibility errors that violate this success criteria:\n1) Duplicate ID dataSetCode-1column-8928; \n2) Duplicate ID dataSetCode-1column-8986;\n3) Duplicate ID dataSetCode-1column-8987; \n4) Duplicate ID dataSetCode-1column-8988;\n5) Duplicate ID dataSetCode-1column-8924; \n6) Duplicate ID dataSetCode-1column-9005;\n7) Duplicate ID dataSetCode-1column-9006; \n8) Duplicate ID dataSetCode-1column-8915;\n9) Duplicate ID dataSetCode-1column-8929; \n10) Duplicate ID dataSetCode-1column-11201;\n11) Duplicate ID dataSetCode-1column-11142; \n12) Duplicate ID dataSetCode-1column-11222;\n13) Duplicate ID dataSetCode-1column-11223; \n14) Duplicate ID dataSetCode-1column-11133;\n15) Element div not allowed as child of element label in this context;\n16) Element div not allowed as child of element button in this context;\n\nWhen validating the initial source code there are 0 accessibility errors that violate this success criteria."]
["4.1.2","A","Name, Role, Value","For all user interface components (including but not limited to: form elements, links and components generated by scripts), the name and role can be programmatically determined; states, properties, and values that can be set by the user can be programmatically set; and notification of changes to these items is available to user agents, including assistive technologies. ","PASS","PASS","NON COMPLIANT","PASS","NON COMPLIANT","NON COMPLIANT","NON COMPLIANT","NON COMPLIANT","NON COMPLIANT","NON COMPLIANT","NON COMPLIANT"]
[null,null,null,null,null,null,"The input box form controls on the page should have a label element associated to them but do not.\nUse the label element to explicitly associate the input box form control with a label.  A label is attached to a specific form control through the use of the for attribute.  The value of the for attribute must be the same as the value of the id attribute of the form control. The id attribute may  have the same value as the name attribute, but both must be provided, and the id must be unique in the Web page. e.g.\n\n<label for=\"userFirstName\">First Name:</label>\n<input type=\"text\" name=\"userFirstName\" id=\"userFirstName\" />\n\n<label for=\"userLastName\">Last Name:</label>\n<input type=\"text\" name=\"userLastName\" id=\"userLastName\" />\n\n<label for=\"userEmail\">Email (Username):</label>\n<input type=\"text\" name=\"userEmail\" id=\"userEmail\" />\n\n<label for=\"userContactNumber\">Contact Number</label>\n<input type=\"text\" name=\"userContactNumber\" id=\"userContactNumber\" />\n\n<label for=\"exampleFormControlSelect1\">Organisation</label>\n<select name=\"userOrganisationId\" id=\"exampleFormControlSelect1\">\n<option value disabled selected>Please select an organisation</option>\n<option value=\"2\">British Transport Police (BTP)</option>\n</select>\n\n<label for=\"userJobTitle\">Job title/Area of work</label>\n<input type=\"text\" name=\"userJobTitle\" id=\"userJobTitle\" />\n\n<label for=\"userWantToShare\">Sharing details</label>\n<select name=\"useWantToShare\" id=\"useWantToShare\">\n<option value disabled selected>Do you want to share details</option>\n<option value=\"2\">I don't want to share contact details</option>\n</select>\n\nNote: The tabindex attribute in both the select drop down lists have the tabindex=\"-98\" attribute/value. Use tabindex=\"-1\" to make an element focusable by javaScript (but NOT tabbable). If an tabindex=\"-1\" attribute/value is used users still won't be able to tab to it but you will be able to send the focus to the element using JavaScript. However, do not use tabindex with positive numbers. If tabindex for positive numbers (such as tabindex=\"1\" or tabindex=\"2\"), these will be the first things that the user tabs to in the page. That puts things out of order in terms of the normal tab flow. The main problem with tabindex of positive numbers are that the normal tab flow is broken.",null,"The Card header for the British Transport Police, London Ambulance Service, Transport for London and Emergency Department should not have a concatenated accessible name of the Card heading and the button label and should just be the Card heading e.g. British Transport Police, London Ambulance Service, Transport for London or Emergency Department.\n\nThe up arrow and down arrow to the right side of the Access Metadata button  and to the right of each checkbox label in the accordion should have an accessible name but do not therefore there is no text that is visible to screen readers.\n\nThe buttons in the footer all should have an accessible name but do not therefore there is no text that is visible to screen readers: Add all fields to query builder, Add selected fields to query builder, reset search.\n\nUse the Accordion example provided by W3C as a reference for an accessible accordion at w3.org/TR/wai-aria-practices-1.2/examples/accordion/accordion.html\n\nThe aria-controls attribute should not include a '#' character in the code for the link. e.g. \n<a class=\"pull-right\" data-toggle=\"collapse\" data-parent=\"#nested# aria-expanded=\"true\" href=\"#nestedcollapse0_0_0\" aria-controls=\"nestedcollapse0_0_0\"><i class=\"fas fa-angle-down rotate-icon\">::before</i>\n</a>\n\nThe aria-controls attribute should not include a '#' character in the code for the link. e.g. \n<a class=\"pull-right\" data-toggle=\"collapse\" data-parent=\"#nested# aria-expanded=\"true\" href=\"#nestedcollapse0_0_1\" aria-controls=\"nestedcollapse0_0_1\"><i class=\"fas fa-angle-down rotate-icon\">::before</i>\n</a>\n\nThe aria-controls attribute should not include a '#' character in the code for the link. e.g. \n<a class=\"pull-right\" data-toggle=\"collapse\" data-parent=\"#nested# aria-expanded=\"true\" href=\"#nestedcollapse0_0_2\" aria-controls=\"nestedcollapse0_0_2\"><i class=\"fas fa-angle-down rotate-icon\">::before</i>\n</a>\n\n","The preview button visually appear as a list of buttons but are coded as a tablist.\nThe  preview button should not have the role=\"tab\" attribute but it does.  Remove the role=\"tab\". \n\nUpon selecting the preview button there is an unordered list element that appears that has the role=\"tablist\" attribute. This should be removed. In addition, the role=\"tab\" attribute in the BTP link should also be removed. Therefore the end result will be having just a button link instead of a tab.\n","The anchor links in each HTML <li> element should have the 'href' attribute but do not. Include the 'href' attribute for each anchor link.\n\nThe dropdown menu should have the aria-expanded=\"true\" attribute but does not. Ensure that this attribute is included. e.g. \n<div class=\"dropdown-menu show\" aria-expanded=\"true\" role=\"combobox\" x-placement=\"bottom-start\" style=\"max-height: 567px; overflow: hidden; min-height: 223px; min-width: 1148px; position: absolute; top: 46px; left: 1px; will-change: top, left;\">\n\nThe ARIA input field should have an accessible name but does not. Ensure that the there is at an aria-label attribute that exists and is not empty.\nInclude an aria-label attribute with the accessible name. e.g. <div class=\"inner show\" role=\"listbox\" aria-label=\"drop down list\" aria-expanded=\"true\" tabindex=\"-1\" style=\"max-height: 460px; overflow-y: auto; min-height:116px;\">\n\nThe link with the 'role=\"tab\"' attribute should have a parent role of \"tablist\" but it does not. There should be another element with the parent of role=tablist that contains the link.\n","The anchor links in each HTML <li> element in the list before the 'Borough(s) and related smaller geographies' heading should have the 'href' attribute but do not. Include the 'href' attribute for each anchor link.\n\nThe dropdown menu should have the aria-expanded=\"true\" attribute but does not. Ensure that this attribute is included. e.g. \n<div class=\"dropdown-menu show\" aria-expanded=\"true\" role=\"combobox\" x-placement=\"bottom-start\" style=\"max-height: 567px; overflow: hidden; min-height: 223px; min-width: 1148px; position: absolute; top: 46px; left: 1px; will-change: top, left;\">\n\n\nWhen selecting an option in the select list box there is no \"aria-activedescendant\" attribute that is used with the ID of the newly selected option.\nPlease refer to the working example of the ARIA listbox for a better understanding of the list box.\nhttps://developer.mozilla.org/en-US/docs/Web/Accessibility/ARIA/Roles/listbox_role\n\nThere should not be any invalid ARIA attributes values used in the code but there is.  There is an invalid ARIA attribute value: aria-labelledby=\"exampleModalLabel\". Ensure that there is an active element with an ID of \"exampleModalLabel\".\n\nThe link with the 'role=\"tab\"' attribute should have a parent role of \"tablist\" but it does not. There should be another element with the parent of role=tablist that contains the link.","The 'Tags' dropdown list and the 'Shared' dropdown lost should have an accessible name but do not therefore there is no text that is visible to screen readers. Include an accessible name.","The link with the 'role=\"tab\"' attribute should have a parent role of \"tablist\" but it does not. There should be another element with the parent of role=tablist that contains the link.","The <ul> element that contains the HTML list items should not have the attribute=\"tablist\". Remove this attribute.\n\nThe 'MPS' and 'BTP' buttons visually appear as a list of buttons but are coded as a tablist.\nBoth the  'MPS' and 'BTP' button should not have the role=\"tab\" attribute but it does.  Remove the role=\"tab\". Therefore the end result will be having just a button link instead of a tab."]
[]
[null,null,"Level AA Success Criteria"]
["W3C Ref.","Level.",null,"Principle 1: Perceivable - Information and user interface components must be presentable to users in ways they can perceive."]
["1.2.4","AA","Captions","Captions are provided for all live audio content in synchronized media. ","N/A","N/A","N/A","N/A","N/A","N/A","N/A","N/A","N/A","N/A","N/A"]
[null,null,null,null,"N/A because there is no live audio content available on this page","N/A because there is no live audio content available on this page","N/A because there is no live audio content available on this page","N/A because there is no live audio content available on this page","N/A because there is no live audio content available on this page","N/A because there is no live audio content available on this page","N/A because there is no live audio content available on this page","N/A because there is no live audio content available on this page","N/A because there is no live audio content available on this page","N/A because there is no live audio content available on this page","N/A because there is no live audio content available on this page"]
["1.2.5","AA","Audio Description (Pre-recorded)","Audio description is provided for all pre-recorded video content in synchronized media.","N/A","N/A","N/A","N/A","N/A","N/A","N/A","N/A","N/A","N/A","N/A"]
[null,null,null,null,"N/A because there are no pre-recorded video content on the page","N/A because there are no pre-recorded video content on the page","N/A because there are no pre-recorded video content on the page","N/A because there are no pre-recorded video content on the page","N/A because there are no pre-recorded video content on the page","N/A because there are no pre-recorded video content on the page","N/A because there are no pre-recorded video content on the page","N/A because there are no pre-recorded video content on the page","N/A because there are no pre-recorded video content on the page","N/A because there are no pre-recorded video content on the page","N/A because there are no pre-recorded video content on the page"]
["1.3.4","AA","Orientation","Content does not restrict its view and operation to a single display orientation, such as portrait or landscape, unless a specific display orientation is essential.","PASS","PASS","PASS","PASS","PASS","PASS","PASS","PASS","PASS","PASS","PASS"]
[]
["1.3.5","AA"," Identify Input Purpose","The purpose of each input field collecting information about the user can be programmatically determined when:\n\nThe input field serves a purpose identified in the Input Purposes for User Interface Components section; and\nThe content is implemented using technologies with support for identifying the expected meaning for form input data.","PASS","PASS","PASS","PASS","PASS","PASS","PASS","PASS","PASS","PASS","PASS"]
[]
["1.4.3","AA","Colour Contrast","The visual presentation of text and images of text has a contrast ratio of at least 4.5:1","NON COMPLIANT","PASS","NON COMPLIANT","NON COMPLIANT","NON COMPLIANT","NON COMPLIANT","NON COMPLIANT","NON COMPLIANT","NON COMPLIANT","NON COMPLIANT","NON COMPLIANT"]
[null,null,null,null,"1 combination of foreground and background colours that does not have sufficient contrast. See the Colour Contrast analysis worksheet.",null,"1 combination of foreground and background colours that does not have sufficient contrast. See the Colour Contrast analysis worksheet.","1 combination of foreground and background colours that does not have sufficient contrast. See the Colour Contrast analysis worksheet.","2 combinations of foreground and background colours that does not have sufficient contrast. See the Colour Contrast analysis worksheet.","14 combinations of foreground and background colours that does not have sufficient contrast. See the Colour Contrast analysis worksheet.","2 combinations of foreground and background colours that does not have sufficient contrast. See the Colour Contrast analysis worksheet.","5 combinations of foreground and background colours that does not have sufficient contrast. See the Colour Contrast analysis worksheet.","5 combinations of foreground and background colours that does not have sufficient contrast. See the Colour Contrast analysis worksheet.","6 combinations of foreground and background colours that does not have sufficient contrast. See the Colour Contrast analysis worksheet.","1 combination of foreground and background colours that does not have sufficient contrast. See the Colour Contrast analysis worksheet."]
["1.4.4","AA","Resize Text","Except for captions and images of text, text can be resized without assistive technology up to 200 percent without loss of content or functionality.","PASS","PASS","NON COMPLIANT","NON COMPLIANT","NON COMPLIANT","NON COMPLIANT","NON COMPLIANT","NON COMPLIANT","NON COMPLIANT","NON COMPLIANT","NON COMPLIANT"]
[null,null,null,null,null,null,"The contents on the sign up page should be able to be resized up to 200% without loss of content but there is some loss of content in the company logo 'SafeStats' which becomes cropped as a result of the resize.  In addition, the dropdown list arrow overlaps the initial text.e.g. 'Please select an organisation'.\n\nEnsure that text and image containers resize when the text resizes and using measurements that are relative to other measurements in the content .","The contents on the sign up page should be able to be resized up to 200% without loss of content but there is some loss of content in that there the Latest Updates header text becomes cropped and the text below that header no longer appears.  \n\n\nEnsure that text and image containers resize when the text resizes and using measurements that are relative to other measurements in the content .","Although Zooming and scaling to 200% works on a browser when using a desktop computer, \nzooming and scaling for mobile devices should be possible but it is not because zooming and scaling is disabled in the code. Remove the user-scalable=\"0\" and shrink-to-fit=no\" attributes. E.g.\n\n<meta content=\"width=device-width, initial-scale=1.0\" name=\"viewport\">","Although Zooming and scaling to 200% works on a browser when using a desktop computer, \nzooming and scaling for mobile devices should be possible but it is not because zooming and scaling is disabled in the code. Remove the user-scalable=\"0\" and shrink-to-fit=no\" attributes. E.g.\n\n<meta content=\"width=device-width, initial-scale=1.0\" name=\"viewport\">","Although Zooming and scaling to 200% works on a browser when using a desktop computer, \nzooming and scaling for mobile devices should be possible but it is not because zooming and scaling is disabled in the code. Remove the user-scalable=\"0\" and shrink-to-fit=no\" attributes. E.g.\n\n<meta content=\"width=device-width, initial-scale=1.0\" name=\"viewport\">","Although Zooming and scaling to 200% works on a browser when using a desktop computer, \nzooming and scaling for mobile devices should be possible but it is not because zooming and scaling is disabled in the code. Remove the user-scalable=\"0\" and shrink-to-fit=no\" attributes. E.g.\n\n<meta content=\"width=device-width, initial-scale=1.0\" name=\"viewport\">\n\n\nThe map and dropdown for items selected in the 'Borough(s) and related smaller geographies' heading should be resized up to 200% without loss of content but there is some loss of content in that the dropdown text e.g. 33 items selected becomes cropped and overlaps the expand and collapse arrow.","Although Zooming and scaling to 200% works on a browser when using a desktop computer, \nzooming and scaling for mobile devices should be possible but it is not because zooming and scaling is disabled in the code. Remove the user-scalable=\"0\" and shrink-to-fit=no\" attributes. E.g.\n\n<meta content=\"width=device-width, initial-scale=1.0\" name=\"viewport\">","Although Zooming and scaling to 200% works on a browser when using a desktop computer, \nzooming and scaling for mobile devices should be possible but it is not because zooming and scaling is disabled in the code. Remove the user-scalable=\"0\" and shrink-to-fit=no\" attributes. E.g.\n\n<meta content=\"width=device-width, initial-scale=1.0\" name=\"viewport\">","Although Zooming and scaling to 200% works on a browser when using a desktop computer, \nzooming and scaling for mobile devices should be possible but it is not because zooming and scaling is disabled in the code. Remove the user-scalable=\"0\" and shrink-to-fit=no\" attributes. E.g.\n\n<meta content=\"width=device-width, initial-scale=1.0\" name=\"viewport\">"]
["1.4.5","AA","Images of Text","If the technologies being used can achieve the visual presentation, text is used to convey information rather than images of text except for the following:\n\nCustomizable: The image of text can be visually customized to the user's requirements;\nEssential: A particular presentation of text is essential to the information being conveyed.","N/A","N/A","N/A","N/A","N/A","N/A","N/A","N/A","N/A","N/A","N/A"]
[null,null,null,null,"N/A because there are no visual presentations that can be made using text alone.","N/A because there are no visual presentations that can be made using text alone.","N/A because there are no visual presentations that can be made using text alone.","N/A because there are no visual presentations that can be made using text alone.","N/A because there are no visual presentations that can be made using text alone.","N/A because there are no visual presentations that can be made using text alone.","N/A because there are no visual presentations that can be made using text alone.","N/A because there are no visual presentations that can be made using text alone.","N/A because there are no visual presentations that can be made using text alone.","N/A because there are no visual presentations that can be made using text alone.","N/A because there are no visual presentations that can be made using text alone."]
["1.4.10","AA","Reflow","Content can be presented without loss of information or functionality, and without requiring scrolling in two dimensions for:\n\nVertical scrolling content at a width equivalent to 320 CSS pixels;\nHorizontal scrolling content at a height equivalent to 256 CSS pixels.\nExcept for parts of the content which require two-dimensional layout for usage or meaning.","NON COMPLIANT","NON COMPLIANT","NON COMPLIANT","NON COMPLIANT","NON COMPLIANT","NON COMPLIANT","NON COMPLIANT","NON COMPLIANT","NON COMPLIANT","NON COMPLIANT","NON COMPLIANT"]
[null,null,null,null,"The content of the header and footer of the page should be presented without loss of information or functionality when the browser window is resized but there is a loss of information and functionality.   The hamburger menu, once selected, does not appear in the header. There is also text overlapping the footer text that is coming from the middle of the page. This as a result of the page being resized when the page is resized to 1280 CSS pixels wide and to 400% zoom.  Ensure that the page content is scaled accordingly to the page zoom.","The content of the sign in page should be presented without loss of information or functionality when the browser window is resized but there is a loss of information and functionality.    The username input box, privacy policy link, accessibility link and safestats website link do not appear on screen as a result of the page being resized when the page is resized to 1280 CSS pixels wide and to 400% zoom.  Ensure that the page content is scaled accordingly to the page zoom.","The content of the sign up page should be presented without loss of information or functionality when the browser window is resized but there is a loss of information and functionality.   .    The First name input box and the Sharing details dropdown list do not appear on screen as a result of the page being  resized when the page is resized to 1280 CSS pixels wide and to 400% zoom.  Ensure that the page content is scaled accordingly to the page zoom.","The content of the home page should be presented without loss of information or functionality when the browser window is resized but there is a loss of information and functionality.   \nOnly part of the Data Explorer header appears in the middle of the screen. Everything else does not appear in the main body of the page as a result of the page being  resized when the page is resized to 1280 CSS pixels wide and to 400% zoom.  Ensure that the page content is scaled accordingly to the page zoom.","The content of the Data Explorer Results page should be presented without loss of information or functionality when the browser window is resized but there is not of information and functionality.\nOnly the SafeStats header partially appears on screen which takes up the whole screen.as a result of the page being  resized when the page is resized to 1280 CSS pixels wide and to 400% zoom.  Ensure that the page content is scaled accordingly to the page zoom.","The content of the Query Builder page should be presented without loss of information or functionality when the browser window is resized but there is not of information and functionality.\nOnly the SafeStats header partially appears on screen which takes up the whole screen as a result of the page being  resized when the page is resized to 1280 CSS pixels wide and to 400% zoom.  Ensure that the page content is scaled accordingly to the page zoom.","The Page and the Offence Group overlay should be presented without loss of information or functionality when the browser window is resized but there is not of information and functionality. Only part of the dropdown list appears on screen which takes up the whole screen as a result of the page being resized when the page is resized to 1280 CSS pixels wide and to 400% zoom. Ensure that the page content is scaled accordingly to the page zoom.","The map appears reduced as a result of the browser window being resized to 1280 CSS pixels wide. The maps becomes illegible and unusable due to the page resizing. ","The 'Tags' input box should appear in its entirety but does not as a result of the browser window being resized to 1280 CSS pixels wide. Text entered into the input box cannot be seen due to the page resizing. ","The content of the Query Builder - Join page should be presented without loss of information or functionality when the browser window is resized but there is not of information and functionality.\nThe dropdown text 'Choose From the following' overlaps the expanding arrow as a result of the page being  resized when the page is resized to 1280 CSS pixels wide and to 400% zoom.  Ensure that the page content is scaled accordingly to the page zoom.  In addition, there should not be two vertical scrollbars to the page but there are.  There should only be one vertical scrollbar.\n\n","The content of the Query Builder page should be presented without loss of information or functionality when the browser window is resized but there is not of information and functionality.\n\nOnly the SafeStats header partially appears on screen which takes up the whole screen as a result of the page being  resized when the page is resized to 1280 CSS pixels wide and to 400% zoom.  Ensure that the page content is scaled accordingly to the page zoom."]
["1.4.11","AA","Non-text Contrast","The visual presentation of the following have a contrast ratio of at least 3:1 against adjacent colour(s):\n\nUser Interface Components: Visual information required to identify user interface components and states, except for inactive components or where the appearance of the component is determined by the user agent and not modified by the author;\nGraphical Objects: Parts of graphics required to understand the content, except when a particular presentation of graphics is essential to the information being conveyed.","NON COMPLIANT","NON COMPLIANT","NON COMPLIANT","NON COMPLIANT","NON COMPLIANT","NON COMPLIANT","PASS","NON COMPLIANT","PASS","NON COMPLIANT","NON COMPLIANT"]
[null,null,null,null,"4 instances of a foreground and background colour that do not have sufficient contrast. See the Non-text contrast worksheet.","1 instance of a foreground and background colour that do not have sufficient contrast. See the Non-text contrast worksheet.","1 instance of a foreground and background colour that do not have sufficient contrast. See the Non-text contrast worksheet.","2 instances of a foreground and background colour that do not have sufficient contrast. See the Non-text contrast worksheet.","2 instances of a foreground and background colour that do not have sufficient contrast. See the Non-text contrast worksheet.","1  instance of a foreground and background colour that do not have sufficient contrast. See the Non-text contrast worksheet.",null,"8  instances of a foreground and background colours that do not have sufficient contrast. See the Non-text contrast worksheet.",null,"6  instances of a foreground and background colours that do not have sufficient contrast. See the Non-text contrast worksheet.","6  instances of a foreground and background colours that do not have sufficient contrast. See the Non-text contrast worksheet."]
["1.4.12","AA","Text Spacing","In content implemented using mark-up languages that support the following text style properties, no loss of content or functionality occurs by setting all of the following and by changing no other style property:\n\nLine height (line spacing) to at least 1.5 times the font size;\nSpacing following paragraphs to at least 2 times the font size;\nLetter spacing (tracking) to at least 0.12 times the font size;\nWord spacing to at least 0.16 times the font size.\nException: Human languages and scripts that do not make use of one or more of these text style properties in written text can conform using only the properties that exist for that combination of language and script.","PASS","PASS","PASS","PASS","PASS","PASS","PASS","NON COMPLIANT","PASS","PASS","PASS"]
[null,null,null,null,null,null,null,null,null,null,null,"The map appears reduced as a result of the browser window being resized to 1280 CSS pixels wide. The maps becomes illegible and unusable doe to the page resizing. "]
["1.4.13","AA","Content on Hover or Focus","Where receiving and then removing pointer hover or keyboard focus triggers additional content to become visible and then hidden, the following are true:\n\nDismissible: A mechanism is available to dismiss the additional content without moving pointer hover or keyboard focus, unless the additional content communicates an input error or does not obscure or replace other content;\nHoverable: If pointer hover can trigger the additional content, then the pointer can be moved over the additional content without the additional content disappearing;\nPersistent: The additional content remains visible until the hover or focus trigger is removed, the user dismisses it, or its information is no longer valid.\nException: The visual presentation of the additional content is controlled by the user agent and is not modified by the author.\n","N/A","N/A","N/A","N/A","N/A","N/A","N/A","N/A","N/A","N/A","N/A"]
[null,null,null,null,"There are no additional content that is presented on hover or keyboard focus on the page.","There are no additional content that is presented on hover or keyboard focus on the page.","There are no additional content that is presented on hover or keyboard focus on the page.","There are no additional content that is presented on hover or keyboard focus on the page.","There are no additional content that is presented on hover or keyboard focus on the page.","There are no additional content that is presented on hover or keyboard focus on the page.","There are no additional content that is presented on hover or keyboard focus on the page.","There are no additional content that is presented on hover or keyboard focus on the page.","There are no additional content that is presented on hover or keyboard focus on the page.","There are no additional content that is presented on hover or keyboard focus on the page.","There are no additional content that is presented on hover or keyboard focus on the page."]
["W3C Ref.","Level.",null,"Principle 2: Operable - User interface components and navigation must be operable."]
["2.4.5","AA","Multiple Ways","More than one way is available to locate a Web page within a set of Web pages except where the Web Page is the result of, or a step in, a process. ","N/A","N/A","N/A","N/A","N/A","N/A","N/A","N/A","N/A","N/A","N/A"]
[null,null,null,null,"N/A because the page is the sign in page and is not necessary to contain other means to locate a web pages.","N/A because the page is the sign in page and is not necessary to contain other means to locate a web pages.","N/A because the page is the sign up page and is not necessary to contain other means to locate a web pages.","N/A because the home page is not necessary to contain other means to locate a web pages.","N/A because the Data explorer page is not necessary to contain other means to locate a web pages.","N/A because the Query builder page is not necessary to contain other means to locate a web pages.","N/A because the Query builder page is not necessary to contain other means to locate a web pages.","N/A because the Query builder page is not necessary to contain other means to locate a web pages.","N/A because the Query builder page is not necessary to contain other means to locate a web pages.","N/A because the Query builder page is not necessary to contain other means to locate a web pages.","N/A because the Query builder page is not necessary to contain other means to locate a web pages."]
["2.4.6","AA","Headings and Labels","Headings and labels describe topic or purpose.","PASS","PASS","PASS","PASS","PASS","PASS","PASS","PASS","PASS","PASS","PASS"]
[]
["2.4.7","AA","Focus Visible","Any keyboard operable user interface has a mode of operation where the keyboard focus indicator is visible.","NON COMPLIANT","NON COMPLIANT","NON COMPLIANT","NON COMPLIANT","NON COMPLIANT","NON COMPLIANT","NON COMPLIANT","NON COMPLIANT","NON COMPLIANT","NON COMPLIANT","NON COMPLIANT"]
[null,null,null,null,"The following links should  have a visible focus indicator when they receive keyboard focus but they do not.  Ensure that the outline property that is set to zero is disabled in the *:focus CSS element.","The following links should  have a visible focus indicator when they receive keyboard focus but they do not.  Ensure that the outline property that is set to zero is disabled in the *:focus CSS element.","The following links should  have a visible focus indicator when they receive keyboard focus but they do not.  Ensure that the outline property that is set to none! Important is disabled in the .bint:focus selector.","The following links should  have a visible focus indicator when they receive keyboard focus but they do not.  Ensure that the outline property that is set to 0 is disabled in the *:focus selector and the :focus selector.","The up and down arrow to expand and collapse the accordion for each row does not have a focus indicator. Remove the outline:0 property from the *:focus selector and the :focus selector to see the focus indicator.\n\nThe checkboxes on the page should provide a visible focus indicator on each of them but they do not. The following 4 solutions in order of preference to remedy this issue are:\n1) Do not use native elements at all and build a replacement element from scratch.\n2) Use HTML native radio buttons throughout rather than use replacement checkbox images\n3) Use JavaScript to apply focus to the span tag for the checkbox image\n4) Manipulate the CSS for co-located checkboxes  so that the focus indicator appears around them.\n\n","The accordion up and down arrows to the right side of each text heading (Data provider selections, Location Selections, Date/time selections, Group By) do not have a visible focus indicator.\nRemove the outline:0 property from the *:focus selector and the :focus selector to see the focus indicator.\n\nThe select dropdown buttons that appear in the field or nest fields do not have a visual focus indicator when they review focus.","The combobox should have a form label but does not. Provide a label close to the dropdown. E.g. \n<span>Keyword:</span>\n<select class=\"form-control selectpicker cmb_temporal_col_filter\" data-style=\"btn btn-link\" data-live-search=\"true\" tabindex=\"-98\"\n\nEach select dropdown list / scrollable region should have focusable content and should be selectable by keyboard but does not.  See the following page for a working solution of a scrollable region:  https://dequeuniversity.com/rules/axe/3.4/scrollable-region-focusable?application=AxeChrome","The radio buttons on the page should provide a visible focus indicator on each of them but they do not. The following 4 solutions in order of preference to remedy this issue are:\n1) Do not use native elements at all and build a replacement element from scratch.\n2) Use HTML native radio buttons throughout rather than use replacement radio button images\n3) Use JavaScript to apply focus to the span tag for the radio button image\n4) Manipulate the CSS for co-located radio buttons  so that the focus indicator appears around them.\n\nThe select dropdown list / scrollable region should have focusable content and should be selectable by keyboard but does not.  See the following page for a working solution of a scrollable region:  https://dequeuniversity.com/rules/axe/3.4/scrollable-region-focusable?application=AxeChrome\n","The 'Tags' dropdown list and the 'Shared' dropdown list / scrollable region should provide a visible focus indicator on each of them but they do not.\n See the following page for a working solution of a scrollable region:  https://dequeuniversity.com/rules/axe/3.4/scrollable-region-focusable?application=AxeChrome","The 'Choose from the following' dropdown list / scrollable region should provide a visible focus indicator on each of them but they do not.\n\nSee the following page for a working solution of a scrollable region:  https://dequeuniversity.com/rules/axe/3.4/scrollable-region-focusable?application=AxeChrome","The accordion up and down arrows to the right side of each text heading (Data provider selections, Location Selections, Date/time selections, Group By) do not have a visible focus indicator.\nRemove the outline:0 property from the *:focus selector and the :focus selector to see the focus indicator.\n\nThe select dropdown buttons that appear in the field or nest fields do not have a visual focus indicator when they review focus."]
["W3C Ref.","Level.",null,"Principle 3: Understandable - Information and the operation of user interface must be understandable."]
["3.1.2","AA","Language of Parts","The human language of each passage or phrase in the content can be programmatically determined except for proper names, technical terms, words of indeterminate language, and words or phrases that have become part of the vernacular of the immediately surrounding text.","N/A","N/A","N/A","N/A","N/A","N/A","N/A","N/A","N/A","N/A","N/A"]
[null,null,null,null,"N/A because there is no content that is on the page that is in a different language.","N/A because there is no content that is on the page that is in a different language.","N/A because there is no content that is on the page that is in a different language.","N/A because there is no content that is on the page that is in a different language.","N/A because there is no content that is on the page that is in a different language.","N/A because there is no content that is on the page that is in a different language.","N/A because there is no content that is on the page that is in a different language.","N/A because there is no content that is on the page that is in a different language.","N/A because there is no content that is on the page that is in a different language.","N/A because there is no content that is on the page that is in a different language.","N/A because there is no content that is on the page that is in a different language."]
["3.2.3","AA","Consistent Navigation","Navigational mechanisms that are repeated on multiple Web pages within a set of Web pages occur in the same relative order each time they are repeated, unless a change is initiated by the user.","PASS","PASS","PASS","PASS","PASS","PASS","PASS","PASS","PASS","PASS","PASS"]
[]
["3.2.4","AA","Consistent Identification","Components that have the same functionality within a set of Web pages are identified consistently.","PASS","PASS","PASS","PASS","PASS","PASS","PASS","PASS","PASS","PASS","PASS"]
[]
["3.3.3","AA","Error Suggestion","If an input error is automatically detected and suggestions for correction are known, then the suggestions are provided to the user, unless it would jeopardize the security or purpose of the content.","N/A","N/A","PASS","PASS","PASS","PASS","PASS","PASS","PASS","PASS","PASS"]
[null,null,null,null,"N/A because there are no input errors detected on the page.","N/A because there are no input errors detected on the page."]
["3.3.4","AA","Error Prevention (Legal, Financial, Data)","For Web pages that cause legal commitments or financial transactions for the user to occur, that modify or delete user-controllable data in data storage systems, or that submit user test responses, at least one of the following is true: Reversible, Checked, Confirmed.","N/A","N/A","N/A","N/A","N/A","N/A","N/A","N/A","N/A","N/A","N/A"]
[null,null,null,null,"N/A because there are no input that enables the user to  reverse, verify or confirm or delete legal, financial, or test data.","N/A because there are no input that enables the user to  reverse, verify or confirm or delete legal, financial, or test data.","N/A because there are no input that enables the user to  reverse, verify or confirm or delete legal, financial, or test data.","N/A because there are no input that enables the user to  reverse, verify or confirm or delete legal, financial, or test data.","N/A because there are no input that enables the user to  reverse, verify or confirm or delete legal, financial, or test data.","N/A because there are no input that enables the user to  reverse, verify or confirm or delete legal, financial, or test data.","N/A because there are no input that enables the user to  reverse, verify or confirm or delete legal, financial, or test data.","N/A because there are no input that enables the user to  reverse, verify or confirm or delete legal, financial, or test data.","N/A because there are no input that enables the user to  reverse, verify or confirm or delete legal, financial, or test data.","N/A because there are no input that enables the user to  reverse, verify or confirm or delete legal, financial, or test data.","N/A because there are no input that enables the user to  reverse, verify or confirm or delete legal, financial, or test data."]
["W3C Ref.","Level.",null,"Guideline 4.1 Compatible: Maximize compatibility with current and future user agents, including assistive technologies."]
["4.1.3","AA","Status Messages","In content implemented using mark-up languages, status messages can be programmatically determined through role or properties such that they can be presented to the user by assistive technologies without receiving focus.","N/A","N/A","N/A","N/A","N/A","N/A","N/A","N/A","N/A","N/A","N/A"]
[null,null,null,null,"N/A because there are no important status messages that are presented and focus is not set to that message nor announced to a screen reader on the page.","N/A because there are no important status messages that are presented and focus is not set to that message nor announced to a screen reader on the page.","N/A because there are no important status messages that are presented and focus is not set to that message nor announced to a screen reader on the page.","N/A because there are no important status messages that are presented and focus is not set to that message nor announced to a screen reader on the page.","N/A because there are no important status messages that are presented and focus is not set to that message nor announced to a screen reader on the page.","N/A because there are no important status messages that are presented and focus is not set to that message nor announced to a screen reader on the page.","N/A because there are no important status messages that are presented and focus is not set to that message nor announced to a screen reader on the page.","N/A because there are no important status messages that are presented and focus is not set to that message nor announced to a screen reader on the page.","N/A because there are no important status messages that are presented and focus is not set to that message nor announced to a screen reader on the page.","N/A because there are no important status messages that are presented and focus is not set to that message nor announced to a screen reader on the page.","N/A because there are no important status messages that are presented and focus is not set to that message nor announced to a screen reader on the page."]
[]
[null,null,"Level AAA Success Criteria"]
["W3C Ref.","Level.",null,"Principle 1: Perceivable - Information and user interface components must be presentable to users in ways they can perceive."]
["1.2.6","AAA","Sign Language (Prerecorded)","Sign language interpretation is provided for all prerecorded audio content in synchronized media.","NOT TESTED","NOT TESTED","NOT TESTED","NOT TESTED","NOT TESTED","NOT TESTED","NOT TESTED","NOT TESTED","NOT TESTED","NOT TESTED","NOT TESTED","NOT TESTED","NOT TESTED","NOT TESTED","NOT TESTED","NOT TESTED","NOT TESTED","NOT TESTED","NOT TESTED","NOT TESTED","NOT TESTED","NOT TESTED","NOT TESTED","NOT TESTED","NOT TESTED","NOT TESTED","NOT TESTED","NOT TESTED","NOT TESTED","NOT TESTED","NOT TESTED","NOT TESTED","NOT TESTED","NOT TESTED","NOT TESTED","NOT TESTED","NOT TESTED","NOT TESTED","NOT TESTED","NOT TESTED","NOT TESTED","NOT TESTED","NOT TESTED","NOT TESTED","NOT TESTED","NOT TESTED","NOT TESTED","NOT TESTED","NOT TESTED","NOT TESTED"]
[null,null,null,null,"When testing for compliance with AA, leave all AAA results set to Not Tested.\n\nWhen testing for compliance with AAA, delete the Not Tested result setting from all 50 columns even if fewer than 50 are being tested."]
["1.2.7","AAA","Extended Audio Description (Prerecorded)","Where pauses in foreground audio are insufficient to allow audio descriptions to convey the sense of the video, extended audio description is provided for all prerecorded video content in synchronized media.","NOT TESTED","NOT TESTED","NOT TESTED","NOT TESTED","NOT TESTED","NOT TESTED","NOT TESTED","NOT TESTED","NOT TESTED","NOT TESTED","NOT TESTED","NOT TESTED","NOT TESTED","NOT TESTED","NOT TESTED","NOT TESTED","NOT TESTED","NOT TESTED","NOT TESTED","NOT TESTED","NOT TESTED","NOT TESTED","NOT TESTED","NOT TESTED","NOT TESTED","NOT TESTED","NOT TESTED","NOT TESTED","NOT TESTED","NOT TESTED","NOT TESTED","NOT TESTED","NOT TESTED","NOT TESTED","NOT TESTED","NOT TESTED","NOT TESTED","NOT TESTED","NOT TESTED","NOT TESTED","NOT TESTED","NOT TESTED","NOT TESTED","NOT TESTED","NOT TESTED","NOT TESTED","NOT TESTED","NOT TESTED","NOT TESTED","NOT TESTED"]
[]
["1.2.8","AAA","Media Alternative (Prerecorded)","An alternative for time-based media is provided for all prerecorded synchronized media and for all prerecorded video-only media.","NOT TESTED","NOT TESTED","NOT TESTED","NOT TESTED","NOT TESTED","NOT TESTED","NOT TESTED","NOT TESTED","NOT TESTED","NOT TESTED","NOT TESTED","NOT TESTED","NOT TESTED","NOT TESTED","NOT TESTED","NOT TESTED","NOT TESTED","NOT TESTED","NOT TESTED","NOT TESTED","NOT TESTED","NOT TESTED","NOT TESTED","NOT TESTED","NOT TESTED","NOT TESTED","NOT TESTED","NOT TESTED","NOT TESTED","NOT TESTED","NOT TESTED","NOT TESTED","NOT TESTED","NOT TESTED","NOT TESTED","NOT TESTED","NOT TESTED","NOT TESTED","NOT TESTED","NOT TESTED","NOT TESTED","NOT TESTED","NOT TESTED","NOT TESTED","NOT TESTED","NOT TESTED","NOT TESTED","NOT TESTED","NOT TESTED","NOT TESTED"]
[]
["1.2.9","AAA","Audio-only (Live)","An alternative for time-based media that presents equivalent information for live audio-only content is provided.","NOT TESTED","NOT TESTED","NOT TESTED","NOT TESTED","NOT TESTED","NOT TESTED","NOT TESTED","NOT TESTED","NOT TESTED","NOT TESTED","NOT TESTED","NOT TESTED","NOT TESTED","NOT TESTED","NOT TESTED","NOT TESTED","NOT TESTED","NOT TESTED","NOT TESTED","NOT TESTED","NOT TESTED","NOT TESTED","NOT TESTED","NOT TESTED","NOT TESTED","NOT TESTED","NOT TESTED","NOT TESTED","NOT TESTED","NOT TESTED","NOT TESTED","NOT TESTED","NOT TESTED","NOT TESTED","NOT TESTED","NOT TESTED","NOT TESTED","NOT TESTED","NOT TESTED","NOT TESTED","NOT TESTED","NOT TESTED","NOT TESTED","NOT TESTED","NOT TESTED","NOT TESTED","NOT TESTED","NOT TESTED","NOT TESTED","NOT TESTED"]
[]
["1.3.6","AAA","Identify Purpose","In content implemented using markup languages, the purpose of User Interface Components, icons, and regions can be programmatically determined.","NOT TESTED","NOT TESTED","NOT TESTED","NOT TESTED","NOT TESTED","NOT TESTED","NOT TESTED","NOT TESTED","NOT TESTED","NOT TESTED","NOT TESTED","NOT TESTED","NOT TESTED","NOT TESTED","NOT TESTED","NOT TESTED","NOT TESTED","NOT TESTED","NOT TESTED","NOT TESTED","NOT TESTED","NOT TESTED","NOT TESTED","NOT TESTED","NOT TESTED","NOT TESTED","NOT TESTED","NOT TESTED","NOT TESTED","NOT TESTED","NOT TESTED","NOT TESTED","NOT TESTED","NOT TESTED","NOT TESTED","NOT TESTED","NOT TESTED","NOT TESTED","NOT TESTED","NOT TESTED","NOT TESTED","NOT TESTED","NOT TESTED","NOT TESTED","NOT TESTED","NOT TESTED","NOT TESTED","NOT TESTED","NOT TESTED","NOT TESTED"]
[]
["1.4.6","AAA","Contrast (Enhanced)","The visual presentation of text and images of text has a contrast ratio of at least 7:1, except for the following:\n\nLarge Text: Large-scale text and images of large-scale text have a contrast ratio of at least 4.5:1;\nIncidental: Text or images of text that are part of an inactive user interface component, that are pure decoration, that are not visible to anyone, or that are part of a picture that contains significant other visual content, have no contrast requirement.\nLogotypes: Text that is part of a logo or brand name has no contrast requirement.","NOT TESTED","NOT TESTED","NOT TESTED","NOT TESTED","NOT TESTED","NOT TESTED","NOT TESTED","NOT TESTED","NOT TESTED","NOT TESTED","NOT TESTED","NOT TESTED","NOT TESTED","NOT TESTED","NOT TESTED","NOT TESTED","NOT TESTED","NOT TESTED","NOT TESTED","NOT TESTED","NOT TESTED","NOT TESTED","NOT TESTED","NOT TESTED","NOT TESTED","NOT TESTED","NOT TESTED","NOT TESTED","NOT TESTED","NOT TESTED","NOT TESTED","NOT TESTED","NOT TESTED","NOT TESTED","NOT TESTED","NOT TESTED","NOT TESTED","NOT TESTED","NOT TESTED","NOT TESTED","NOT TESTED","NOT TESTED","NOT TESTED","NOT TESTED","NOT TESTED","NOT TESTED","NOT TESTED","NOT TESTED","NOT TESTED","NOT TESTED"]
[]
["1.4.7","AAA","Low or No Background Audio","For prerecorded audio-only content that (1) contains primarily speech in the foreground, (2) is not an audio CAPTCHA or audio logo, and (3) is not vocalization intended to be primarily musical expression such as singing or rapping, at least one of the following is true:\n\nNo Background: The audio does not contain background sounds.\nTurn Off: The background sounds can be turned off.\n20 dB: The background sounds are at least 20 decibels lower than the foreground speech content, with the exception of occasional sounds that last for only one or two seconds.","NOT TESTED","NOT TESTED","NOT TESTED","NOT TESTED","NOT TESTED","NOT TESTED","NOT TESTED","NOT TESTED","NOT TESTED","NOT TESTED","NOT TESTED","NOT TESTED","NOT TESTED","NOT TESTED","NOT TESTED","NOT TESTED","NOT TESTED","NOT TESTED","NOT TESTED","NOT TESTED","NOT TESTED","NOT TESTED","NOT TESTED","NOT TESTED","NOT TESTED","NOT TESTED","NOT TESTED","NOT TESTED","NOT TESTED","NOT TESTED","NOT TESTED","NOT TESTED","NOT TESTED","NOT TESTED","NOT TESTED","NOT TESTED","NOT TESTED","NOT TESTED","NOT TESTED","NOT TESTED","NOT TESTED","NOT TESTED","NOT TESTED","NOT TESTED","NOT TESTED","NOT TESTED","NOT TESTED","NOT TESTED","NOT TESTED","NOT TESTED"]
[]
["1.4.8","AAA","Visual Presentation","For the visual presentation of blocks of text, a mechanism is available to achieve the following:\n\na) Foreground and background colors can be selected by the user.\nb) Width is no more than 80 characters or glyphs (40 if CJK).\nc) Text is not justified (aligned to both the left and the right margins).\nd) Line spacing (leading) is at least space-and-a-half within paragraphs, and paragraph spacing is at least 1.5 times larger than the line spacing.\ne) Text can be resized without assistive technology up to 200 percent in a way that does not require the user to scroll horizontally to read a line of text on a full-screen window.","NOT TESTED","NOT TESTED","NOT TESTED","NOT TESTED","NOT TESTED","NOT TESTED","NOT TESTED","NOT TESTED","NOT TESTED","NOT TESTED","NOT TESTED","NOT TESTED","NOT TESTED","NOT TESTED","NOT TESTED","NOT TESTED","NOT TESTED","NOT TESTED","NOT TESTED","NOT TESTED","NOT TESTED","NOT TESTED","NOT TESTED","NOT TESTED","NOT TESTED","NOT TESTED","NOT TESTED","NOT TESTED","NOT TESTED","NOT TESTED","NOT TESTED","NOT TESTED","NOT TESTED","NOT TESTED","NOT TESTED","NOT TESTED","NOT TESTED","NOT TESTED","NOT TESTED","NOT TESTED","NOT TESTED","NOT TESTED","NOT TESTED","NOT TESTED","NOT TESTED","NOT TESTED","NOT TESTED","NOT TESTED","NOT TESTED","NOT TESTED"]
[]
["1.4.9","AAA","Images of Text (No Exception)","Images of text are only used for pure decoration or where a particular presentation of text is essential to the information being conveyed.","NOT TESTED","NOT TESTED","NOT TESTED","NOT TESTED","NOT TESTED","NOT TESTED","NOT TESTED","NOT TESTED","NOT TESTED","NOT TESTED","NOT TESTED","NOT TESTED","NOT TESTED","NOT TESTED","NOT TESTED","NOT TESTED","NOT TESTED","NOT TESTED","NOT TESTED","NOT TESTED","NOT TESTED","NOT TESTED","NOT TESTED","NOT TESTED","NOT TESTED","NOT TESTED","NOT TESTED","NOT TESTED","NOT TESTED","NOT TESTED","NOT TESTED","NOT TESTED","NOT TESTED","NOT TESTED","NOT TESTED","NOT TESTED","NOT TESTED","NOT TESTED","NOT TESTED","NOT TESTED","NOT TESTED","NOT TESTED","NOT TESTED","NOT TESTED","NOT TESTED","NOT TESTED","NOT TESTED","NOT TESTED","NOT TESTED","NOT TESTED"]
[]
["2.1.3","AAA","Keyboard (No Exception)","All functionality of the content is operable through a keyboard interface without requiring specific timings for individual keystrokes.","NOT TESTED","NOT TESTED","NOT TESTED","NOT TESTED","NOT TESTED","NOT TESTED","NOT TESTED","NOT TESTED","NOT TESTED","NOT TESTED","NOT TESTED","NOT TESTED","NOT TESTED","NOT TESTED","NOT TESTED","NOT TESTED","NOT TESTED","NOT TESTED","NOT TESTED","NOT TESTED","NOT TESTED","NOT TESTED","NOT TESTED","NOT TESTED","NOT TESTED","NOT TESTED","NOT TESTED","NOT TESTED","NOT TESTED","NOT TESTED","NOT TESTED","NOT TESTED","NOT TESTED","NOT TESTED","NOT TESTED","NOT TESTED","NOT TESTED","NOT TESTED","NOT TESTED","NOT TESTED","NOT TESTED","NOT TESTED","NOT TESTED","NOT TESTED","NOT TESTED","NOT TESTED","NOT TESTED","NOT TESTED","NOT TESTED","NOT TESTED"]
[]
["2.2.3","AAA","No Timing","Timing is not an essential part of the event or activity presented by the content, except for non-interactive synchronized media and real-time events.","NOT TESTED","NOT TESTED","NOT TESTED","NOT TESTED","NOT TESTED","NOT TESTED","NOT TESTED","NOT TESTED","NOT TESTED","NOT TESTED","NOT TESTED","NOT TESTED","NOT TESTED","NOT TESTED","NOT TESTED","NOT TESTED","NOT TESTED","NOT TESTED","NOT TESTED","NOT TESTED","NOT TESTED","NOT TESTED","NOT TESTED","NOT TESTED","NOT TESTED","NOT TESTED","NOT TESTED","NOT TESTED","NOT TESTED","NOT TESTED","NOT TESTED","NOT TESTED","NOT TESTED","NOT TESTED","NOT TESTED","NOT TESTED","NOT TESTED","NOT TESTED","NOT TESTED","NOT TESTED","NOT TESTED","NOT TESTED","NOT TESTED","NOT TESTED","NOT TESTED","NOT TESTED","NOT TESTED","NOT TESTED","NOT TESTED","NOT TESTED"]
[]
["2.2.4","AAA","Interruptions","Interruptions can be postponed or suppressed by the user, except interruptions involving an emergency.","NOT TESTED","NOT TESTED","NOT TESTED","NOT TESTED","NOT TESTED","NOT TESTED","NOT TESTED","NOT TESTED","NOT TESTED","NOT TESTED","NOT TESTED","NOT TESTED","NOT TESTED","NOT TESTED","NOT TESTED","NOT TESTED","NOT TESTED","NOT TESTED","NOT TESTED","NOT TESTED","NOT TESTED","NOT TESTED","NOT TESTED","NOT TESTED","NOT TESTED","NOT TESTED","NOT TESTED","NOT TESTED","NOT TESTED","NOT TESTED","NOT TESTED","NOT TESTED","NOT TESTED","NOT TESTED","NOT TESTED","NOT TESTED","NOT TESTED","NOT TESTED","NOT TESTED","NOT TESTED","NOT TESTED","NOT TESTED","NOT TESTED","NOT TESTED","NOT TESTED","NOT TESTED","NOT TESTED","NOT TESTED","NOT TESTED","NOT TESTED"]
[]
["2.2.5","AAA","Re-authenticating","When an authenticated session expires, the user can continue the activity without loss of data after re-authenticating.","NOT TESTED","NOT TESTED","NOT TESTED","NOT TESTED","NOT TESTED","NOT TESTED","NOT TESTED","NOT TESTED","NOT TESTED","NOT TESTED","NOT TESTED","NOT TESTED","NOT TESTED","NOT TESTED","NOT TESTED","NOT TESTED","NOT TESTED","NOT TESTED","NOT TESTED","NOT TESTED","NOT TESTED","NOT TESTED","NOT TESTED","NOT TESTED","NOT TESTED","NOT TESTED","NOT TESTED","NOT TESTED","NOT TESTED","NOT TESTED","NOT TESTED","NOT TESTED","NOT TESTED","NOT TESTED","NOT TESTED","NOT TESTED","NOT TESTED","NOT TESTED","NOT TESTED","NOT TESTED","NOT TESTED","NOT TESTED","NOT TESTED","NOT TESTED","NOT TESTED","NOT TESTED","NOT TESTED","NOT TESTED","NOT TESTED","NOT TESTED"]
[]
["2.2.6","AAA","Timeouts","Users are warned of the duration of any user inactivity that could cause data loss, unless the data is preserved for more than 20 hours when the user does not take any actions.","NOT TESTED","NOT TESTED","NOT TESTED","NOT TESTED","NOT TESTED","NOT TESTED","NOT TESTED","NOT TESTED","NOT TESTED","NOT TESTED","NOT TESTED","NOT TESTED","NOT TESTED","NOT TESTED","NOT TESTED","NOT TESTED","NOT TESTED","NOT TESTED","NOT TESTED","NOT TESTED","NOT TESTED","NOT TESTED","NOT TESTED","NOT TESTED","NOT TESTED","NOT TESTED","NOT TESTED","NOT TESTED","NOT TESTED","NOT TESTED","NOT TESTED","NOT TESTED","NOT TESTED","NOT TESTED","NOT TESTED","NOT TESTED","NOT TESTED","NOT TESTED","NOT TESTED","NOT TESTED","NOT TESTED","NOT TESTED","NOT TESTED","NOT TESTED","NOT TESTED","NOT TESTED","NOT TESTED","NOT TESTED","NOT TESTED","NOT TESTED"]
[]
["2.3.2","AAA","Three Flashes","Web pages do not contain anything that flashes more than three times in any one second period.","NOT TESTED","NOT TESTED","NOT TESTED","NOT TESTED","NOT TESTED","NOT TESTED","NOT TESTED","NOT TESTED","NOT TESTED","NOT TESTED","NOT TESTED","NOT TESTED","NOT TESTED","NOT TESTED","NOT TESTED","NOT TESTED","NOT TESTED","NOT TESTED","NOT TESTED","NOT TESTED","NOT TESTED","NOT TESTED","NOT TESTED","NOT TESTED","NOT TESTED","NOT TESTED","NOT TESTED","NOT TESTED","NOT TESTED","NOT TESTED","NOT TESTED","NOT TESTED","NOT TESTED","NOT TESTED","NOT TESTED","NOT TESTED","NOT TESTED","NOT TESTED","NOT TESTED","NOT TESTED","NOT TESTED","NOT TESTED","NOT TESTED","NOT TESTED","NOT TESTED","NOT TESTED","NOT TESTED","NOT TESTED","NOT TESTED","NOT TESTED"]
[]
["2.3.3","AAA","Animation from Interactions","Motion animation triggered by interaction can be disabled, unless the animation is essential to the functionality or the information being conveyed.","NOT TESTED","NOT TESTED","NOT TESTED","NOT TESTED","NOT TESTED","NOT TESTED","NOT TESTED","NOT TESTED","NOT TESTED","NOT TESTED","NOT TESTED","NOT TESTED","NOT TESTED","NOT TESTED","NOT TESTED","NOT TESTED","NOT TESTED","NOT TESTED","NOT TESTED","NOT TESTED","NOT TESTED","NOT TESTED","NOT TESTED","NOT TESTED","NOT TESTED","NOT TESTED","NOT TESTED","NOT TESTED","NOT TESTED","NOT TESTED","NOT TESTED","NOT TESTED","NOT TESTED","NOT TESTED","NOT TESTED","NOT TESTED","NOT TESTED","NOT TESTED","NOT TESTED","NOT TESTED","NOT TESTED","NOT TESTED","NOT TESTED","NOT TESTED","NOT TESTED","NOT TESTED","NOT TESTED","NOT TESTED","NOT TESTED","NOT TESTED"]
[]
["2.4.8","AAA","Location","Information about the user's location within a set of Web pages is available.","NOT TESTED","NOT TESTED","NOT TESTED","NOT TESTED","NOT TESTED","NOT TESTED","NOT TESTED","NOT TESTED","NOT TESTED","NOT TESTED","NOT TESTED","NOT TESTED","NOT TESTED","NOT TESTED","NOT TESTED","NOT TESTED","NOT TESTED","NOT TESTED","NOT TESTED","NOT TESTED","NOT TESTED","NOT TESTED","NOT TESTED","NOT TESTED","NOT TESTED","NOT TESTED","NOT TESTED","NOT TESTED","NOT TESTED","NOT TESTED","NOT TESTED","NOT TESTED","NOT TESTED","NOT TESTED","NOT TESTED","NOT TESTED","NOT TESTED","NOT TESTED","NOT TESTED","NOT TESTED","NOT TESTED","NOT TESTED","NOT TESTED","NOT TESTED","NOT TESTED","NOT TESTED","NOT TESTED","NOT TESTED","NOT TESTED","NOT TESTED"]
[]
["2.4.9","AAA","Link Purpose (Link Only)","A mechanism is available to allow the purpose of each link to be identified from link text alone, except where the purpose of the link would be ambiguous to users in general.","NOT TESTED","NOT TESTED","NOT TESTED","NOT TESTED","NOT TESTED","NOT TESTED","NOT TESTED","NOT TESTED","NOT TESTED","NOT TESTED","NOT TESTED","NOT TESTED","NOT TESTED","NOT TESTED","NOT TESTED","NOT TESTED","NOT TESTED","NOT TESTED","NOT TESTED","NOT TESTED","NOT TESTED","NOT TESTED","NOT TESTED","NOT TESTED","NOT TESTED","NOT TESTED","NOT TESTED","NOT TESTED","NOT TESTED","NOT TESTED","NOT TESTED","NOT TESTED","NOT TESTED","NOT TESTED","NOT TESTED","NOT TESTED","NOT TESTED","NOT TESTED","NOT TESTED","NOT TESTED","NOT TESTED","NOT TESTED","NOT TESTED","NOT TESTED","NOT TESTED","NOT TESTED","NOT TESTED","NOT TESTED","NOT TESTED","NOT TESTED"]
[]
["2.4.10","AAA","Section Headings","Section headings are used to organize the content.","NOT TESTED","NOT TESTED","NOT TESTED","NOT TESTED","NOT TESTED","NOT TESTED","NOT TESTED","NOT TESTED","NOT TESTED","NOT TESTED","NOT TESTED","NOT TESTED","NOT TESTED","NOT TESTED","NOT TESTED","NOT TESTED","NOT TESTED","NOT TESTED","NOT TESTED","NOT TESTED","NOT TESTED","NOT TESTED","NOT TESTED","NOT TESTED","NOT TESTED","NOT TESTED","NOT TESTED","NOT TESTED","NOT TESTED","NOT TESTED","NOT TESTED","NOT TESTED","NOT TESTED","NOT TESTED","NOT TESTED","NOT TESTED","NOT TESTED","NOT TESTED","NOT TESTED","NOT TESTED","NOT TESTED","NOT TESTED","NOT TESTED","NOT TESTED","NOT TESTED","NOT TESTED","NOT TESTED","NOT TESTED","NOT TESTED","NOT TESTED"]
[]
["2.5.5","AAA","Target Size","The size of the target for pointer inputs is at least 44 by 44 CSS pixels except when:\n\nEquivalent: The target is available through an equivalent link or control on the same page that is at least 44 by 44 CSS pixels;\nInline: The target is in a sentence or block of text;\nUser Agent Control: The size of the target is determined by the user agent and is not modified by the author;\nEssential: A particular presentation of the target is essential to the information being conveyed.","NOT TESTED","NOT TESTED","NOT TESTED","NOT TESTED","NOT TESTED","NOT TESTED","NOT TESTED","NOT TESTED","NOT TESTED","NOT TESTED","NOT TESTED","NOT TESTED","NOT TESTED","NOT TESTED","NOT TESTED","NOT TESTED","NOT TESTED","NOT TESTED","NOT TESTED","NOT TESTED","NOT TESTED","NOT TESTED","NOT TESTED","NOT TESTED","NOT TESTED","NOT TESTED","NOT TESTED","NOT TESTED","NOT TESTED","NOT TESTED","NOT TESTED","NOT TESTED","NOT TESTED","NOT TESTED","NOT TESTED","NOT TESTED","NOT TESTED","NOT TESTED","NOT TESTED","NOT TESTED","NOT TESTED","NOT TESTED","NOT TESTED","NOT TESTED","NOT TESTED","NOT TESTED","NOT TESTED","NOT TESTED","NOT TESTED","NOT TESTED"]
[]
["2.5.6","AAA","Concurrent Input Mechanisms","Web content does not restrict use of input modalities available on a platform except where the restriction is essential, required to ensure the security of the content, or required to respect user settings.","NOT TESTED","NOT TESTED","NOT TESTED","NOT TESTED","NOT TESTED","NOT TESTED","NOT TESTED","NOT TESTED","NOT TESTED","NOT TESTED","NOT TESTED","NOT TESTED","NOT TESTED","NOT TESTED","NOT TESTED","NOT TESTED","NOT TESTED","NOT TESTED","NOT TESTED","NOT TESTED","NOT TESTED","NOT TESTED","NOT TESTED","NOT TESTED","NOT TESTED","NOT TESTED","NOT TESTED","NOT TESTED","NOT TESTED","NOT TESTED","NOT TESTED","NOT TESTED","NOT TESTED","NOT TESTED","NOT TESTED","NOT TESTED","NOT TESTED","NOT TESTED","NOT TESTED","NOT TESTED","NOT TESTED","NOT TESTED","NOT TESTED","NOT TESTED","NOT TESTED","NOT TESTED","NOT TESTED","NOT TESTED","NOT TESTED","NOT TESTED"]
[]
["3.1.3","AAA","Unusual Words","A mechanism is available for identifying specific definitions of words or phrases used in an unusual or restricted way, including idioms and jargon.","NOT TESTED","NOT TESTED","NOT TESTED","NOT TESTED","NOT TESTED","NOT TESTED","NOT TESTED","NOT TESTED","NOT TESTED","NOT TESTED","NOT TESTED","NOT TESTED","NOT TESTED","NOT TESTED","NOT TESTED","NOT TESTED","NOT TESTED","NOT TESTED","NOT TESTED","NOT TESTED","NOT TESTED","NOT TESTED","NOT TESTED","NOT TESTED","NOT TESTED","NOT TESTED","NOT TESTED","NOT TESTED","NOT TESTED","NOT TESTED","NOT TESTED","NOT TESTED","NOT TESTED","NOT TESTED","NOT TESTED","NOT TESTED","NOT TESTED","NOT TESTED","NOT TESTED","NOT TESTED","NOT TESTED","NOT TESTED","NOT TESTED","NOT TESTED","NOT TESTED","NOT TESTED","NOT TESTED","NOT TESTED","NOT TESTED","NOT TESTED"]
[]
["3.1.4","AAA","Abbreviations","A mechanism for identifying the expanded form or meaning of abbreviations is available.","NOT TESTED","NOT TESTED","NOT TESTED","NOT TESTED","NOT TESTED","NOT TESTED","NOT TESTED","NOT TESTED","NOT TESTED","NOT TESTED","NOT TESTED","NOT TESTED","NOT TESTED","NOT TESTED","NOT TESTED","NOT TESTED","NOT TESTED","NOT TESTED","NOT TESTED","NOT TESTED","NOT TESTED","NOT TESTED","NOT TESTED","NOT TESTED","NOT TESTED","NOT TESTED","NOT TESTED","NOT TESTED","NOT TESTED","NOT TESTED","NOT TESTED","NOT TESTED","NOT TESTED","NOT TESTED","NOT TESTED","NOT TESTED","NOT TESTED","NOT TESTED","NOT TESTED","NOT TESTED","NOT TESTED","NOT TESTED","NOT TESTED","NOT TESTED","NOT TESTED","NOT TESTED","NOT TESTED","NOT TESTED","NOT TESTED","NOT TESTED"]
[]
["3.1.5","AAA","Reading Level","When text requires reading ability more advanced than the lower secondary education level after removal of proper names and titles, supplemental content, or a version that does not require reading ability more advanced than the lower secondary education level, is available.","NOT TESTED","NOT TESTED","NOT TESTED","NOT TESTED","NOT TESTED","NOT TESTED","NOT TESTED","NOT TESTED","NOT TESTED","NOT TESTED","NOT TESTED","NOT TESTED","NOT TESTED","NOT TESTED","NOT TESTED","NOT TESTED","NOT TESTED","NOT TESTED","NOT TESTED","NOT TESTED","NOT TESTED","NOT TESTED","NOT TESTED","NOT TESTED","NOT TESTED","NOT TESTED","NOT TESTED","NOT TESTED","NOT TESTED","NOT TESTED","NOT TESTED","NOT TESTED","NOT TESTED","NOT TESTED","NOT TESTED","NOT TESTED","NOT TESTED","NOT TESTED","NOT TESTED","NOT TESTED","NOT TESTED","NOT TESTED","NOT TESTED","NOT TESTED","NOT TESTED","NOT TESTED","NOT TESTED","NOT TESTED","NOT TESTED","NOT TESTED"]
[]
["3.1.6","AAA","Pronunciation","A mechanism is available for identifying specific pronunciation of words where meaning of the words, in context, is ambiguous without knowing the pronunciation.","NOT TESTED","NOT TESTED","NOT TESTED","NOT TESTED","NOT TESTED","NOT TESTED","NOT TESTED","NOT TESTED","NOT TESTED","NOT TESTED","NOT TESTED","NOT TESTED","NOT TESTED","NOT TESTED","NOT TESTED","NOT TESTED","NOT TESTED","NOT TESTED","NOT TESTED","NOT TESTED","NOT TESTED","NOT TESTED","NOT TESTED","NOT TESTED","NOT TESTED","NOT TESTED","NOT TESTED","NOT TESTED","NOT TESTED","NOT TESTED","NOT TESTED","NOT TESTED","NOT TESTED","NOT TESTED","NOT TESTED","NOT TESTED","NOT TESTED","NOT TESTED","NOT TESTED","NOT TESTED","NOT TESTED","NOT TESTED","NOT TESTED","NOT TESTED","NOT TESTED","NOT TESTED","NOT TESTED","NOT TESTED","NOT TESTED","NOT TESTED"]
[]
["3.2.5","AAA","Change on Request","Changes of context are initiated only by user request or a mechanism is available to turn off such changes.","NOT TESTED","NOT TESTED","NOT TESTED","NOT TESTED","NOT TESTED","NOT TESTED","NOT TESTED","NOT TESTED","NOT TESTED","NOT TESTED","NOT TESTED","NOT TESTED","NOT TESTED","NOT TESTED","NOT TESTED","NOT TESTED","NOT TESTED","NOT TESTED","NOT TESTED","NOT TESTED","NOT TESTED","NOT TESTED","NOT TESTED","NOT TESTED","NOT TESTED","NOT TESTED","NOT TESTED","NOT TESTED","NOT TESTED","NOT TESTED","NOT TESTED","NOT TESTED","NOT TESTED","NOT TESTED","NOT TESTED","NOT TESTED","NOT TESTED","NOT TESTED","NOT TESTED","NOT TESTED","NOT TESTED","NOT TESTED","NOT TESTED","NOT TESTED","NOT TESTED","NOT TESTED","NOT TESTED","NOT TESTED","NOT TESTED","NOT TESTED"]
[]
["3.3.5","AAA","Help","Context-sensitive help is available.","NOT TESTED","NOT TESTED","NOT TESTED","NOT TESTED","NOT TESTED","NOT TESTED","NOT TESTED","NOT TESTED","NOT TESTED","NOT TESTED","NOT TESTED","NOT TESTED","NOT TESTED","NOT TESTED","NOT TESTED","NOT TESTED","NOT TESTED","NOT TESTED","NOT TESTED","NOT TESTED","NOT TESTED","NOT TESTED","NOT TESTED","NOT TESTED","NOT TESTED","NOT TESTED","NOT TESTED","NOT TESTED","NOT TESTED","NOT TESTED","NOT TESTED","NOT TESTED","NOT TESTED","NOT TESTED","NOT TESTED","NOT TESTED","NOT TESTED","NOT TESTED","NOT TESTED","NOT TESTED","NOT TESTED","NOT TESTED","NOT TESTED","NOT TESTED","NOT TESTED","NOT TESTED","NOT TESTED","NOT TESTED","NOT TESTED","NOT TESTED"]
[]
["3.3.6","AAA","Error Prevention (All)","For Web pages that require the user to submit information, at least one of the following is true:\n\nReversible: Submissions are reversible.\nChecked: Data entered by the user is checked for input errors and the user is provided an opportunity to correct them.\nConfirmed: A mechanism is available for reviewing, confirming, and correcting information before finalizing the submission.","NOT TESTED","NOT TESTED","NOT TESTED","NOT TESTED","NOT TESTED","NOT TESTED","NOT TESTED","NOT TESTED","NOT TESTED","NOT TESTED","NOT TESTED","NOT TESTED","NOT TESTED","NOT TESTED","NOT TESTED","NOT TESTED","NOT TESTED","NOT TESTED","NOT TESTED","NOT TESTED","NOT TESTED","NOT TESTED","NOT TESTED","NOT TESTED","NOT TESTED","NOT TESTED","NOT TESTED","NOT TESTED","NOT TESTED","NOT TESTED","NOT TESTED","NOT TESTED","NOT TESTED","NOT TESTED","NOT TESTED","NOT TESTED","NOT TESTED","NOT TESTED","NOT TESTED","NOT TESTED","NOT TESTED","NOT TESTED","NOT TESTED","NOT TESTED","NOT TESTED","NOT TESTED","NOT TESTED","NOT TESTED","NOT TESTED","NOT TESTED"]

{"sheet":"Colour Contrast Analysis","index":3,"n_rows":105,"n_cols":74,"rows_kept":105,"cut":false,"hidden":false,"merged":[[0,0,1,21]]}
["\nColour Contrast Analysis for combinations\nof background and foreground colours",null,null,null,null,null,null,null,null,null,null,null,null,null,null,null,null,null,null,null,null,null,null,null,{"$f":"(Statistics!B14)","v":"Header and footer"},{"$f":"(Statistics!B15)","v":"Sign in"},{"$f":"(Statistics!B16)","v":"Register"},{"$f":"(Statistics!B17)","v":"Home"},{"$f":"(Statistics!B18)","v":"Data Explorer results"},{"$f":"(Statistics!B19)","v":"Query Builder"},{"$f":"(Statistics!B20)","v":"Query Builder expanded with Offence Group overlay"},{"$f":"(Statistics!B21)","v":"Query Builder expanded with Location map overlay"},{"$f":"(Statistics!B22)","v":"Query Builder - Save Query"},{"$f":"(Statistics!B23)","v":"Query Builder - Join"},{"$f":"(Statistics!B24)","v":"Query Builder - Results"},{"$f":"(Statistics!B25)","v":"Page 12"},{"$f":"(Statistics!B26)","v":"Page 13"},{"$f":"(Statistics!B27)","v":"Page 14"},{"$f":"(Statistics!B28)","v":"Page 15"},{"$f":"(Statistics!B29)","v":"Page 16"},{"$f":"(Statistics!B30)","v":"Page 17"},{"$f":"(Statistics!B31)","v":"Page 18"},{"$f":"(Statistics!B32)","v":"Page 19"},{"$f":"(Statistics!B33)","v":"Page 20"},{"$f":"(Statistics!B34)","v":"Page 21"},{"$f":"(Statistics!B35)","v":"Page 22"},{"$f":"(Statistics!B36)","v":"Page 23"},{"$f":"(Statistics!B37)","v":"Page 24"},{"$f":"(Statistics!B38)","v":"Page 25"},{"$f":"(Statistics!B39)","v":"Page 26"},{"$f":"(Statistics!B40)","v":"Page 27"},{"$f":"(Statistics!B41)","v":"Page 28"},{"$f":"(Statistics!B42)","v":"Page 29"},{"$f":"(Statistics!B43)","v":"Page 30"},{"$f":"(Statistics!B44)","v":"Page 31"},{"$f":"(Statistics!B45)","v":"Page 32"},{"$f":"(Statistics!B46)","v":"Page 33"},{"$f":"(Statistics!B47)","v":"Page 34"},{"$f":"(Statistics!B48)","v":"Page 35"},{"$f":"(Statistics!B49)","v":"Page 36"},{"$f":"(Statistics!B50)","v":"Page 37"},{"$f":"(Statistics!B51)","v":"Page 38"},{"$f":"(Statistics!B52)","v":"Page 39"},{"$f":"(Statistics!B53)","v":"Page 40"},{"$f":"(Statistics!B54)","v":"Page 41"},{"$f":"(Statistics!B55)","v":"Page 42"},{"$f":"(Statistics!B56)","v":"Page 43"},{"$f":"(Statistics!B57)","v":"Page 44"},{"$f":"(Statistics!B58)","v":"Page 45"},{"$f":"(Statistics!B59)","v":"Page 46"},{"$f":"(Statistics!B60)","v":"Page 47"},{"$f":"(Statistics!B61)","v":"Page 48"},{"$f":"(Statistics!B62)","v":"Page 49"},{"$f":"(Statistics!B63)","v":"Page 50"}]
[null,null,null,null,null,null,null,null,null,null,null,null,null,null,null,null,null,null,null,null,null,null,null,null,{"$f":"(Statistics!C14)","v":"N/A"},{"$f":"(Statistics!C15)","v":"https://safestats.london.gov.uk"},{"$f":"(Statistics!C16)","v":"https://safestats.london.gov.uk/auth/signup"},{"$f":"(Statistics!C17)","v":"https://safestats.london.gov.uk/safestats/home"},{"$f":"(Statistics!C18)","v":"https://safestats.london.gov.uk/safestats/home"},{"$f":"(Statistics!C19)","v":"https://safestats.london.gov.uk/safestats/home"},{"$f":"(Statistics!C20)","v":"https://safestats.london.gov.uk/safestats/home"},{"$f":"(Statistics!C21)","v":"https://safestats.london.gov.uk/safestats/home"},{"$f":"(Statistics!C22)","v":"https://safestats.london.gov.uk/safestats/home"},{"$f":"(Statistics!C23)","v":"https://safestats.london.gov.uk/safestats/home"},{"$f":"(Statistics!C24)","v":"https://safestats.london.gov.uk/safestats/home"},{"$f":"(Statistics!C25)","v":"URL 12"},{"$f":"(Statistics!C26)","v":"URL 13"},{"$f":"(Statistics!C27)","v":"URL 14"},{"$f":"(Statistics!C28)","v":"URL 15"},{"$f":"(Statistics!C29)","v":"URL 16"},{"$f":"(Statistics!C30)","v":"URL 17"},{"$f":"(Statistics!C31)","v":"URL 18"},{"$f":"(Statistics!C32)","v":"URL 19"},{"$f":"(Statistics!C33)","v":"URL 20"},{"$f":"(Statistics!C34)","v":"URL 21"},{"$f":"(Statistics!C35)","v":"URL 22"},{"$f":"(Statistics!C36)","v":"URL 23"},{"$f":"(Statistics!C37)","v":"URL 24"},{"$f":"(Statistics!C38)","v":"URL 25"},{"$f":"(Statistics!C39)","v":"URL 26"},{"$f":"(Statistics!C40)","v":"URL 27"},{"$f":"(Statistics!C41)","v":"URL 28"},{"$f":"(Statistics!C42)","v":"URL 29"},{"$f":"(Statistics!C43)","v":"URL 30"},{"$f":"(Statistics!C44)","v":"URL 31"},{"$f":"(Statistics!C45)","v":"URL 32"},{"$f":"(Statistics!C46)","v":"URL 33"},{"$f":"(Statistics!C47)","v":"URL 34"},{"$f":"(Statistics!C48)","v":"URL 35"},{"$f":"(Statistics!C49)","v":"URL 36"},{"$f":"(Statistics!C50)","v":"URL 37"},{"$f":"(Statistics!C51)","v":"URL 38"},{"$f":"(Statistics!C52)","v":"URL 39"},{"$f":"(Statistics!C53)","v":"URL 40"},{"$f":"(Statistics!C54)","v":"URL 41"},{"$f":"(Statistics!C55)","v":"URL 42"},{"$f":"(Statistics!C56)","v":"URL 43"},{"$f":"(Statistics!C57)","v":"URL 44"},{"$f":"(Statistics!C58)","v":"URL 45"},{"$f":"(Statistics!C59)","v":"URL 46"},{"$f":"(Statistics!C60)","v":"URL 47"},{"$f":"(Statistics!C61)","v":"URL 48"},{"$f":"(Statistics!C62)","v":"URL 49"},{"$f":"(Statistics!C63)","v":"URL 50"}]
["Page Area","Image","Background\nColour","Foreground Colour","Large (18pt or 14pt bold)","Valid","R RGB","Fail Only","G RGB","G","B RGB","B","Luminance","Valid","R RGB","R","G RGB","G","B RGB","B","Luminance","Contrast Ratio","All Results","Image / Text / Flash"]
["Heading in header",null,"#0465A9","#FFFFFF","No",{"$f":"IF(LEN(C4)=0,\"\",AND(LEFT(C4,1)=\"#\",LEN(C4)=7))","v":true},{"$f":"HEX2DEC(RIGHT(LEFT(C4,3),2))","v":4},{"$f":"IF(G4/255<= 0.03928,G4/(255*12.92),(((G4/255)+0.055)/1.055)^2.4)","v":1.2141079341953501E-3},{"$f":"HEX2DEC(RIGHT(LEFT(C4,5),2))","v":101},{"$f":"IF(I4/255<= 0.03928,I4/(255*12.92),(((I4/255)+0.055)/1.055)^2.4)","v":0.13013647669036432},{"$f":"HEX2DEC(RIGHT(C4,2))","v":169},{"$f":"IF(K4/255<= 0.03928,K4/(255*12.92),(((K4/255)+0.055)/1.055)^2.4)","v":0.39675523072562685},{"$f":"(0.2126*H4)+(0.7152*J4)+(0.0722*L4)","v":0.12197745513414875},{"$f":"IF(LEN(D4)=0,\"\",AND(LEFT(D4,1)=\"#\",LEN(D4)=7))","v":true},{"$f":"HEX2DEC(RIGHT(LEFT(D4,3),2))","v":255},{"$f":"IF(O4/255<= 0.03928,O4/(255*12.92),(((O4/255)+0.055)/1.055)^2.4)","v":1},{"$f":"HEX2DEC(RIGHT(LEFT(D4,5),2))","v":255},{"$f":"IF(Q4/255<= 0.03928,Q4/(255*12.92),(((Q4/255)+0.055)/1.055)^2.4)","v":1},{"$f":"HEX2DEC(RIGHT(D4,2))","v":255},{"$f":"IF(S4/255<= 0.03928,S4/(255*12.92),(((S4/255)+0.055)/1.055)^2.4)","v":1},{"$f":"(0.2126*P4)+(0.7152*R4)+(0.0722*T4)","v":1},{"$f":"IF(OR(F4=\"\",N4=\"\")=TRUE,\"\",IF(OR(F4=FALSE,N4=FALSE)=TRUE,\"ERROR\",ROUND(IF(M4>U4,(M4+0.05)/(U4+0.05),(U4+0.05)/(M4+0.05)),2)))","v":6.11},{"$f":"IF(V4=\"\",\"\",IF(V4>=Comboboxes!A$5,\"Pass\",IF(AND(V4>=Comboboxes!A$6,E4=\"Yes\"),\"Pass†\",\"Fail\")))","v":"Pass"},"Image","Pass AA","Pass AA","Pass AA","N/A","N/A","N/A","N/A","N/A","N/A","N/A","N/A"]
["Button",null,"#0163A4","#FFFFFF","No",true,1,{"$f":"IF(G5/255<= 0.03928,G5/(255*12.92),(((G5/255)+0.055)/1.055)^2.4)","v":3.0352698354883752E-4},99,{"$f":"IF(I5/255<= 0.03928,I5/(255*12.92),(((I5/255)+0.055)/1.055)^2.4)","v":0.12477181756095049},164,{"$f":"IF(K5/255<= 0.03928,K5/(255*12.92),(((K5/255)+0.055)/1.055)^2.4)","v":0.37123768047414912},{"$f":"(0.2126*H5)+(0.7152*J5)+(0.0722*L5)","v":0.11610469428652782},true,255,{"$f":"IF(O5/255<= 0.03928,O5/(255*12.92),(((O5/255)+0.055)/1.055)^2.4)","v":1},255,{"$f":"IF(Q5/255<= 0.03928,Q5/(255*12.92),(((Q5/255)+0.055)/1.055)^2.4)","v":1},255,{"$f":"IF(S5/255<= 0.03928,S5/(255*12.92),(((S5/255)+0.055)/1.055)^2.4)","v":1},{"$f":"(0.2126*P5)+(0.7152*R5)+(0.0722*T5)","v":1},{"$f":"IF(OR(F5=\"\",N5=\"\")=TRUE,\"\",IF(OR(F5=FALSE,N5=FALSE)=TRUE,\"ERROR\",ROUND(IF(M5>U5,(M5+0.05)/(U5+0.05),(U5+0.05)/(M5+0.05)),2)))","v":6.32},{"$f":"IF(V5=\"\",\"\",IF(V5>=Comboboxes!A$5,\"Pass\",IF(AND(V5>=Comboboxes!A$6,E5=\"Yes\"),\"Pass†\",\"Fail\")))","v":"Pass"},"Text","N/A","Pass AA","Pass AA","N/A","N/A","N/A","N/A","N/A","N/A","N/A","N/A"]
["Button (Hover and focus)",null,"#0B5C91","#FFFFFF","No",{"$f":"IF(LEN(C6)=0,\"\",AND(LEFT(C6,1)=\"#\",LEN(C6)=7))","v":true},{"$f":"HEX2DEC(RIGHT(LEFT(C6,3),2))","v":11},{"$f":"IF(G6/255<= 0.03928,G6/(255*12.92),(((G6/255)+0.055)/1.055)^2.4)","v":3.3465357638991591E-3},{"$f":"HEX2DEC(RIGHT(LEFT(C6,5),2))","v":92},{"$f":"IF(I6/255<= 0.03928,I6/(255*12.92),(((I6/255)+0.055)/1.055)^2.4)","v":0.10702310297826761},{"$f":"HEX2DEC(RIGHT(C6,2))","v":145},{"$f":"IF(K6/255<= 0.03928,K6/(255*12.92),(((K6/255)+0.055)/1.055)^2.4)","v":0.28314874042999211},{"$f":"(0.2126*H6)+(0.7152*J6)+(0.0722*L6)","v":9.7697735812507375E-2},{"$f":"IF(LEN(D6)=0,\"\",AND(LEFT(D6,1)=\"#\",LEN(D6)=7))","v":true},{"$f":"HEX2DEC(RIGHT(LEFT(D6,3),2))","v":255},{"$f":"IF(O6/255<= 0.03928,O6/(255*12.92),(((O6/255)+0.055)/1.055)^2.4)","v":1},{"$f":"HEX2DEC(RIGHT(LEFT(D6,5),2))","v":255},{"$f":"IF(Q6/255<= 0.03928,Q6/(255*12.92),(((Q6/255)+0.055)/1.055)^2.4)","v":1},{"$f":"HEX2DEC(RIGHT(D6,2))","v":255},{"$f":"IF(S6/255<= 0.03928,S6/(255*12.92),(((S6/255)+0.055)/1.055)^2.4)","v":1},{"$f":"(0.2126*P6)+(0.7152*R6)+(0.0722*T6)","v":1},7.11,{"$f":"IF(V6=\"\",\"\",IF(V6>=Comboboxes!A$5,\"Pass\",IF(AND(V6>=Comboboxes!A$6,E6=\"Yes\"),\"Pass†\",\"Fail\")))","v":"Pass"},"Text","N/A","Pass AA","Pass AA","N/A","N/A","N/A","N/A","N/A","N/A","N/A","N/A"]
["Label",null,"#FFFFFF","#000000","No",true,255,1,255,1,255,1,1,true,0,0,0,0,0,0,0,21,{"$f":"IF(V7=\"\",\"\",IF(V7>=Comboboxes!A$5,\"Pass\",IF(AND(V7>=Comboboxes!A$6,E7=\"Yes\"),\"Pass†\",\"Fail\")))","v":"Pass"},"Text","N/A","Pass AA","Pass AA","N/A","N/A","N/A","N/A","N/A","N/A","N/A","N/A"]
["Link",null,"#FFFFFF","#0163A4","No",true,255,1,255,1,255,1,1,true,1,3.0352698354883752E-4,99,0.12477181756095049,164,0.37123768047414912,0.11610469428652782,6.32,{"$f":"IF(V8=\"\",\"\",IF(V8>=Comboboxes!A$5,\"Pass\",IF(AND(V8>=Comboboxes!A$6,E8=\"Yes\"),\"Pass†\",\"Fail\")))","v":"Pass"},"Text","N/A","Pass AA","N/A","N/A","N/A","N/A","N/A","N/A","N/A","N/A","N/A"]
["Link (Hover and focus)",null,"#FFFFFF","#014774","No",true,255,1,255,1,255,1,1,true,1,3.0352698354883752E-4,71,6.301001765316766E-2,116,0.17464740365558501,5.773883700618123E-2,9.75,{"$f":"IF(V9=\"\",\"\",IF(V9>=Comboboxes!A$5,\"Pass\",IF(AND(V9>=Comboboxes!A$6,E9=\"Yes\"),\"Pass†\",\"Fail\")))","v":"Pass"},"Text","N/A","Pass AA","N/A","N/A","N/A","N/A","N/A","N/A","N/A","N/A","N/A"]
["Heading",null,"#FFFFFF","#333333","No",true,255,1,255,1,255,1,1,true,51,3.3104766570885055E-2,51,3.3104766570885055E-2,51,3.3104766570885055E-2,3.3104766570885055E-2,{"$f":"IF(OR(F10=\"\",N10=\"\")=TRUE,\"\",IF(OR(F10=FALSE,N10=FALSE)=TRUE,\"ERROR\",ROUND(IF(M10>U10,(M10+0.05)/(U10+0.05),(U10+0.05)/(M10+0.05)),2)))","v":12.63},{"$f":"IF(V10=\"\",\"\",IF(V10>=Comboboxes!A$5,\"Pass\",IF(AND(V10>=Comboboxes!A$6,E10=\"Yes\"),\"Pass†\",\"Fail\")))","v":"Pass"},"Text","N/A","N/A","Pass AA","N/A","N/A","N/A","N/A","N/A","N/A","N/A","N/A"]
["Dropdown text",null,"#FFFFFF","#A2A2A2","No",{"$f":"IF(LEN(C11)=0,\"\",AND(LEFT(C11,1)=\"#\",LEN(C11)=7))","v":true},{"$f":"HEX2DEC(RIGHT(LEFT(C11,3),2))","v":255},{"$f":"IF(G11/255<= 0.03928,G11/(255*12.92),(((G11/255)+0.055)/1.055)^2.4)","v":1},{"$f":"HEX2DEC(RIGHT(LEFT(C11,5),2))","v":255},{"$f":"IF(I11/255<= 0.03928,I11/(255*12.92),(((I11/255)+0.055)/1.055)^2.4)","v":1},{"$f":"HEX2DEC(RIGHT(C11,2))","v":255},{"$f":"IF(K11/255<= 0.03928,K11/(255*12.92),(((K11/255)+0.055)/1.055)^2.4)","v":1},{"$f":"(0.2126*H11)+(0.7152*J11)+(0.0722*L11)","v":1},{"$f":"IF(LEN(D11)=0,\"\",AND(LEFT(D11,1)=\"#\",LEN(D11)=7))","v":true},{"$f":"HEX2DEC(RIGHT(LEFT(D11,3),2))","v":162},{"$f":"IF(O11/255<= 0.03928,O11/(255*12.92),(((O11/255)+0.055)/1.055)^2.4)","v":0.3613067797835095},{"$f":"HEX2DEC(RIGHT(LEFT(D11,5),2))","v":162},{"$f":"IF(Q11/255<= 0.03928,Q11/(255*12.92),(((Q11/255)+0.055)/1.055)^2.4)","v":0.3613067797835095},{"$f":"HEX2DEC(RIGHT(D11,2))","v":162},{"$f":"IF(S11/255<= 0.03928,S11/(255*12.92),(((S11/255)+0.055)/1.055)^2.4)","v":0.3613067797835095},{"$f":"(0.2126*P11)+(0.7152*R11)+(0.0722*T11)","v":0.36130677978350945},{"$f":"IF(OR(F11=\"\",N11=\"\")=TRUE,\"\",IF(OR(F11=FALSE,N11=FALSE)=TRUE,\"ERROR\",ROUND(IF(M11>U11,(M11+0.05)/(U11+0.05),(U11+0.05)/(M11+0.05)),2)))","v":2.5499999999999998},{"$f":"IF(V11=\"\",\"\",IF(V11>=Comboboxes!A$5,\"Pass\",IF(AND(V11>=Comboboxes!A$6,E11=\"Yes\"),\"Pass†\",\"Fail\")))","v":"Fail"},"Text","N/A","N/A","Fail AA","N/A","N/A","N/A","N/A","N/A","N/A","N/A","N/A"]
["Dropdown text (Selected State)",null,"#9C27B0","#FFFFFF","No",true,156,0.33245153634617935,39,2.0288563056652397E-2,176,0.43415363617474889,0.1165354694571324,true,255,1,255,1,255,1,1,6.3,{"$f":"IF(V12=\"\",\"\",IF(V12>=Comboboxes!A$5,\"Pass\",IF(AND(V12>=Comboboxes!A$6,E12=\"Yes\"),\"Pass†\",\"Fail\")))","v":"Pass"},"Text","N/A","N/A","Pass AA","N/A","N/A","N/A","N/A","N/A","N/A","N/A","N/A"]
["Dropdown text (Hover)",null,"#0163A4","#FFFFFF","No",true,1,3.0352698354883752E-4,99,0.12477181756095049,164,0.37123768047414912,0.11610469428652782,true,255,1,255,1,255,1,1,6.32,{"$f":"IF(V13=\"\",\"\",IF(V13>=Comboboxes!A$5,\"Pass\",IF(AND(V13>=Comboboxes!A$6,E13=\"Yes\"),\"Pass†\",\"Fail\")))","v":"Pass"},"Text","N/A","N/A","Pass AA","N/A","N/A","N/A","N/A","N/A","N/A","N/A","N/A"]
["Dropdown text",null,"#333333","#FFFFFF","No",true,51,3.3104766570885055E-2,51,3.3104766570885055E-2,51,3.3104766570885055E-2,3.3104766570885055E-2,true,255,1,255,1,255,1,1,12.63,{"$f":"IF(V14=\"\",\"\",IF(V14>=Comboboxes!A$5,\"Pass\",IF(AND(V14>=Comboboxes!A$6,E14=\"Yes\"),\"Pass†\",\"Fail\")))","v":"Pass"},"Text","N/A","N/A","Pass AA","N/A","N/A","N/A","N/A","N/A","N/A","N/A","N/A"]
["Button (Hover and focus)",null,"#65268A","#FFFFFF","No",true,101,0.13013647669036432,38,1.9382360956935723E-2,138,0.25415209433082675,5.9879060711457571E-2,true,255,1,255,1,255,1,1,9.56,{"$f":"IF(V15=\"\",\"\",IF(V15>=Comboboxes!A$5,\"Pass\",IF(AND(V15>=Comboboxes!A$6,E15=\"Yes\"),\"Pass†\",\"Fail\")))","v":"Pass"},"Text","N/A","N/A","Pass AA","N/A","N/A","N/A","N/A","N/A","N/A","N/A","N/A"]
["Header Link Text",null,"#0AA0CE","#FFFFFF","No",true,10,3.0352698354883748E-3,160,0.35153259950043936,206,0.61720656241965111,0.29662372733643783,true,255,1,255,1,255,1,1,3.03,{"$f":"IF(V16=\"\",\"\",IF(V16>=Comboboxes!A$5,\"Pass\",IF(AND(V16>=Comboboxes!A$6,E16=\"Yes\"),\"Pass†\",\"Fail\")))","v":"Fail"},"Text","Fail AA","N/A","N/A","N/A","N/A","N/A","N/A","N/A","N/A","N/A","N/A"]
["Footer Link Text",null,"#EEEEEE","#3C4858","No",true,238,0.85499260812423383,238,0.85499260812423383,238,0.85499260812423383,0.85499260812423383,true,60,4.5186204385675541E-2,72,6.48032666929058E-2,88,9.7587347141862429E-2,6.2999689854803323E-2,8.01,{"$f":"IF(V17=\"\",\"\",IF(V17>=Comboboxes!A$5,\"Pass\",IF(AND(V17>=Comboboxes!A$6,E17=\"Yes\"),\"Pass†\",\"Fail\")))","v":"Pass"},"Text","Pass AA","N/A","N/A","N/A","N/A","N/A","N/A","N/A","N/A","N/A","N/A"]
["Heading text",null,"#FFFFFF","#3C4858","Yes",{"$f":"IF(LEN(C18)=0,\"\",AND(LEFT(C18,1)=\"#\",LEN(C18)=7))","v":true},{"$f":"HEX2DEC(RIGHT(LEFT(C18,3),2))","v":255},{"$f":"IF(G18/255<= 0.03928,G18/(255*12.92),(((G18/255)+0.055)/1.055)^2.4)","v":1},{"$f":"HEX2DEC(RIGHT(LEFT(C18,5),2))","v":255},{"$f":"IF(I18/255<= 0.03928,I18/(255*12.92),(((I18/255)+0.055)/1.055)^2.4)","v":1},{"$f":"HEX2DEC(RIGHT(C18,2))","v":255},{"$f":"IF(K18/255<= 0.03928,K18/(255*12.92),(((K18/255)+0.055)/1.055)^2.4)","v":1},{"$f":"(0.2126*H18)+(0.7152*J18)+(0.0722*L18)","v":1},{"$f":"IF(LEN(D18)=0,\"\",AND(LEFT(D18,1)=\"#\",LEN(D18)=7))","v":true},{"$f":"HEX2DEC(RIGHT(LEFT(D18,3),2))","v":60},{"$f":"IF(O18/255<= 0.03928,O18/(255*12.92),(((O18/255)+0.055)/1.055)^2.4)","v":4.5186204385675541E-2},{"$f":"HEX2DEC(RIGHT(LEFT(D18,5),2))","v":72},{"$f":"IF(Q18/255<= 0.03928,Q18/(255*12.92),(((Q18/255)+0.055)/1.055)^2.4)","v":6.48032666929058E-2},{"$f":"HEX2DEC(RIGHT(D18,2))","v":88},{"$f":"IF(S18/255<= 0.03928,S18/(255*12.92),(((S18/255)+0.055)/1.055)^2.4)","v":9.7587347141862429E-2},{"$f":"(0.2126*P18)+(0.7152*R18)+(0.0722*T18)","v":6.2999689854803323E-2},{"$f":"IF(OR(F18=\"\",N18=\"\")=TRUE,\"\",IF(OR(F18=FALSE,N18=FALSE)=TRUE,\"ERROR\",ROUND(IF(M18>U18,(M18+0.05)/(U18+0.05),(U18+0.05)/(M18+0.05)),2)))","v":9.2899999999999991},{"$f":"IF(V18=\"\",\"\",IF(V18>=Comboboxes!A$5,\"Pass\",IF(AND(V18>=Comboboxes!A$6,E18=\"Yes\"),\"Pass†\",\"Fail\")))","v":"Pass"},"Text","N/A","N/A","N/A","Pass AA","N/A","N/A","N/A","N/A","N/A","N/A","N/A"]
["Body Text",null,"#FFFFFF","#999999","No",true,255,1,255,1,255,1,1,true,153,0.31854677812509186,153,0.31854677812509186,153,0.31854677812509186,0.31854677812509186,2.85,{"$f":"IF(V19=\"\",\"\",IF(V19>=Comboboxes!A$5,\"Pass\",IF(AND(V19>=Comboboxes!A$6,E19=\"Yes\"),\"Pass†\",\"Fail\")))","v":"Fail"},"Text","N/A","N/A","N/A","Fail AA","N/A","N/A","N/A","N/A","N/A","N/A","N/A"]
["Heading Text",null,"#FFFFFF","#0163A4","No",true,255,1,255,1,255,1,1,true,1,3.0352698354883752E-4,99,0.12477181756095049,164,0.37123768047414912,0.11610469428652782,6.32,{"$f":"IF(V20=\"\",\"\",IF(V20>=Comboboxes!A$5,\"Pass\",IF(AND(V20>=Comboboxes!A$6,E20=\"Yes\"),\"Pass†\",\"Fail\")))","v":"Pass"},"Text","N/A","N/A","N/A","N/A","Pass AA","N/A","N/A","N/A","N/A","N/A","N/A"]
["Heading text",null,"#FFFFFF","#65268A","No",true,255,1,255,1,255,1,1,true,101,0.13013647669036432,38,1.9382360956935723E-2,138,0.25415209433082675,5.9879060711457571E-2,9.56,{"$f":"IF(V21=\"\",\"\",IF(V21>=Comboboxes!A$5,\"Pass\",IF(AND(V21>=Comboboxes!A$6,E21=\"Yes\"),\"Pass†\",\"Fail\")))","v":"Pass"},"Text","N/A","N/A","N/A","N/A","Pass AA","N/A","N/A","N/A","N/A","N/A","N/A"]
["Button (Hover and focus)",null,"#65268A","#FFFFFF","No",true,101,0.13013647669036432,38,1.9382360956935723E-2,138,0.25415209433082675,5.9879060711457571E-2,true,255,1,255,1,255,1,1,9.56,{"$f":"IF(V22=\"\",\"\",IF(V22>=Comboboxes!A$5,\"Pass\",IF(AND(V22>=Comboboxes!A$6,E22=\"Yes\"),\"Pass†\",\"Fail\")))","v":"Pass"},"Text","N/A","N/A","N/A","N/A","Pass AA","N/A","N/A","N/A","N/A","N/A","N/A"]
["Button",null,"#0163A4","#FFFFFF","No",true,1,3.0352698354883752E-4,99,0.12477181756095049,164,0.37123768047414912,0.11610469428652782,true,255,1,255,1,255,1,1,6.32,{"$f":"IF(V23=\"\",\"\",IF(V23>=Comboboxes!A$5,\"Pass\",IF(AND(V23>=Comboboxes!A$6,E23=\"Yes\"),\"Pass†\",\"Fail\")))","v":"Pass"},"Text","N/A","N/A","N/A","N/A","Pass AA","N/A","N/A","N/A","N/A","N/A","N/A"]
["Button (Hover and focus)",null,"#0B5C91","#FFFFFF","No",true,11,3.3465357638991591E-3,92,0.10702310297826761,145,0.28314874042999211,9.7697735812507375E-2,true,255,1,255,1,255,1,1,7.11,{"$f":"IF(V24=\"\",\"\",IF(V24>=Comboboxes!A$5,\"Pass\",IF(AND(V24>=Comboboxes!A$6,E24=\"Yes\"),\"Pass†\",\"Fail\")))","v":"Pass"},"Text","N/A","N/A","N/A","N/A","Pass AA","N/A","N/A","N/A","N/A","N/A","N/A"]
["Button",null,"#00BCD4","#FFFFFF","No",true,0,0,188,0.50288645803256871,212,0.65837481727944847,0.40719905659246924,true,255,1,255,1,255,1,1,2.2999999999999998,{"$f":"IF(V25=\"\",\"\",IF(V25>=Comboboxes!A$5,\"Pass\",IF(AND(V25>=Comboboxes!A$6,E25=\"Yes\"),\"Pass†\",\"Fail\")))","v":"Fail"},"Text","N/A","N/A","N/A","N/A","Pass AA","N/A","N/A","N/A","N/A","N/A","N/A"]
["Button (Hover and focus)",null,"#00AEC5","#FFFFFF","No",true,0,0,174,0.42326766998607168,197,0.5583403896342678,0.34303321370563261,true,255,1,255,1,255,1,1,2.67,{"$f":"IF(V26=\"\",\"\",IF(V26>=Comboboxes!A$5,\"Pass\",IF(AND(V26>=Comboboxes!A$6,E26=\"Yes\"),\"Pass†\",\"Fail\")))","v":"Fail"},"Text","N/A","N/A","N/A","N/A","Pass AA","N/A","N/A","N/A","N/A","N/A","N/A"]
["Button (Hover and focus)",null,"#65268A","#FFFFFF","No",true,101,0.13013647669036432,38,1.9382360956935723E-2,138,0.25415209433082675,5.9879060711457571E-2,true,255,1,255,1,255,1,1,9.56,{"$f":"IF(V27=\"\",\"\",IF(V27>=Comboboxes!A$5,\"Pass\",IF(AND(V27>=Comboboxes!A$6,E27=\"Yes\"),\"Pass†\",\"Fail\")))","v":"Pass"},"Text","N/A","N/A","N/A","N/A","Pass AA","N/A","N/A","N/A","N/A","N/A","N/A"]
["Header Link Text",null,"#0DB2DB","#FFFFFF","No",true,13,4.0247170184963084E-3,178,0.44520119451622792,219,0.70837577989168687,0.37040828046431834,true,255,1,255,1,255,1,1,2.5,{"$f":"IF(V28=\"\",\"\",IF(V28>=Comboboxes!A$5,\"Pass\",IF(AND(V28>=Comboboxes!A$6,E28=\"Yes\"),\"Pass†\",\"Fail\")))","v":"Fail"},"Text","N/A","N/A","N/A","N/A","Fail AA","N/A","N/A","N/A","N/A","N/A","N/A"]
["Header Link Text",null,"#057FB7","#FFFFFF","No",true,5,1.5176349177441874E-3,127,0.21223075741405523,183,0.47353149614800955,0.18629906090793097,true,255,1,255,1,255,1,1,4.4400000000000004,{"$f":"IF(V29=\"\",\"\",IF(V29>=Comboboxes!A$5,\"Pass\",IF(AND(V29>=Comboboxes!A$6,E29=\"Yes\"),\"Pass†\",\"Fail\")))","v":"Fail"},"Text","N/A","N/A","N/A","N/A","Fail AA","N/A","N/A","N/A","N/A","N/A","N/A"]
["Header Link Text",null,"#0062A3","#FFFFFF","No",true,0,0,98,0.12213877222960189,163,0.36625259559883949,0.11379708730084748,true,255,1,255,1,255,1,1,6.41,{"$f":"IF(V30=\"\",\"\",IF(V30>=Comboboxes!A$5,\"Pass\",IF(AND(V30>=Comboboxes!A$6,E30=\"Yes\"),\"Pass†\",\"Fail\")))","v":"Pass"},"Text","N/A","N/A","N/A","N/A","Pass AA","N/A","N/A","N/A","N/A","N/A","N/A"]
["Heading text",null,"#FFFFFF","#0B5C91","No",true,255,1,255,1,255,1,1,true,11,3.3465357638991591E-3,92,0.10702310297826761,145,0.28314874042999211,9.7697735812507375E-2,7.11,{"$f":"IF(V31=\"\",\"\",IF(V31>=Comboboxes!A$5,\"Pass\",IF(AND(V31>=Comboboxes!A$6,E31=\"Yes\"),\"Pass†\",\"Fail\")))","v":"Pass"},"Text","N/A","N/A","N/A","N/A","Pass AA","N/A","N/A","N/A","N/A","N/A","N/A"]
["Heading text",null,"#FFFFFF","#000000","No",true,255,1,255,1,255,1,1,true,0,0,0,0,0,0,0,21,{"$f":"IF(V32=\"\",\"\",IF(V32>=Comboboxes!A$5,\"Pass\",IF(AND(V32>=Comboboxes!A$6,E32=\"Yes\"),\"Pass†\",\"Fail\")))","v":"Pass"},"Text","N/A","N/A","N/A","N/A","Pass AA","N/A","N/A","N/A","N/A","N/A","N/A"]
["Table text",null,"#FFFFFF","#333333","No",true,255,1,255,1,255,1,1,true,51,3.3104766570885055E-2,51,3.3104766570885055E-2,51,3.3104766570885055E-2,3.3104766570885055E-2,12.63,{"$f":"IF(V33=\"\",\"\",IF(V33>=Comboboxes!A$5,\"Pass\",IF(AND(V33>=Comboboxes!A$6,E33=\"Yes\"),\"Pass†\",\"Fail\")))","v":"Pass"},"Text","N/A","N/A","N/A","N/A","Pass AA","N/A","N/A","N/A","N/A","N/A","N/A"]
["Input box text",null,"#757575","#FFFFFF","No",true,117,0.17788841598362914,117,0.17788841598362914,117,0.17788841598362914,0.17788841598362912,true,255,1,255,1,255,1,1,4.6100000000000003,{"$f":"IF(V34=\"\",\"\",IF(V34>=Comboboxes!A$5,\"Pass\",IF(AND(V34>=Comboboxes!A$6,E34=\"Yes\"),\"Pass†\",\"Fail\")))","v":"Pass"},"Text","N/A","N/A","N/A","N/A","Pass AA","N/A","N/A","N/A","N/A","N/A","N/A"]
["Header text",null,"#EEEEEE","#0162A3","Yes",true,238,0.85499260812423383,238,0.85499260812423383,238,0.85499260812423383,0.85499260812423383,true,1,3.0352698354883752E-4,98,0.12213877222960189,163,0.36625259559883949,0.11386161713754994,5.52,{"$f":"IF(V35=\"\",\"\",IF(V35>=Comboboxes!A$5,\"Pass\",IF(AND(V35>=Comboboxes!A$6,E35=\"Yes\"),\"Pass†\",\"Fail\")))","v":"Pass"},"Text","N/A","N/A","N/A","N/A","N/A","Pass AA","N/A","N/A","N/A","N/A","N/A"]
["Heading text",null,"#FFFFFF","#3C485D","No",true,255,1,255,1,255,1,1,true,60,4.5186204385675541E-2,72,6.48032666929058E-2,93,0.10946171077829935,6.3857018909354066E-2,9.2200000000000006,{"$f":"IF(V36=\"\",\"\",IF(V36>=Comboboxes!A$5,\"Pass\",IF(AND(V36>=Comboboxes!A$6,E36=\"Yes\"),\"Pass†\",\"Fail\")))","v":"Pass"},"Text","N/A","N/A","N/A","N/A","N/A","Pass AA","N/A","N/A","N/A","N/A","N/A"]
["Heading text",null,"#FFFFFF","#0078C7","No",true,255,1,255,1,255,1,1,true,0,0,120,0.18782077230067784,199,0.57112482946487308,0.17556462903680864,4.6500000000000004,{"$f":"IF(V37=\"\",\"\",IF(V37>=Comboboxes!A$5,\"Pass\",IF(AND(V37>=Comboboxes!A$6,E37=\"Yes\"),\"Pass†\",\"Fail\")))","v":"Pass"},"Text","N/A","N/A","N/A","N/A","N/A","Pass AA","N/A","N/A","N/A","N/A","N/A"]
["UnselectedToggle button",null,"#FFFFFF","#2196F3","No",true,255,1,255,1,255,1,1,true,33,1.5208514422912713E-2,150,0.30498731406988622,243,0.89626935337426639,0.28607090450271588,3.12,{"$f":"IF(V38=\"\",\"\",IF(V38>=Comboboxes!A$5,\"Pass\",IF(AND(V38>=Comboboxes!A$6,E38=\"Yes\"),\"Pass†\",\"Fail\")))","v":"Fail"},"Text","N/A","N/A","N/A","N/A","N/A","Fail AA","N/A","N/A","N/A","N/A","N/A"]
["Unselected Toggle button (Hover)",null,"#2196F3","#FFFFFF","No",true,33,1.5208514422912713E-2,150,0.30498731406988622,243,0.89626935337426639,{"$f":"(0.2126*H39)+(0.7152*J39)+(0.0722*L39)","v":0.28607090450271588},true,255,1,255,1,255,1,{"$f":"(0.2126*P39)+(0.7152*R39)+(0.0722*T39)","v":1},3.12,{"$f":"IF(V39=\"\",\"\",IF(V39>=Comboboxes!A$5,\"Pass\",IF(AND(V39>=Comboboxes!A$6,E39=\"Yes\"),\"Pass†\",\"Fail\")))","v":"Fail"},"Text","N/A","N/A","N/A","N/A","N/A","Fail AA","N/A","N/A","N/A","N/A","N/A"]
["Selected Toggle button ",null,"#2196F3","#FFFFFF","No",true,33,1.5208514422912713E-2,150,0.30498731406988622,243,0.89626935337426639,0.28607090450271588,true,255,1,255,1,255,1,1,3.12,{"$f":"IF(V40=\"\",\"\",IF(V40>=Comboboxes!A$5,\"Pass\",IF(AND(V40>=Comboboxes!A$6,E40=\"Yes\"),\"Pass†\",\"Fail\")))","v":"Fail"},"Text","N/A","N/A","N/A","N/A","N/A","Fail AA","N/A","N/A","N/A","N/A","N/A"]
["Selected Toggle button (Hover)",null,"#0C83E2","#FFFFFF","No",true,12,3.6765073240474337E-3,131,0.22696587351009834,226,0.76052450467529242,0.21801748742907093,true,255,1,255,1,255,1,1,3.92,{"$f":"IF(V41=\"\",\"\",IF(V41>=Comboboxes!A$5,\"Pass\",IF(AND(V41>=Comboboxes!A$6,E41=\"Yes\"),\"Pass†\",\"Fail\")))","v":"Fail"},"Text","N/A","N/A","N/A","N/A","N/A","Fail AA","N/A","N/A","N/A","N/A","N/A"]
["Add Field Button",null,"#4CAF50","#FFFFFF","No",true,76,7.2271850682317465E-2,175,0.42869049661390662,80,8.0219820314468296E-2,0.32775630966003128,true,255,1,255,1,255,1,1,2.78,{"$f":"IF(V42=\"\",\"\",IF(V42>=Comboboxes!A$5,\"Pass\",IF(AND(V42>=Comboboxes!A$6,E42=\"Yes\"),\"Pass†\",\"Fail\")))","v":"Fail"},"Text","N/A","N/A","N/A","N/A","N/A","Fail AA","N/A","N/A","N/A","N/A","N/A"]
["Add Field Button (Hover)",null,"#409444","#FFFFFF","No",true,64,5.1269458374043231E-2,148,0.29613827079832111,68,5.7805430191067216E-2,0.22687153018507589,true,255,1,255,1,255,1,1,3.79,{"$f":"IF(V43=\"\",\"\",IF(V43>=Comboboxes!A$5,\"Pass\",IF(AND(V43>=Comboboxes!A$6,E43=\"Yes\"),\"Pass†\",\"Fail\")))","v":"Fail"},"Text","N/A","N/A","N/A","N/A","N/A","Fail AA","N/A","N/A","N/A","N/A","N/A"]
["Drop down list text",null,"#FFFFFF","#999999","No",true,255,1,255,1,255,1,1,true,153,0.31854677812509186,153,0.31854677812509186,153,0.31854677812509186,0.31854677812509186,2.85,{"$f":"IF(V44=\"\",\"\",IF(V44>=Comboboxes!A$5,\"Pass\",IF(AND(V44>=Comboboxes!A$6,E44=\"Yes\"),\"Pass†\",\"Fail\")))","v":"Fail"},"Text","N/A","N/A","N/A","N/A","N/A","Fail AA","N/A","N/A","N/A","N/A","N/A"]
["Selected Toggle button  (Disabled)",null,"#FFFFFF","#808080","No",true,255,1,255,1,255,1,1,true,128,0.21586050011389923,128,0.21586050011389923,128,0.21586050011389923,0.21586050011389921,3.95,{"$f":"IF(V45=\"\",\"\",IF(V45>=Comboboxes!A$5,\"Pass\",IF(AND(V45>=Comboboxes!A$6,E45=\"Yes\"),\"Pass†\",\"Fail\")))","v":"Fail"},"Text","N/A","N/A","N/A","N/A","N/A","Fail AA","N/A","N/A","N/A","N/A","N/A"]
["Button",null,"#4CAF50","#FFFFFF","No",true,76,7.2271850682317465E-2,175,0.42869049661390662,80,8.0219820314468296E-2,0.32775630966003128,true,255,1,255,1,255,1,1,2.78,{"$f":"IF(V46=\"\",\"\",IF(V46>=Comboboxes!A$5,\"Pass\",IF(AND(V46>=Comboboxes!A$6,E46=\"Yes\"),\"Pass†\",\"Fail\")))","v":"Fail"},"Text","N/A","N/A","N/A","N/A","N/A","Fail AA","N/A","N/A","N/A","N/A","N/A"]
["Button (Hover and focus)",null,"#47A44B","#FFFFFF","No",true,71,6.301001765316766E-2,164,0.37123768047414912,75,7.0360095696595876E-2,0.28398511773746915,true,255,1,255,1,255,1,1,3.14,{"$f":"IF(V47=\"\",\"\",IF(V47>=Comboboxes!A$5,\"Pass\",IF(AND(V47>=Comboboxes!A$6,E47=\"Yes\"),\"Pass†\",\"Fail\")))","v":"Fail"},"Text","N/A","N/A","N/A","N/A","N/A","Fail AA","N/A","N/A","N/A","N/A","N/A"]
["Button",null,"#0163A4","#FFFFFF","No",true,1,3.0352698354883752E-4,99,0.12477181756095049,164,0.37123768047414912,0.11610469428652782,true,255,1,255,1,255,1,1,6.32,{"$f":"IF(V48=\"\",\"\",IF(V48>=Comboboxes!A$5,\"Pass\",IF(AND(V48>=Comboboxes!A$6,E48=\"Yes\"),\"Pass†\",\"Fail\")))","v":"Pass"},"Text","N/A","N/A","N/A","N/A","N/A","Pass AA","N/A","N/A","N/A","N/A","N/A"]
["Button (Hover and focus)",null,"#0B5C91","#FFFFFF","No",true,11,3.3465357638991591E-3,92,0.10702310297826761,145,0.28314874042999211,9.7697735812507375E-2,true,255,1,255,1,255,1,1,7.11,{"$f":"IF(V49=\"\",\"\",IF(V49>=Comboboxes!A$5,\"Pass\",IF(AND(V49>=Comboboxes!A$6,E49=\"Yes\"),\"Pass†\",\"Fail\")))","v":"Pass"},"Text","N/A","N/A","N/A","N/A","N/A","Pass AA","N/A","N/A","N/A","N/A","N/A"]
["Button",null,"#B7B7B7","#FFFFFF","No",true,183,0.47353149614800955,183,0.47353149614800955,183,0.47353149614800955,0.47353149614800955,true,255,1,255,1,255,1,1,2.0099999999999998,{"$f":"IF(V50=\"\",\"\",IF(V50>=Comboboxes!A$5,\"Pass\",IF(AND(V50>=Comboboxes!A$6,E50=\"Yes\"),\"Pass†\",\"Fail\")))","v":"Fail"},"Text","N/A","N/A","N/A","N/A","N/A","Fail AA","N/A","N/A","N/A","N/A","N/A"]
["Button (Hover and focus)",null,"#F9B653","#FFFFFF","No",{"$f":"IF(LEN(C51)=0,\"\",AND(LEFT(C51,1)=\"#\",LEN(C51)=7))","v":true},{"$f":"HEX2DEC(RIGHT(LEFT(C51,3),2))","v":249},0.94730653673319987,{"$f":"HEX2DEC(RIGHT(LEFT(C51,5),2))","v":182},0.46778379611215898,{"$f":"HEX2DEC(RIGHT(C51,2))","v":83},8.6500462036549777E-2,{"$f":"(0.2126*H51)+(0.7152*J51)+(0.0722*L51)","v":0.54220167404793318},{"$f":"IF(LEN(D51)=0,\"\",AND(LEFT(D51,1)=\"#\",LEN(D51)=7))","v":true},{"$f":"HEX2DEC(RIGHT(LEFT(D51,3),2))","v":255},1,{"$f":"HEX2DEC(RIGHT(LEFT(D51,5),2))","v":255},1,{"$f":"HEX2DEC(RIGHT(D51,2))","v":255},1,{"$f":"(0.2126*P51)+(0.7152*R51)+(0.0722*T51)","v":1},{"$f":"IF(OR(F51=\"\",N51=\"\")=TRUE,\"\",IF(OR(F51=FALSE,N51=FALSE)=TRUE,\"ERROR\",ROUND(IF(M51>U51,(M51+0.05)/(U51+0.05),(U51+0.05)/(M51+0.05)),2)))","v":1.77},{"$f":"IF(V51=\"\",\"\",IF(V51>=Comboboxes!A$5,\"Pass\",IF(AND(V51>=Comboboxes!A$6,E51=\"Yes\"),\"Pass†\",\"Fail\")))","v":"Fail"},"Text","N/A","N/A","N/A","N/A","N/A","Fail AA","N/A","N/A","N/A","N/A","N/A"]
["Navigation link ",null,"#DADDF","#222122","No",false,218,0.70110189193297312,221,0.72305512892196921,223,0.73791040877273095,0.71946042194333359,true,34,1.5996293365509635E-2,33,1.5208514422912713E-2,34,1.5996293365509635E-2,1.5432873865764318E-2,"ERROR",{"$f":"IF(V52=\"\",\"\",IF(V52>=Comboboxes!A$5,\"Pass\",IF(AND(V52>=Comboboxes!A$6,E52=\"Yes\"),\"Pass†\",\"Fail\")))","v":"Pass"},"Text","N/A","N/A","N/A","N/A","N/A","Pass AA","N/A","N/A","N/A","N/A","N/A"]
["Navigation link ",null,"#D3D4D5","#222122","No",true,211,0.65140563741982416,212,0.65837481727944847,213,0.66538729828227205,0.65739947076969618,true,34,1.5996293365509635E-2,33,1.5208514422912713E-2,34,1.5996293365509635E-2,1.5432873865764318E-2,10.81,{"$f":"IF(V53=\"\",\"\",IF(V53>=Comboboxes!A$5,\"Pass\",IF(AND(V53>=Comboboxes!A$6,E53=\"Yes\"),\"Pass†\",\"Fail\")))","v":"Pass"},"Text","N/A","N/A","N/A","N/A","N/A","Pass AA","N/A","N/A","N/A","N/A","N/A"]
["Navigation link ",null,"#DADDDF","#0163A4","No",true,218,0.70110189193297312,221,0.72305512892196921,223,0.73791040877273095,0.71946042194333359,true,1,3.0352698354883752E-4,99,0.12477181756095049,164,0.37123768047414912,0.11610469428652782,4.63,{"$f":"IF(V54=\"\",\"\",IF(V54>=Comboboxes!A$5,\"Pass\",IF(AND(V54>=Comboboxes!A$6,E54=\"Yes\"),\"Pass†\",\"Fail\")))","v":"Pass"},"Text","N/A","N/A","N/A","N/A","N/A","Pass AA","N/A","N/A","N/A","N/A","N/A"]
["Navigation link ",null,"#D3D4D5","#0163A4","No",true,211,0.65140563741982416,212,0.65837481727944847,213,0.66538729828227205,0.65739947076969618,true,1,3.0352698354883752E-4,99,0.12477181756095049,164,0.37123768047414912,0.11610469428652782,4.26,{"$f":"IF(V55=\"\",\"\",IF(V55>=Comboboxes!A$5,\"Pass\",IF(AND(V55>=Comboboxes!A$6,E55=\"Yes\"),\"Pass†\",\"Fail\")))","v":"Fail"},"Text","N/A","N/A","N/A","N/A","N/A","Fail AA","N/A","N/A","N/A","N/A","N/A"]
["Button",null,"#0163A4","#FFFFFF","No",true,1,3.0352698354883752E-4,99,0.12477181756095049,164,0.37123768047414912,0.11610469428652782,true,255,1,255,1,255,1,1,6.32,{"$f":"IF(V56=\"\",\"\",IF(V56>=Comboboxes!A$5,\"Pass\",IF(AND(V56>=Comboboxes!A$6,E56=\"Yes\"),\"Pass†\",\"Fail\")))","v":"Pass"},"Text","N/A","N/A","N/A","N/A","N/A","N/A","Pass AA","N/A","N/A","N/A","N/A"]
["Button (Hover and focus)",null,"#0B5C91","#FFFFFF","No",true,11,3.3465357638991591E-3,92,0.10702310297826761,145,0.28314874042999211,9.7697735812507375E-2,true,255,1,255,1,255,1,1,7.11,{"$f":"IF(V57=\"\",\"\",IF(V57>=Comboboxes!A$5,\"Pass\",IF(AND(V57>=Comboboxes!A$6,E57=\"Yes\"),\"Pass†\",\"Fail\")))","v":"Pass"},"Text","N/A","N/A","N/A","N/A","N/A","N/A","Pass AA","N/A","N/A","N/A","N/A"]
["Dropdown Header",null,"#FFFFFF","#A95AB6","No",true,255,1,255,1,255,1,1,true,169,0.39675523072562685,90,0.10224173308810132,182,0.46778379611215898,0.19124743963617621,4.3499999999999996,{"$f":"IF(V58=\"\",\"\",IF(V58>=Comboboxes!A$5,\"Pass\",IF(AND(V58>=Comboboxes!A$6,E58=\"Yes\"),\"Pass†\",\"Fail\")))","v":"Fail"},"Text","N/A","N/A","N/A","N/A","N/A","N/A","Fail AA","N/A","N/A","N/A","N/A"]
["Dropdown text",null,"#FFFFFF","#333333","No",true,255,1,255,1,255,1,1,true,51,3.3104766570885055E-2,51,3.3104766570885055E-2,51,3.3104766570885055E-2,3.3104766570885055E-2,12.63,{"$f":"IF(V59=\"\",\"\",IF(V59>=Comboboxes!A$5,\"Pass\",IF(AND(V59>=Comboboxes!A$6,E59=\"Yes\"),\"Pass†\",\"Fail\")))","v":"Pass"},"Text","N/A","N/A","N/A","N/A","N/A","N/A","Pass AA","N/A","N/A","N/A","N/A"]
["Dropdown validation message",null,"#F5F5F5","#2F3337","No",true,245,0.9130986517934192,245,0.9130986517934192,245,0.9130986517934192,0.91309865179341909,true,47,2.8426039504420797E-2,51,3.3104766570885055E-2,55,3.8204371595346502E-2,3.2478260679320865E-2,11.68,{"$f":"IF(V60=\"\",\"\",IF(V60>=Comboboxes!A$5,\"Pass\",IF(AND(V60>=Comboboxes!A$6,E60=\"Yes\"),\"Pass†\",\"Fail\")))","v":"Pass"},"Text","N/A","N/A","N/A","N/A","N/A","N/A","Pass AA","N/A","N/A","N/A","N/A"]
["Button",null,"#0163A4","#FFFFFF","No",true,1,3.0352698354883752E-4,99,0.12477181756095049,164,0.37123768047414912,0.11610469428652782,true,255,1,255,1,255,1,1,6.32,{"$f":"IF(V61=\"\",\"\",IF(V61>=Comboboxes!A$5,\"Pass\",IF(AND(V61>=Comboboxes!A$6,E61=\"Yes\"),\"Pass†\",\"Fail\")))","v":"Pass"},"Text","N/A","N/A","N/A","N/A","N/A","N/A","N/A","Pass AA","N/A","N/A","N/A"]
["Button (Hover and focus)",null,"#0B5C91","#FFFFFF","No",true,11,3.3465357638991591E-3,92,0.10702310297826761,145,0.28314874042999211,9.7697735812507375E-2,true,255,1,255,1,255,1,1,7.11,{"$f":"IF(V62=\"\",\"\",IF(V62>=Comboboxes!A$5,\"Pass\",IF(AND(V62>=Comboboxes!A$6,E62=\"Yes\"),\"Pass†\",\"Fail\")))","v":"Pass"},"Text","N/A","N/A","N/A","N/A","N/A","N/A","N/A","Pass AA","N/A","N/A","N/A"]
["Button",null,"#BDBDBD","#FFFFFF","No",true,189,0.50888132085493376,189,0.50888132085493376,189,0.50888132085493376,0.50888132085493376,true,255,1,255,1,255,1,1,1.88,{"$f":"IF(V63=\"\",\"\",IF(V63>=Comboboxes!A$5,\"Pass\",IF(AND(V63>=Comboboxes!A$6,E63=\"Yes\"),\"Pass†\",\"Fail\")))","v":"Fail"},"No","No","No","No","No","No","No","No","Fail AA","N/A","N/A","N/A"]
["Button (Hover)",null,"#9B72B3","#FFFFFF","No",true,155,0.32777809805654212,114,0.16826940018969078,179,0.4507857828382234,0.22257863218340745,true,255,1,255,1,255,1,1,3.85,{"$f":"IF(V64=\"\",\"\",IF(V64>=Comboboxes!A$5,\"Pass\",IF(AND(V64>=Comboboxes!A$6,E64=\"Yes\"),\"Pass†\",\"Fail\")))","v":"Fail"},"No","No","No","No","No","No","No","No","Fail AA","N/A","N/A","N/A"]
["Label text",null,"#FFFFFF","#FF9800","No",true,255,1,255,1,255,1,1,true,255,1,152,0.31398871337571754,0,0,0.43716472780631321,2.16,{"$f":"IF(V65=\"\",\"\",IF(V65>=Comboboxes!A$5,\"Pass\",IF(AND(V65>=Comboboxes!A$6,E65=\"Yes\"),\"Pass†\",\"Fail\")))","v":"Fail"},"No","No","No","No","No","No","No","No","Fail AA","N/A","N/A","N/A"]
["Label text",null,"#FFFFFF","#0163A4","No",true,255,1,255,1,255,1,1,true,1,3.0352698354883752E-4,99,0.12477181756095049,164,0.37123768047414912,0.11610469428652782,6.32,{"$f":"IF(V66=\"\",\"\",IF(V66>=Comboboxes!A$5,\"Pass\",IF(AND(V66>=Comboboxes!A$6,E66=\"Yes\"),\"Pass†\",\"Fail\")))","v":"Pass"},"Text","N/A","N/A","N/A","N/A","N/A","N/A","N/A","Pass AA","Pass AA","N/A","N/A"]
["Dropdown list text",null,"#FFFFFF","#A7A7A7","No",true,255,1,255,1,255,1,1,true,167,0.38642943378704903,167,0.38642943378704903,167,0.38642943378704903,0.38642943378704897,2.41,{"$f":"IF(V67=\"\",\"\",IF(V67>=Comboboxes!A$5,\"Pass\",IF(AND(V67>=Comboboxes!A$6,E67=\"Yes\"),\"Pass†\",\"Fail\")))","v":"Fail"},"Text","N/A","N/A","N/A","N/A","N/A","N/A","N/A","Fail AA","Fail AA","N/A","N/A"]
["Button",null,"#0163A4","#FFFFFF","No",true,1,3.0352698354883752E-4,99,0.12477181756095049,164,0.37123768047414912,0.11610469428652782,true,255,1,255,1,255,1,1,6.32,{"$f":"IF(V68=\"\",\"\",IF(V68>=Comboboxes!A$5,\"Pass\",IF(AND(V68>=Comboboxes!A$6,E68=\"Yes\"),\"Pass†\",\"Fail\")))","v":"Pass"},"Text","N/A","N/A","N/A","N/A","N/A","N/A","N/A","Pass AA","Pass AA","N/A","N/A"]
["Button (Hover and focus)",null,"#0B5C91","#FFFFFF","No",true,11,3.3465357638991591E-3,92,0.10702310297826761,145,0.28314874042999211,9.7697735812507375E-2,true,255,1,255,1,255,1,1,7.11,{"$f":"IF(V69=\"\",\"\",IF(V69>=Comboboxes!A$5,\"Pass\",IF(AND(V69>=Comboboxes!A$6,E69=\"Yes\"),\"Pass†\",\"Fail\")))","v":"Pass"},"Text","N/A","N/A","N/A","N/A","N/A","N/A","N/A","Pass AA","Pass AA","N/A","N/A"]
["Button",null,"#65268A","#FFFFFF","No",true,101,0.13013647669036432,38,1.9382360956935723E-2,138,0.25415209433082675,5.9879060711457571E-2,true,255,1,255,1,255,1,1,9.56,{"$f":"IF(V70=\"\",\"\",IF(V70>=Comboboxes!A$5,\"Pass\",IF(AND(V70>=Comboboxes!A$6,E70=\"Yes\"),\"Pass†\",\"Fail\")))","v":"Pass"},"Text","N/A","N/A","N/A","N/A","N/A","N/A","N/A","Pass AA","Pass AA","N/A","N/A"]
["Button (Hover and focus)",null,"#65268A","#FFFFFF","No",true,101,0.13013647669036432,38,1.9382360956935723E-2,138,0.25415209433082675,5.9879060711457571E-2,true,255,1,255,1,255,1,1,9.56,{"$f":"IF(V71=\"\",\"\",IF(V71>=Comboboxes!A$5,\"Pass\",IF(AND(V71>=Comboboxes!A$6,E71=\"Yes\"),\"Pass†\",\"Fail\")))","v":"Pass"},"Text","N/A","N/A","N/A","N/A","N/A","N/A","N/A","Pass AA","Pass AA","N/A","N/A"]
["Body text",null,"#FFFFFF","#0163A4","No",true,255,1,255,1,255,1,1,true,1,3.0352698354883752E-4,99,0.12477181756095049,164,0.37123768047414912,0.11610469428652782,6.32,{"$f":"IF(V72=\"\",\"\",IF(V72>=Comboboxes!A$5,\"Pass\",IF(AND(V72>=Comboboxes!A$6,E72=\"Yes\"),\"Pass†\",\"Fail\")))","v":"Pass"},"Text","N/A","N/A","N/A","N/A","N/A","N/A","N/A","Pass AA","N/A","N/A","N/A"]
["Dropdown header",null,"#FFFFFF","#3C4858","No",true,255,1,255,1,255,1,1,true,60,4.5186204385675541E-2,72,6.48032666929058E-2,88,9.7587347141862429E-2,6.2999689854803323E-2,9.2899999999999991,{"$f":"IF(V73=\"\",\"\",IF(V73>=Comboboxes!A$5,\"Pass\",IF(AND(V73>=Comboboxes!A$6,E73=\"Yes\"),\"Pass†\",\"Fail\")))","v":"Pass"},"Text","N/A","N/A","N/A","N/A","N/A","N/A","N/A","Pass AA","N/A","N/A","N/A"]
["Body Text",null,"#FFFFFF","#333333","No",true,255,1,255,1,255,1,1,true,51,3.3104766570885055E-2,51,3.3104766570885055E-2,51,3.3104766570885055E-2,3.3104766570885055E-2,12.63,{"$f":"IF(V74=\"\",\"\",IF(V74>=Comboboxes!A$5,\"Pass\",IF(AND(V74>=Comboboxes!A$6,E74=\"Yes\"),\"Pass†\",\"Fail\")))","v":"Pass"},"Text","N/A","N/A","N/A","N/A","N/A","N/A","N/A","Pass AA","N/A","N/A","N/A"]
["Textarea text",null,"#FFFFFF","#AAAAAA","No",true,255,1,255,1,255,1,1,true,170,0.40197777983219574,170,0.40197777983219574,170,0.40197777983219574,0.40197777983219574,2.3199999999999998,{"$f":"IF(V75=\"\",\"\",IF(V75>=Comboboxes!A$5,\"Pass\",IF(AND(V75>=Comboboxes!A$6,E75=\"Yes\"),\"Pass†\",\"Fail\")))","v":"Fail"},"Text","N/A","N/A","N/A","N/A","N/A","N/A","N/A","N/A","Fail AA","N/A","N/A"]
["Dropdown text",null,"#FFFFFF","#999999","No",true,255,1,255,1,255,1,1,true,153,0.31854677812509186,153,0.31854677812509186,153,0.31854677812509186,0.31854677812509186,2.85,{"$f":"IF(V76=\"\",\"\",IF(V76>=Comboboxes!A$5,\"Pass\",IF(AND(V76>=Comboboxes!A$6,E76=\"Yes\"),\"Pass†\",\"Fail\")))","v":"Fail"},"Text","N/A","N/A","N/A","N/A","N/A","N/A","N/A","N/A","Fail AA","N/A","N/A"]
["Form validation text",null,"#55B559","#FFFFFF","No",true,85,9.084171118340767E-2,181,0.46207699965440707,89,9.9898728247113905E-2,0.35700310612986602,true,255,1,255,1,255,1,1,2.58,{"$f":"IF(V77=\"\",\"\",IF(V77>=Comboboxes!A$5,\"Pass\",IF(AND(V77>=Comboboxes!A$6,E77=\"Yes\"),\"Pass†\",\"Fail\")))","v":"Fail"},"Text","N/A","N/A","N/A","N/A","N/A","Fail AA","Fail AA","Fail AA","Fail AA","N/A","N/A"]
["Warning message",null,"#CFE7FE","#F24336","No",{"$f":"IF(LEN(C78)=0,\"\",AND(LEFT(C78,1)=\"#\",LEN(C78)=7))","v":true},{"$f":"HEX2DEC(RIGHT(LEFT(C78,3),2))","v":207},{"$f":"IF(G78/255<= 0.03928,G78/(255*12.92),(((G78/255)+0.055)/1.055)^2.4)","v":0.62396039167507611},{"$f":"HEX2DEC(RIGHT(LEFT(C78,5),2))","v":231},{"$f":"IF(I78/255<= 0.03928,I78/(255*12.92),(((I78/255)+0.055)/1.055)^2.4)","v":0.79910273801440901},{"$f":"HEX2DEC(RIGHT(C78,2))","v":254},{"$f":"IF(K78/255<= 0.03928,K78/(255*12.92),(((K78/255)+0.055)/1.055)^2.4)","v":0.99110209711382979},{"$f":"(0.2126*H78)+(0.7152*J78)+(0.0722*L78)","v":0.77572982890964504},{"$f":"IF(LEN(D78)=0,\"\",AND(LEFT(D78,1)=\"#\",LEN(D78)=7))","v":true},{"$f":"HEX2DEC(RIGHT(LEFT(D78,3),2))","v":242},{"$f":"IF(O78/255<= 0.03928,O78/(255*12.92),(((O78/255)+0.055)/1.055)^2.4)","v":0.88792311788196632},{"$f":"HEX2DEC(RIGHT(LEFT(D78,5),2))","v":67},{"$f":"IF(Q78/255<= 0.03928,Q78/(255*12.92),(((Q78/255)+0.055)/1.055)^2.4)","v":5.6128490049600098E-2},{"$f":"HEX2DEC(RIGHT(D78,2))","v":54},{"$f":"IF(S78/255<= 0.03928,S78/(255*12.92),(((S78/255)+0.055)/1.055)^2.4)","v":3.6889450401100039E-2},{"$f":"(0.2126*P78)+(0.7152*R78)+(0.0722*T78)","v":0.23157896926413946},{"$f":"IF(OR(F78=\"\",N78=\"\")=TRUE,\"\",IF(OR(F78=FALSE,N78=FALSE)=TRUE,\"ERROR\",ROUND(IF(M78>U78,(M78+0.05)/(U78+0.05),(U78+0.05)/(M78+0.05)),2)))","v":2.93},{"$f":"IF(V78=\"\",\"\",IF(V78>=Comboboxes!A$5,\"Pass\",IF(AND(V78>=Comboboxes!A$6,E78=\"Yes\"),\"Pass†\",\"Fail\")))","v":"Fail"},"Text","N/A","N/A","N/A","N/A","N/A","N/A","N/A","N/A","N/A","Fail AA","N/A"]
["Join button",null,"#FF9800","#FFFFFF","No",true,255,1,152,0.31398871337571754,0,0,{"$f":"(0.2126*H79)+(0.7152*J79)+(0.0722*L79)","v":0.43716472780631321},true,255,1,255,1,255,1,{"$f":"(0.2126*P79)+(0.7152*R79)+(0.0722*T79)","v":1},{"$f":"IF(OR(F79=\"\",N79=\"\")=TRUE,\"\",IF(OR(F79=FALSE,N79=FALSE)=TRUE,\"ERROR\",ROUND(IF(M79>U79,(M79+0.05)/(U79+0.05),(U79+0.05)/(M79+0.05)),2)))","v":2.16},{"$f":"IF(V79=\"\",\"\",IF(V79>=Comboboxes!A$5,\"Pass\",IF(AND(V79>=Comboboxes!A$6,E79=\"Yes\"),\"Pass†\",\"Fail\")))","v":"Fail"},"Text","N/A","N/A","N/A","N/A","N/A","N/A","N/A","N/A","N/A","Fail AA","N/A"]
["Join button (Hover and Focus)",null,"#F08F00","#FFFFFF","No",true,240,0.87136711919879717,143,0.2746773120603847,0,0,{"$f":"(0.2126*H80)+(0.7152*J80)+(0.0722*L80)","v":0.38170186312725141},true,255,1,255,1,255,1,{"$f":"(0.2126*P80)+(0.7152*R80)+(0.0722*T80)","v":1},{"$f":"IF(OR(F80=\"\",N80=\"\")=TRUE,\"\",IF(OR(F80=FALSE,N80=FALSE)=TRUE,\"ERROR\",ROUND(IF(M80>U80,(M80+0.05)/(U80+0.05),(U80+0.05)/(M80+0.05)),2)))","v":2.4300000000000002},{"$f":"IF(V80=\"\",\"\",IF(V80>=Comboboxes!A$5,\"Pass\",IF(AND(V80>=Comboboxes!A$6,E80=\"Yes\"),\"Pass†\",\"Fail\")))","v":"Fail"},"Text","N/A","N/A","N/A","N/A","N/A","N/A","N/A","N/A","N/A","Fail AA","N/A"]
["Warning message",null,"#00CAE3","#FFFFFF","No",true,0,0,202,0.59061884091933692,227,0.7681511472475071,{"$f":"(0.2126*H81)+(0.7152*J81)+(0.0722*L81)","v":0.47787110785677972},true,255,1,255,1,255,1,{"$f":"(0.2126*P81)+(0.7152*R81)+(0.0722*T81)","v":1},{"$f":"IF(OR(F81=\"\",N81=\"\")=TRUE,\"\",IF(OR(F81=FALSE,N81=FALSE)=TRUE,\"ERROR\",ROUND(IF(M81>U81,(M81+0.05)/(U81+0.05),(U81+0.05)/(M81+0.05)),2)))","v":1.99},{"$f":"IF(V81=\"\",\"\",IF(V81>=Comboboxes!A$5,\"Pass\",IF(AND(V81>=Comboboxes!A$6,E81=\"Yes\"),\"Pass†\",\"Fail\")))","v":"Fail"},"Text","N/A","N/A","N/A","N/A","N/A","N/A","N/A","N/A","N/A","Fail AA","N/A"]
["Status message",null,"#FFFFFF","#FF9800","No",true,255,1,255,1,255,1,{"$f":"(0.2126*H82)+(0.7152*J82)+(0.0722*L82)","v":1},true,255,1,152,0.31398871337571754,0,0,{"$f":"(0.2126*P82)+(0.7152*R82)+(0.0722*T82)","v":0.43716472780631321},{"$f":"IF(OR(F82=\"\",N82=\"\")=TRUE,\"\",IF(OR(F82=FALSE,N82=FALSE)=TRUE,\"ERROR\",ROUND(IF(M82>U82,(M82+0.05)/(U82+0.05),(U82+0.05)/(M82+0.05)),2)))","v":2.16},{"$f":"IF(V82=\"\",\"\",IF(V82>=Comboboxes!A$5,\"Pass\",IF(AND(V82>=Comboboxes!A$6,E82=\"Yes\"),\"Pass†\",\"Fail\")))","v":"Fail"},"Text","N/A","N/A","N/A","N/A","N/A","N/A","N/A","N/A","N/A","Fail AA","Fail AA"]
["OK Button",null,"#0163A4","#FFFFFF","No",true,1,3.0352698354883752E-4,99,0.12477181756095049,164,0.37123768047414912,{"$f":"(0.2126*H83)+(0.7152*J83)+(0.0722*L83)","v":0.11610469428652782},true,255,1,255,1,255,1,{"$f":"(0.2126*P83)+(0.7152*R83)+(0.0722*T83)","v":1},{"$f":"IF(OR(F83=\"\",N83=\"\")=TRUE,\"\",IF(OR(F83=FALSE,N83=FALSE)=TRUE,\"ERROR\",ROUND(IF(M83>U83,(M83+0.05)/(U83+0.05),(U83+0.05)/(M83+0.05)),2)))","v":6.32},{"$f":"IF(V83=\"\",\"\",IF(V83>=Comboboxes!A$5,\"Pass\",IF(AND(V83>=Comboboxes!A$6,E83=\"Yes\"),\"Pass†\",\"Fail\")))","v":"Pass"},"Text","N/A","N/A","N/A","N/A","N/A","N/A","N/A","N/A","N/A","Pass AA","N/A"]
["OK Button (Hover and Focus)",null,"#0B5C91","#FFFFFF","No",true,11,3.3465357638991591E-3,92,0.10702310297826761,145,0.28314874042999211,{"$f":"(0.2126*H84)+(0.7152*J84)+(0.0722*L84)","v":9.7697735812507375E-2},true,255,1,255,1,255,1,{"$f":"(0.2126*P84)+(0.7152*R84)+(0.0722*T84)","v":1},{"$f":"IF(OR(F84=\"\",N84=\"\")=TRUE,\"\",IF(OR(F84=FALSE,N84=FALSE)=TRUE,\"ERROR\",ROUND(IF(M84>U84,(M84+0.05)/(U84+0.05),(U84+0.05)/(M84+0.05)),2)))","v":7.11},{"$f":"IF(V84=\"\",\"\",IF(V84>=Comboboxes!A$5,\"Pass\",IF(AND(V84>=Comboboxes!A$6,E84=\"Yes\"),\"Pass†\",\"Fail\")))","v":"Pass"},"Text","N/A","N/A","N/A","N/A","N/A","N/A","N/A","N/A","N/A","Pass AA","N/A"]
["Heading Text",null,"#FFFFFF","#0163A4","No",true,255,1,255,1,255,1,{"$f":"(0.2126*H85)+(0.7152*J85)+(0.0722*L85)","v":1},true,1,3.0352698354883752E-4,99,0.12477181756095049,164,0.37123768047414912,{"$f":"(0.2126*P85)+(0.7152*R85)+(0.0722*T85)","v":0.11610469428652782},{"$f":"IF(OR(F85=\"\",N85=\"\")=TRUE,\"\",IF(OR(F85=FALSE,N85=FALSE)=TRUE,\"ERROR\",ROUND(IF(M85>U85,(M85+0.05)/(U85+0.05),(U85+0.05)/(M85+0.05)),2)))","v":6.32},{"$f":"IF(V85=\"\",\"\",IF(V85>=Comboboxes!A$5,\"Pass\",IF(AND(V85>=Comboboxes!A$6,E85=\"Yes\"),\"Pass†\",\"Fail\")))","v":"Pass"},"Text","N/A","N/A","N/A","N/A","N/A","N/A","N/A","N/A","N/A","Pass AA","N/A"]
["Label Text",null,"#FFFFFF","#3C4858","No",{"$f":"IF(LEN(C86)=0,\"\",AND(LEFT(C86,1)=\"#\",LEN(C86)=7))","v":true},{"$f":"HEX2DEC(RIGHT(LEFT(C86,3),2))","v":255},{"$f":"IF(G86/255<= 0.03928,G86/(255*12.92),(((G86/255)+0.055)/1.055)^2.4)","v":1},{"$f":"HEX2DEC(RIGHT(LEFT(C86,5),2))","v":255},{"$f":"IF(I86/255<= 0.03928,I86/(255*12.92),(((I86/255)+0.055)/1.055)^2.4)","v":1},{"$f":"HEX2DEC(RIGHT(C86,2))","v":255},{"$f":"IF(K86/255<= 0.03928,K86/(255*12.92),(((K86/255)+0.055)/1.055)^2.4)","v":1},{"$f":"(0.2126*H86)+(0.7152*J86)+(0.0722*L86)","v":1},{"$f":"IF(LEN(D86)=0,\"\",AND(LEFT(D86,1)=\"#\",LEN(D86)=7))","v":true},{"$f":"HEX2DEC(RIGHT(LEFT(D86,3),2))","v":60},{"$f":"IF(O86/255<= 0.03928,O86/(255*12.92),(((O86/255)+0.055)/1.055)^2.4)","v":4.5186204385675541E-2},{"$f":"HEX2DEC(RIGHT(LEFT(D86,5),2))","v":72},{"$f":"IF(Q86/255<= 0.03928,Q86/(255*12.92),(((Q86/255)+0.055)/1.055)^2.4)","v":6.48032666929058E-2},{"$f":"HEX2DEC(RIGHT(D86,2))","v":88},{"$f":"IF(S86/255<= 0.03928,S86/(255*12.92),(((S86/255)+0.055)/1.055)^2.4)","v":9.7587347141862429E-2},{"$f":"(0.2126*P86)+(0.7152*R86)+(0.0722*T86)","v":6.2999689854803323E-2},{"$f":"IF(OR(F86=\"\",N86=\"\")=TRUE,\"\",IF(OR(F86=FALSE,N86=FALSE)=TRUE,\"ERROR\",ROUND(IF(M86>U86,(M86+0.05)/(U86+0.05),(U86+0.05)/(M86+0.05)),2)))","v":9.2899999999999991},{"$f":"IF(V86=\"\",\"\",IF(V86>=Comboboxes!A$5,\"Pass\",IF(AND(V86>=Comboboxes!A$6,E86=\"Yes\"),\"Pass†\",\"Fail\")))","v":"Pass"},"Text","N/A","N/A","N/A","N/A","N/A","N/A","N/A","N/A","N/A","Pass AA","N/A"]
["Dropdown Text",null,"#FFFFFF","#999999","No",true,255,1,255,1,255,1,{"$f":"(0.2126*H87)+(0.7152*J87)+(0.0722*L87)","v":1},true,153,0.31854677812509186,153,0.31854677812509186,153,0.31854677812509186,{"$f":"(0.2126*P87)+(0.7152*R87)+(0.0722*T87)","v":0.31854677812509186},{"$f":"IF(OR(F87=\"\",N87=\"\")=TRUE,\"\",IF(OR(F87=FALSE,N87=FALSE)=TRUE,\"ERROR\",ROUND(IF(M87>U87,(M87+0.05)/(U87+0.05),(U87+0.05)/(M87+0.05)),2)))","v":2.85},{"$f":"IF(V87=\"\",\"\",IF(V87>=Comboboxes!A$5,\"Pass\",IF(AND(V87>=Comboboxes!A$6,E87=\"Yes\"),\"Pass†\",\"Fail\")))","v":"Fail"},"Text","N/A","N/A","N/A","N/A","N/A","N/A","N/A","N/A","N/A","Fail AA","N/A"]
["Button",null,"#FFFFFF","#555555","No",{"$f":"IF(LEN(C88)=0,\"\",AND(LEFT(C88,1)=\"#\",LEN(C88)=7))","v":true},{"$f":"HEX2DEC(RIGHT(LEFT(C88,3),2))","v":255},{"$f":"IF(G88/255<= 0.03928,G88/(255*12.92),(((G88/255)+0.055)/1.055)^2.4)","v":1},{"$f":"HEX2DEC(RIGHT(LEFT(C88,5),2))","v":255},{"$f":"IF(I88/255<= 0.03928,I88/(255*12.92),(((I88/255)+0.055)/1.055)^2.4)","v":1},{"$f":"HEX2DEC(RIGHT(C88,2))","v":255},{"$f":"IF(K88/255<= 0.03928,K88/(255*12.92),(((K88/255)+0.055)/1.055)^2.4)","v":1},{"$f":"(0.2126*H88)+(0.7152*J88)+(0.0722*L88)","v":1},{"$f":"IF(LEN(D88)=0,\"\",AND(LEFT(D88,1)=\"#\",LEN(D88)=7))","v":true},{"$f":"HEX2DEC(RIGHT(LEFT(D88,3),2))","v":85},{"$f":"IF(O88/255<= 0.03928,O88/(255*12.92),(((O88/255)+0.055)/1.055)^2.4)","v":9.084171118340767E-2},{"$f":"HEX2DEC(RIGHT(LEFT(D88,5),2))","v":85},{"$f":"IF(Q88/255<= 0.03928,Q88/(255*12.92),(((Q88/255)+0.055)/1.055)^2.4)","v":9.084171118340767E-2},{"$f":"HEX2DEC(RIGHT(D88,2))","v":85},{"$f":"IF(S88/255<= 0.03928,S88/(255*12.92),(((S88/255)+0.055)/1.055)^2.4)","v":9.084171118340767E-2},{"$f":"(0.2126*P88)+(0.7152*R88)+(0.0722*T88)","v":9.084171118340767E-2},{"$f":"IF(OR(F88=\"\",N88=\"\")=TRUE,\"\",IF(OR(F88=FALSE,N88=FALSE)=TRUE,\"ERROR\",ROUND(IF(M88>U88,(M88+0.05)/(U88+0.05),(U88+0.05)/(M88+0.05)),2)))","v":7.46},{"$f":"IF(V88=\"\",\"\",IF(V88>=Comboboxes!A$5,\"Pass\",IF(AND(V88>=Comboboxes!A$6,E88=\"Yes\"),\"Pass†\",\"Fail\")))","v":"Pass"},"Text","N/A","N/A","N/A","N/A","N/A","N/A","N/A","N/A","N/A","N/A","Pass AA"]
["Button (Hover)",null,"#F4F4F4","#555555","No",true,244,0.90466117439114957,244,0.90466117439114957,244,0.90466117439114957,{"$f":"(0.2126*H89)+(0.7152*J89)+(0.0722*L89)","v":0.90466117439114957},true,85,9.084171118340767E-2,85,9.084171118340767E-2,85,9.084171118340767E-2,{"$f":"(0.2126*P89)+(0.7152*R89)+(0.0722*T89)","v":9.084171118340767E-2},{"$f":"IF(OR(F89=\"\",N89=\"\")=TRUE,\"\",IF(OR(F89=FALSE,N89=FALSE)=TRUE,\"ERROR\",ROUND(IF(M89>U89,(M89+0.05)/(U89+0.05),(U89+0.05)/(M89+0.05)),2)))","v":6.78},{"$f":"IF(V89=\"\",\"\",IF(V89>=Comboboxes!A$5,\"Pass\",IF(AND(V89>=Comboboxes!A$6,E89=\"Yes\"),\"Pass†\",\"Fail\")))","v":"Pass"},"Text","N/A","N/A","N/A","N/A","N/A","N/A","N/A","N/A","N/A","N/A","Pass AA"]
["Button (Focus)",null,"#9C27B0","#FFFFFF","No",true,156,0.33245153634617935,39,2.0288563056652397E-2,176,0.43415363617474889,{"$f":"(0.2126*H90)+(0.7152*J90)+(0.0722*L90)","v":0.1165354694571324},true,255,1,255,1,255,1,{"$f":"(0.2126*P90)+(0.7152*R90)+(0.0722*T90)","v":1},{"$f":"IF(OR(F90=\"\",N90=\"\")=TRUE,\"\",IF(OR(F90=FALSE,N90=FALSE)=TRUE,\"ERROR\",ROUND(IF(M90>U90,(M90+0.05)/(U90+0.05),(U90+0.05)/(M90+0.05)),2)))","v":6.3},{"$f":"IF(V90=\"\",\"\",IF(V90>=Comboboxes!A$5,\"Pass\",IF(AND(V90>=Comboboxes!A$6,E90=\"Yes\"),\"Pass†\",\"Fail\")))","v":"Pass"},"Text","N/A","N/A","N/A","N/A","N/A","N/A","N/A","N/A","N/A","N/A","Pass AA"]
["Table header",null,"#CFE7FE","#0163A4","No",true,207,0.62396039167507611,231,0.79910273801440901,254,0.99110209711382979,{"$f":"(0.2126*H91)+(0.7152*J91)+(0.0722*L91)","v":0.77572982890964504},true,1,3.0352698354883752E-4,99,0.12477181756095049,164,0.37123768047414912,{"$f":"(0.2126*P91)+(0.7152*R91)+(0.0722*T91)","v":0.11610469428652782},{"$f":"IF(OR(F91=\"\",N91=\"\")=TRUE,\"\",IF(OR(F91=FALSE,N91=FALSE)=TRUE,\"ERROR\",ROUND(IF(M91>U91,(M91+0.05)/(U91+0.05),(U91+0.05)/(M91+0.05)),2)))","v":4.97},{"$f":"IF(V91=\"\",\"\",IF(V91>=Comboboxes!A$5,\"Pass\",IF(AND(V91>=Comboboxes!A$6,E91=\"Yes\"),\"Pass†\",\"Fail\")))","v":"Pass"},"Text","N/A","N/A","N/A","N/A","N/A","N/A","N/A","N/A","N/A","N/A","Pass AA"]
["Table text",null,"#F4F4F4","#3C4858","No",{"$f":"IF(LEN(C92)=0,\"\",AND(LEFT(C92,1)=\"#\",LEN(C92)=7))","v":true},{"$f":"HEX2DEC(RIGHT(LEFT(C92,3),2))","v":244},{"$f":"IF(G92/255<= 0.03928,G92/(255*12.92),(((G92/255)+0.055)/1.055)^2.4)","v":0.90466117439114957},{"$f":"HEX2DEC(RIGHT(LEFT(C92,5),2))","v":244},{"$f":"IF(I92/255<= 0.03928,I92/(255*12.92),(((I92/255)+0.055)/1.055)^2.4)","v":0.90466117439114957},{"$f":"HEX2DEC(RIGHT(C92,2))","v":244},{"$f":"IF(K92/255<= 0.03928,K92/(255*12.92),(((K92/255)+0.055)/1.055)^2.4)","v":0.90466117439114957},{"$f":"(0.2126*H92)+(0.7152*J92)+(0.0722*L92)","v":0.90466117439114957},{"$f":"IF(LEN(D92)=0,\"\",AND(LEFT(D92,1)=\"#\",LEN(D92)=7))","v":true},{"$f":"HEX2DEC(RIGHT(LEFT(D92,3),2))","v":60},{"$f":"IF(O92/255<= 0.03928,O92/(255*12.92),(((O92/255)+0.055)/1.055)^2.4)","v":4.5186204385675541E-2},{"$f":"HEX2DEC(RIGHT(LEFT(D92,5),2))","v":72},{"$f":"IF(Q92/255<= 0.03928,Q92/(255*12.92),(((Q92/255)+0.055)/1.055)^2.4)","v":6.48032666929058E-2},{"$f":"HEX2DEC(RIGHT(D92,2))","v":88},{"$f":"IF(S92/255<= 0.03928,S92/(255*12.92),(((S92/255)+0.055)/1.055)^2.4)","v":9.7587347141862429E-2},{"$f":"(0.2126*P92)+(0.7152*R92)+(0.0722*T92)","v":6.2999689854803323E-2},{"$f":"IF(OR(F92=\"\",N92=\"\")=TRUE,\"\",IF(OR(F92=FALSE,N92=FALSE)=TRUE,\"ERROR\",ROUND(IF(M92>U92,(M92+0.05)/(U92+0.05),(U92+0.05)/(M92+0.05)),2)))","v":8.4499999999999993},{"$f":"IF(V92=\"\",\"\",IF(V92>=Comboboxes!A$5,\"Pass\",IF(AND(V92>=Comboboxes!A$6,E92=\"Yes\"),\"Pass†\",\"Fail\")))","v":"Pass"},"Text","N/A","N/A","N/A","N/A","N/A","N/A","N/A","N/A","N/A","N/A","Pass AA"]
["Table text",null,"#FFFFFF","#3C4858","No",true,255,1,255,1,255,1,{"$f":"(0.2126*H93)+(0.7152*J93)+(0.0722*L93)","v":1},true,60,4.5186204385675541E-2,72,6.48032666929058E-2,88,9.7587347141862429E-2,{"$f":"(0.2126*P93)+(0.7152*R93)+(0.0722*T93)","v":6.2999689854803323E-2},{"$f":"IF(OR(F93=\"\",N93=\"\")=TRUE,\"\",IF(OR(F93=FALSE,N93=FALSE)=TRUE,\"ERROR\",ROUND(IF(M93>U93,(M93+0.05)/(U93+0.05),(U93+0.05)/(M93+0.05)),2)))","v":9.2899999999999991},{"$f":"IF(V93=\"\",\"\",IF(V93>=Comboboxes!A$5,\"Pass\",IF(AND(V93>=Comboboxes!A$6,E93=\"Yes\"),\"Pass†\",\"Fail\")))","v":"Pass"},"Text","N/A","N/A","N/A","N/A","N/A","N/A","N/A","N/A","N/A","N/A","Pass AA"]
["Validation error",null,"#F55145","#FFFBFB","No",true,245,0.9130986517934192,81,8.2282707129814794E-2,69,5.9511238162981178E-2,{"$f":"(0.2126*H94)+(0.7152*J94)+(0.0722*L94)","v":0.25727007690589171},true,255,1,251,0.96468624789446511,251,0.96468624789446511,{"$f":"(0.2126*P94)+(0.7152*R94)+(0.0722*T94)","v":0.97219395159210176},{"$f":"IF(OR(F94=\"\",N94=\"\")=TRUE,\"\",IF(OR(F94=FALSE,N94=FALSE)=TRUE,\"ERROR\",ROUND(IF(M94>U94,(M94+0.05)/(U94+0.05),(U94+0.05)/(M94+0.05)),2)))","v":3.33},{"$f":"IF(V94=\"\",\"\",IF(V94>=Comboboxes!A$5,\"Pass\",IF(AND(V94>=Comboboxes!A$6,E94=\"Yes\"),\"Pass†\",\"Fail\")))","v":"Fail"},"Text","N/A","N/A","N/A","N/A","N/A","N/A","N/A","N/A","Fail AA","N/A","N/A"]
[null,null,null,null,null,{"$f":"IF(LEN(C95)=0,\"\",AND(LEFT(C95,1)=\"#\",LEN(C95)=7))","v":""},{"$f":"HEX2DEC(RIGHT(LEFT(C95,3),2))","v":0},{"$f":"IF(G95/255<= 0.03928,G95/(255*12.92),(((G95/255)+0.055)/1.055)^2.4)","v":0},{"$f":"HEX2DEC(RIGHT(LEFT(C95,5),2))","v":0},{"$f":"IF(I95/255<= 0.03928,I95/(255*12.92),(((I95/255)+0.055)/1.055)^2.4)","v":0},{"$f":"HEX2DEC(RIGHT(C95,2))","v":0},{"$f":"IF(K95/255<= 0.03928,K95/(255*12.92),(((K95/255)+0.055)/1.055)^2.4)","v":0},{"$f":"(0.2126*H95)+(0.7152*J95)+(0.0722*L95)","v":0},{"$f":"IF(LEN(D95)=0,\"\",AND(LEFT(D95,1)=\"#\",LEN(D95)=7))","v":""},{"$f":"HEX2DEC(RIGHT(LEFT(D95,3),2))","v":0},{"$f":"IF(O95/255<= 0.03928,O95/(255*12.92),(((O95/255)+0.055)/1.055)^2.4)","v":0},{"$f":"HEX2DEC(RIGHT(LEFT(D95,5),2))","v":0},{"$f":"IF(Q95/255<= 0.03928,Q95/(255*12.92),(((Q95/255)+0.055)/1.055)^2.4)","v":0},{"$f":"HEX2DEC(RIGHT(D95,2))","v":0},{"$f":"IF(S95/255<= 0.03928,S95/(255*12.92),(((S95/255)+0.055)/1.055)^2.4)","v":0},{"$f":"(0.2126*P95)+(0.7152*R95)+(0.0722*T95)","v":0},{"$f":"IF(OR(F95=\"\",N95=\"\")=TRUE,\"\",IF(OR(F95=FALSE,N95=FALSE)=TRUE,\"ERROR\",ROUND(IF(M95>U95,(M95+0.05)/(U95+0.05),(U95+0.05)/(M95+0.05)),2)))","v":""},{"$f":"IF(V95=\"\",\"\",IF(V95>=Comboboxes!A$5,\"Pass\",IF(AND(V95>=Comboboxes!A$6,E95=\"Yes\"),\"Pass†\",\"Fail\")))","v":""}]
[null,null,null,null,null,"",0,0,0,0,0,0,{"$f":"(0.2126*H96)+(0.7152*J96)+(0.0722*L96)","v":0},"",0,0,0,0,0,0,{"$f":"(0.2126*P96)+(0.7152*R96)+(0.0722*T96)","v":0},{"$f":"IF(OR(F96=\"\",N96=\"\")=TRUE,\"\",IF(OR(F96=FALSE,N96=FALSE)=TRUE,\"ERROR\",ROUND(IF(M96>U96,(M96+0.05)/(U96+0.05),(U96+0.05)/(M96+0.05)),2)))","v":""},{"$f":"IF(V96=\"\",\"\",IF(V96>=Comboboxes!A$5,\"Pass\",IF(AND(V96>=Comboboxes!A$6,E96=\"Yes\"),\"Pass†\",\"Fail\")))","v":""}]
[null,null,null,null,null,"",0,0,0,0,0,0,{"$f":"(0.2126*H97)+(0.7152*J97)+(0.0722*L97)","v":0},"",0,0,0,0,0,0,{"$f":"(0.2126*P97)+(0.7152*R97)+(0.0722*T97)","v":0},{"$f":"IF(OR(F97=\"\",N97=\"\")=TRUE,\"\",IF(OR(F97=FALSE,N97=FALSE)=TRUE,\"ERROR\",ROUND(IF(M97>U97,(M97+0.05)/(U97+0.05),(U97+0.05)/(M97+0.05)),2)))","v":""},{"$f":"IF(V97=\"\",\"\",IF(V97>=Comboboxes!A$5,\"Pass\",IF(AND(V97>=Comboboxes!A$6,E97=\"Yes\"),\"Pass†\",\"Fail\")))","v":""}]
[null,null,null,null,null,"",0,0,0,0,0,0,{"$f":"(0.2126*H98)+(0.7152*J98)+(0.0722*L98)","v":0},"",0,0,0,0,0,0,{"$f":"(0.2126*P98)+(0.7152*R98)+(0.0722*T98)","v":0},{"$f":"IF(OR(F98=\"\",N98=\"\")=TRUE,\"\",IF(OR(F98=FALSE,N98=FALSE)=TRUE,\"ERROR\",ROUND(IF(M98>U98,(M98+0.05)/(U98+0.05),(U98+0.05)/(M98+0.05)),2)))","v":""},{"$f":"IF(V98=\"\",\"\",IF(V98>=Comboboxes!A$5,\"Pass\",IF(AND(V98>=Comboboxes!A$6,E98=\"Yes\"),\"Pass†\",\"Fail\")))","v":""}]
[null,null,null,null,null,"",0,0,0,0,0,0,0,"",0,0,0,0,0,0,0,"",{"$f":"IF(V99=\"\",\"\",IF(V99>=Comboboxes!A$5,\"Pass\",IF(AND(V99>=Comboboxes!A$6,E99=\"Yes\"),\"Pass†\",\"Fail\")))","v":""}]
[null,null,null,null,null,"",0,0,0,0,0,0,{"$f":"(0.2126*H100)+(0.7152*J100)+(0.0722*L100)","v":0},"",0,0,0,0,0,0,{"$f":"(0.2126*P100)+(0.7152*R100)+(0.0722*T100)","v":0},{"$f":"IF(OR(F100=\"\",N100=\"\")=TRUE,\"\",IF(OR(F100=FALSE,N100=FALSE)=TRUE,\"ERROR\",ROUND(IF(M100>U100,(M100+0.05)/(U100+0.05),(U100+0.05)/(M100+0.05)),2)))","v":""},{"$f":"IF(V100=\"\",\"\",IF(V100>=Comboboxes!A$5,\"Pass\",IF(AND(V100>=Comboboxes!A$6,E100=\"Yes\"),\"Pass†\",\"Fail\")))","v":""}]
[null,null,null,null,null,"",0,0,0,0,0,0,{"$f":"(0.2126*H101)+(0.7152*J101)+(0.0722*L101)","v":0},"",0,0,0,0,0,0,{"$f":"(0.2126*P101)+(0.7152*R101)+(0.0722*T101)","v":0},{"$f":"IF(OR(F101=\"\",N101=\"\")=TRUE,\"\",IF(OR(F101=FALSE,N101=FALSE)=TRUE,\"ERROR\",ROUND(IF(M101>U101,(M101+0.05)/(U101+0.05),(U101+0.05)/(M101+0.05)),2)))","v":""},{"$f":"IF(V101=\"\",\"\",IF(V101>=Comboboxes!A$5,\"Pass\",IF(AND(V101>=Comboboxes!A$6,E101=\"Yes\"),\"Pass†\",\"Fail\")))","v":""}]
[]
["Colour combinations shown in pink do not meet the contrast ratio (4.5:1 Minimum) recommended by W3C WCAG 2.0"]
[]
["Note that a contrast ratio of 3:1 is acceptable for large text e.g. 14 point bold or 18 point normal weight."]

{"sheet":"Non-text Contrast","index":4,"n_rows":68,"n_cols":76,"rows_kept":68,"cut":false,"hidden":false,"merged":[[0,0,1,7]]}
["\nColour Contrast Analysis for combinations\nof background and foreground colours",null,null,null,null,null,null,null,null,null,null,null,null,null,null,null,null,null,null,null,null,null,null,null,null,null,{"$f":"(Statistics!B14)","v":"Header and footer"},{"$f":"(Statistics!B15)","v":"Sign in"},{"$f":"(Statistics!B16)","v":"Register"},{"$f":"(Statistics!B17)","v":"Home"},{"$f":"(Statistics!B18)","v":"Data Explorer results"},{"$f":"(Statistics!B19)","v":"Query Builder"},{"$f":"(Statistics!B20)","v":"Query Builder expanded with Offence Group overlay"},{"$f":"(Statistics!B21)","v":"Query Builder expanded with Location map overlay"},{"$f":"(Statistics!B22)","v":"Query Builder - Save Query"},{"$f":"(Statistics!B23)","v":"Query Builder - Join"},{"$f":"(Statistics!B24)","v":"Query Builder - Results"},{"$f":"(Statistics!B25)","v":"Page 12"},{"$f":"(Statistics!B26)","v":"Page 13"},{"$f":"(Statistics!B27)","v":"Page 14"},{"$f":"(Statistics!B28)","v":"Page 15"},{"$f":"(Statistics!B29)","v":"Page 16"},{"$f":"(Statistics!B30)","v":"Page 17"},{"$f":"(Statistics!B31)","v":"Page 18"},{"$f":"(Statistics!B32)","v":"Page 19"},{"$f":"(Statistics!B33)","v":"Page 20"},{"$f":"(Statistics!B34)","v":"Page 21"},{"$f":"(Statistics!B35)","v":"Page 22"},{"$f":"(Statistics!B36)","v":"Page 23"},{"$f":"(Statistics!B37)","v":"Page 24"},{"$f":"(Statistics!B38)","v":"Page 25"},{"$f":"(Statistics!B39)","v":"Page 26"},{"$f":"(Statistics!B40)","v":"Page 27"},{"$f":"(Statistics!B41)","v":"Page 28"},{"$f":"(Statistics!B42)","v":"Page 29"},{"$f":"(Statistics!B43)","v":"Page 30"},{"$f":"(Statistics!B44)","v":"Page 31"},{"$f":"(Statistics!B45)","v":"Page 32"},{"$f":"(Statistics!B46)","v":"Page 33"},{"$f":"(Statistics!B47)","v":"Page 34"},{"$f":"(Statistics!B48)","v":"Page 35"},{"$f":"(Statistics!B49)","v":"Page 36"},{"$f":"(Statistics!B50)","v":"Page 37"},{"$f":"(Statistics!B51)","v":"Page 38"},{"$f":"(Statistics!B52)","v":"Page 39"},{"$f":"(Statistics!B53)","v":"Page 40"},{"$f":"(Statistics!B54)","v":"Page 41"},{"$f":"(Statistics!B55)","v":"Page 42"},{"$f":"(Statistics!B56)","v":"Page 43"},{"$f":"(Statistics!B57)","v":"Page 44"},{"$f":"(Statistics!B58)","v":"Page 45"},{"$f":"(Statistics!B59)","v":"Page 46"},{"$f":"(Statistics!B60)","v":"Page 47"},{"$f":"(Statistics!B61)","v":"Page 48"},{"$f":"(Statistics!B62)","v":"Page 49"},{"$f":"(Statistics!B63)","v":"Page 50"}]
[null,null,null,null,null,null,null,null,null,null,null,null,null,null,null,null,null,null,null,null,null,null,null,null,null,null,{"$f":"(Statistics!C14)","v":"N/A"},{"$f":"(Statistics!C15)","v":"https://safestats.london.gov.uk"},{"$f":"(Statistics!C16)","v":"https://safestats.london.gov.uk/auth/signup"},{"$f":"(Statistics!C17)","v":"https://safestats.london.gov.uk/safestats/home"},{"$f":"(Statistics!C18)","v":"https://safestats.london.gov.uk/safestats/home"},{"$f":"(Statistics!C19)","v":"https://safestats.london.gov.uk/safestats/home"},{"$f":"(Statistics!C20)","v":"https://safestats.london.gov.uk/safestats/home"},{"$f":"(Statistics!C21)","v":"https://safestats.london.gov.uk/safestats/home"},{"$f":"(Statistics!C22)","v":"https://safestats.london.gov.uk/safestats/home"},{"$f":"(Statistics!C23)","v":"https://safestats.london.gov.uk/safestats/home"},{"$f":"(Statistics!C24)","v":"https://safestats.london.gov.uk/safestats/home"},{"$f":"(Statistics!C25)","v":"URL 12"},{"$f":"(Statistics!C26)","v":"URL 13"},{"$f":"(Statistics!C27)","v":"URL 14"},{"$f":"(Statistics!C28)","v":"URL 15"},{"$f":"(Statistics!C29)","v":"URL 16"},{"$f":"(Statistics!C30)","v":"URL 17"},{"$f":"(Statistics!C31)","v":"URL 18"},{"$f":"(Statistics!C32)","v":"URL 19"},{"$f":"(Statistics!C33)","v":"URL 20"},{"$f":"(Statistics!C34)","v":"URL 21"},{"$f":"(Statistics!C35)","v":"URL 22"},{"$f":"(Statistics!C36)","v":"URL 23"},{"$f":"(Statistics!C37)","v":"URL 24"},{"$f":"(Statistics!C38)","v":"URL 25"},{"$f":"(Statistics!C39)","v":"URL 26"},{"$f":"(Statistics!C40)","v":"URL 27"},{"$f":"(Statistics!C41)","v":"URL 28"},{"$f":"(Statistics!C42)","v":"URL 29"},{"$f":"(Statistics!C43)","v":"URL 30"},{"$f":"(Statistics!C44)","v":"URL 31"},{"$f":"(Statistics!C45)","v":"URL 32"},{"$f":"(Statistics!C46)","v":"URL 33"},{"$f":"(Statistics!C47)","v":"URL 34"},{"$f":"(Statistics!C48)","v":"URL 35"},{"$f":"(Statistics!C49)","v":"URL 36"},{"$f":"(Statistics!C50)","v":"URL 37"},{"$f":"(Statistics!C51)","v":"URL 38"},{"$f":"(Statistics!C52)","v":"URL 39"},{"$f":"(Statistics!C53)","v":"URL 40"},{"$f":"(Statistics!C54)","v":"URL 41"},{"$f":"(Statistics!C55)","v":"URL 42"},{"$f":"(Statistics!C56)","v":"URL 43"},{"$f":"(Statistics!C57)","v":"URL 44"},{"$f":"(Statistics!C58)","v":"URL 45"},{"$f":"(Statistics!C59)","v":"URL 46"},{"$f":"(Statistics!C60)","v":"URL 47"},{"$f":"(Statistics!C61)","v":"URL 48"},{"$f":"(Statistics!C62)","v":"URL 49"},{"$f":"(Statistics!C63)","v":"URL 50"}]
["Page Area","What we are comparing","Initial State (image)","Focus State (image)","Recommendation (image)","Recommendation (description)","Colour","Adjacent Colour","Valid","R RGB","Fail Only","G RGB","G","B RGB","B","Luminance","Valid","R RGB","R","G RGB","G","B RGB","B","Fail Only","Contrast Ratio","All Results"]
["Button (focus)","Light blue focus indicator against white background",null,null,null,"Use a 3px solid blue outline, spaced 2px outside the button","#CFE6E9","#F9F9F9",{"$f":"IF(LEN(G4)=0,\"\",AND(LEFT(G4,1)=\"#\",LEN(G4)=7))","v":true},{"$f":"HEX2DEC(RIGHT(LEFT(G4,3),2))","v":207},{"$f":"IF(J4/255<= 0.03928,J4/(255*12.92),(((J4/255)+0.055)/1.055)^2.4)","v":0.62396039167507611},{"$f":"HEX2DEC(RIGHT(LEFT(G4,5),2))","v":230},{"$f":"IF(L4/255<= 0.03928,L4/(255*12.92),(((L4/255)+0.055)/1.055)^2.4)","v":0.79129794033263023},{"$f":"HEX2DEC(RIGHT(G4,2))","v":233},{"$f":"IF(N4/255<= 0.03928,N4/(255*12.92),(((N4/255)+0.055)/1.055)^2.4)","v":0.81484657221610124},{"$f":"(0.2126*K4)+(0.7152*M4)+(0.0722*O4)","v":0.75742218871002087},{"$f":"IF(LEN(H4)=0,\"\",AND(LEFT(H4,1)=\"#\",LEN(H4)=7))","v":true},{"$f":"HEX2DEC(RIGHT(LEFT(H4,3),2))","v":249},{"$f":"IF(R4/255<= 0.03928,R4/(255*12.92),(((R4/255)+0.055)/1.055)^2.4)","v":0.94730653673319987},{"$f":"HEX2DEC(RIGHT(LEFT(H4,5),2))","v":249},{"$f":"IF(T4/255<= 0.03928,T4/(255*12.92),(((T4/255)+0.055)/1.055)^2.4)","v":0.94730653673319987},{"$f":"HEX2DEC(RIGHT(H4,2))","v":249},{"$f":"IF(V4/255<= 0.03928,V4/(255*12.92),(((V4/255)+0.055)/1.055)^2.4)","v":0.94730653673319987},{"$f":"(0.2126*S4)+(0.7152*U4)+(0.0722*W4)","v":0.94730653673319976},{"$f":"IF(OR(I4=\"\",Q4=\"\")=TRUE,\"\",IF(OR(I4=FALSE,Q4=FALSE)=TRUE,\"ERROR\",ROUND(IF(P4>X4,(P4+0.05)/(X4+0.05),(X4+0.05)/(P4+0.05)),2)))","v":1.24},{"$f":"IF(Y4=\"\",\"\",IF(Y4>=3,\"Pass\",\"Fail\"))","v":"Fail"},"N/A","Fail AA","N/A","N/A","N/A","N/A","N/A","N/A","N/A","N/A","N/A"]
["Button (focus)","Light purple focus indicator against white background",null,null,null,"Use a 3px solid purple outline, spaced 2px outside the button","#65268A","#F7F4F9",true,101,{"$f":"IF(J5/255<= 0.03928,J5/(255*12.92),(((J5/255)+0.055)/1.055)^2.4)","v":0.13013647669036432},38,{"$f":"IF(L5/255<= 0.03928,L5/(255*12.92),(((L5/255)+0.055)/1.055)^2.4)","v":1.9382360956935723E-2},138,{"$f":"IF(N5/255<= 0.03928,N5/(255*12.92),(((N5/255)+0.055)/1.055)^2.4)","v":0.25415209433082675},{"$f":"(0.2126*K5)+(0.7152*M5)+(0.0722*O5)","v":5.9879060711457571E-2},true,247,{"$f":"IF(R5/255<= 0.03928,R5/(255*12.92),(((R5/255)+0.055)/1.055)^2.4)","v":0.93011085837542373},244,{"$f":"IF(T5/255<= 0.03928,T5/(255*12.92),(((T5/255)+0.055)/1.055)^2.4)","v":0.90466117439114957},249,{"$f":"IF(V5/255<= 0.03928,V5/(255*12.92),(((V5/255)+0.055)/1.055)^2.4)","v":0.94730653673319987},{"$f":"(0.2126*S5)+(0.7152*U5)+(0.0722*W5)","v":0.91315077236730224},{"$f":"IF(OR(I5=\"\",Q5=\"\")=TRUE,\"\",IF(OR(I5=FALSE,Q5=FALSE)=TRUE,\"ERROR\",ROUND(IF(P5>X5,(P5+0.05)/(X5+0.05),(X5+0.05)/(P5+0.05)),2)))","v":8.77},"Pass","N/A","N/A","Pass AA","N/A","N/A","N/A","N/A","N/A","N/A","N/A","N/A"]
["Button (focus)","Light blue focus indicator against white background",null,null,null,"Use a 3px solid blue outline, spaced 2px outside the button","#CFE6E9","#F9F9F9",true,207,0.62396039167507611,230,0.79129794033263023,233,0.81484657221610124,0.75742218871002087,true,249,0.94730653673319987,249,0.94730653673319987,249,0.94730653673319987,0.94730653673319976,1.24,"Fail","N/A","N/A","Fail AA","N/A","N/A","N/A","N/A","N/A","N/A","N/A","N/A"]
["Help Icon link","blue icon against white background",null,"N/A","N/A","No change","#0BA5D2","#FFFFFF",true,11,{"$f":"IF(J7/255<= 0.03928,J7/(255*12.92),(((J7/255)+0.055)/1.055)^2.4)","v":3.3465357638991591E-3},165,{"$f":"IF(L7/255<= 0.03928,L7/(255*12.92),(((L7/255)+0.055)/1.055)^2.4)","v":0.37626212299090644},210,{"$f":"IF(N7/255<= 0.03928,N7/(255*12.92),(((N7/255)+0.055)/1.055)^2.4)","v":0.64447968197058214},{"$f":"(0.2126*K7)+(0.7152*M7)+(0.0722*O7)","v":0.31634557690477727},true,255,{"$f":"IF(R7/255<= 0.03928,R7/(255*12.92),(((R7/255)+0.055)/1.055)^2.4)","v":1},255,{"$f":"IF(T7/255<= 0.03928,T7/(255*12.92),(((T7/255)+0.055)/1.055)^2.4)","v":1},255,{"$f":"IF(V7/255<= 0.03928,V7/(255*12.92),(((V7/255)+0.055)/1.055)^2.4)","v":1},{"$f":"(0.2126*S7)+(0.7152*U7)+(0.0722*W7)","v":1},{"$f":"IF(OR(I7=\"\",Q7=\"\")=TRUE,\"\",IF(OR(I7=FALSE,Q7=FALSE)=TRUE,\"ERROR\",ROUND(IF(P7>X7,(P7+0.05)/(X7+0.05),(X7+0.05)/(P7+0.05)),2)))","v":2.87},"Fail","Fail AA","N/A","N/A","N/A","N/A","N/A","N/A","N/A","N/A","N/A","N/A"]
["Logout icon link","white icon against blue background",null,"N/A","N/A","No change","#FFFFFF","#0BA5D2",true,255,1,255,1,255,1,1,true,11,3.3465357638991591E-3,165,0.37626212299090644,210,0.64447968197058214,0.31634557690477727,2.87,"Fail","Fail AA","N/A","N/A","N/A","N/A","N/A","N/A","N/A","N/A","N/A","N/A"]
["Button  Link (focus)","Blue focus indicator against orange background",null,null,null,"Use a 3px dotted white outline, spaced 5px outside the button.","#4D90FE","#FDBF91",true,77,7.4213568380149628E-2,144,0.27889426347681034,254,0.99110209711382979,0.28680055328785303,true,253,0.98225055033311715,191,0.5209955732043543,145,0.28314874042999211,0.60188584001562029,1.94,"Fail","N/A","N/A","N/A","Fail AA","N/A","N/A","N/A","N/A","N/A","N/A","N/A"]
["Button  Link (focus)","Blue focus indicator against grey background",null,null,null,"Use a 3px dotted white outline, spaced 5px outside the button.","#4D90FE","#787F9C",true,77,7.4213568380149628E-2,144,0.27889426347681034,254,0.99110209711382979,0.28680055328785303,true,120,0.18782077230067784,127,0.21223075741405523,156,0.33245153634617935,0.21572113481785055,1.27,"Fail","N/A","N/A","N/A","Fail AA","N/A","N/A","N/A","N/A","N/A","N/A","N/A"]
["Text Link (Focus)","Blue focus indicator against blue background",null,null,null,"Use a 3px dotted white outline, spaced 5px outside the button.","#4592F8","#0AA3D0",true,69,5.9511238162981178E-2,146,0.28744083772691742,248,0.938685728457888,0.28600288597040063,true,10,3.0352698354883748E-3,163,0.36625259559883949,208,0.63075713634614672,0.30812981998350664,1.07,"Fail","Fail AA","N/A","N/A","N/A","N/A","N/A","N/A","N/A","N/A","N/A","N/A"]
["Icon Link (Focus)","Blue focus indicator against blue background",null,null,null,"Use a 3px dotted white outline, spaced 1px outside the button.","#4592F8","#0AA3D0",true,69,5.9511238162981178E-2,146,0.28744083772691742,248,0.938685728457888,0.28600288597040063,true,10,3.0352698354883748E-3,163,0.36625259559883949,208,0.63075713634614672,0.30812981998350664,1.07,"Fail","Fail AA","N/A","N/A","N/A","N/A","N/A","N/A","N/A","N/A","N/A","N/A"]
["Button (focus)","Light purple focus indicator against white background",null,null,null,"Use a 3px dotted purple outline, spaced 1px outside the button.","#7E2BAF","#FFFFFF",true,126,0.2086368701452557,43,2.4157632448504759E-2,175,0.42869049661390662,9.2585191175576023E-2,true,255,1,255,1,255,1,1,7.36,"Pass","N/A","N/A","N/A","N/A","Pass AA","N/A","N/A","N/A","N/A","N/A","N/A"]
["Up / Down arrow icon","Black icon against white background",null,"N/A","N/A","No change","#000000","#FFFFFF",true,0,0,0,0,0,0,0,true,255,1,255,1,255,1,1,21,"Pass","N/A","N/A","N/A","N/A","Pass AA","Pass AA","N/A","N/A","N/A","N/A","N/A"]
["Checkbox","Dark grey outline against grey background",null,"N/A","N/A","No change","#6D6D6D","#EEEEEE",true,109,0.15292615199615014,109,0.15292615199615014,109,0.15292615199615014,0.15292615199615014,true,238,0.85499260812423383,238,0.85499260812423383,238,0.85499260812423383,0.85499260812423383,4.46,"Pass","N/A","N/A","N/A","N/A","Pass AA","N/A","N/A","N/A","N/A","N/A","N/A"]
["Checkbox","Dark grey outline against white background",null,"N/A","N/A","No change","#757575","#FFFFFF",true,117,0.17788841598362914,117,0.17788841598362914,117,0.17788841598362914,0.17788841598362912,true,255,1,255,1,255,1,1,4.6100000000000003,"Pass","N/A","N/A","N/A","N/A","Pass AA","N/A","N/A","N/A","N/A","N/A","N/A"]
["Checkbox (Ticked)","Blue ticked checkbox against white background",null,"N/A","N/A","No change","#0163A4","#FFFFFF",true,1,3.0352698354883752E-4,99,0.12477181756095049,164,0.37123768047414912,0.11610469428652782,true,255,1,255,1,255,1,1,6.32,"Pass","N/A","N/A","N/A","N/A","Pass AA","N/A","N/A","N/A","N/A","N/A","N/A"]
["Search icon","White icon against the blue background",null,"N/A",null,"Change to darker blue (#0062A3)","#FFFFFF","#00BCD4",true,255,1,255,1,255,1,1,true,0,0,188,0.50288645803256871,212,0.65837481727944847,0.40719905659246924,2.2999999999999998,"Fail","N/A","N/A","N/A","N/A","Fail AA","N/A","N/A","N/A","N/A","N/A","N/A"]
["Search icon (Hover and Focus)","Light blue focus indicator against blue background",null,null,null,"Change to darker blue (#0062A3) and use a 3px dotted white outline, spaced -3px inside the button.","#00AEC5","#417CA0",true,0,0,174,0.42326766998607168,197,0.5583403896342678,0.34303321370563261,true,65,5.2860647023180267E-2,124,0.20155625379439707,160,0.35153259950043936,0.1807718599548126,1.7,"Fail","N/A","N/A","N/A","N/A","Fail AA","N/A","N/A","N/A","N/A","N/A","N/A"]
["Close icon","White icon against red background",null,"N/A","N/A","No change","#FFFFFF","#F44336",true,255,1,255,1,255,1,1,true,244,0.90466117439114957,67,5.6128490049600098E-2,54,3.6889450401100039E-2,0.23513748007799182,3.68,"Pass","N/A","N/A","N/A","N/A","N/A","Pass AA","N/A","N/A","N/A","N/A","N/A"]
["Close icon (Hover and focus)","White icon against red background",null,"N/A","N/A","No change","#FFFFFF","#F22112",true,255,1,255,1,255,1,1,true,242,0.88792311788196632,33,1.5208514422912713E-2,18,6.0488330228570539E-3,0.20008631012122349,4.2,"Pass","N/A","N/A","N/A","N/A","N/A","Pass AA","N/A","N/A","N/A","N/A","N/A"]
["Download button","White icon against grey background",null,"N/A",null,"Change background to Dark grey e.g. #6C757D","#FFFFFF","#B7B7B7",true,255,1,255,1,255,1,1,true,183,0.47353149614800955,183,0.47353149614800955,183,0.47353149614800955,0.47353149614800955,2.0099999999999998,"Fail","N/A","N/A","N/A","N/A","N/A","Fail AA","N/A","N/A","N/A","N/A","N/A"]
["Download button (Hover and focus)","White icon against purple background",null,"N/A","N/A","Change background to Dark purple e.g. #705182","#FFFFFF","#956CAD",true,255,1,255,1,255,1,1,true,149,0.3005437944157765,108,0.14995978981060856,173,0.41788507084813747,0.20131815448057686,4.18,"Pass","N/A","N/A","N/A","N/A","N/A","Pass AA","N/A","N/A","N/A","N/A","N/A"]
["Accordion link (Selected)","Blue inidcator against white background",null,"N/A",null,"Change the background-colour property in the html list item to a light grey e.g. ##D2D2D2;\n\nChange the color property for the nav-link selector to white e.g. #FFFFFF;","#00BCD4","#FFFFFF",true,0,0,188,0.50288645803256871,212,0.65837481727944847,0.40719905659246924,true,255,1,255,1,255,1,1,2.2999999999999998,"Fail","N/A","N/A","N/A","N/A","N/A","Fail AA","N/A","N/A","N/A","N/A","N/A"]
["Dropdown list (Selected)","Purple indicator against white background",null,"N/A","N/A","No change","#9C27B0","#FEFEFE",true,156,0.33245153634617935,39,2.0288563056652397E-2,176,0.43415363617474889,0.1165354694571324,true,254,0.99110209711382979,254,0.99110209711382979,254,0.99110209711382979,0.99110209711382979,6.25,"Pass","N/A","N/A","N/A","N/A","N/A","N/A","Pass AA","N/A","N/A","N/A","N/A"]
["Expand button","Black icon against white background",null,"N/A","N/A","No change","#000000","#FFFFFF",true,0,0,0,0,0,0,0,true,255,1,255,1,255,1,1,21,"Pass","N/A","N/A","N/A","N/A","N/A","N/A","N/A","Pass AA","N/A","N/A","N/A"]
["Expand button (Hover)","Black icon against white background",null,"N/A","N/A","No change","#000000","#F4F4F4",true,0,0,0,0,0,0,0,true,244,0.90466117439114957,244,0.90466117439114957,244,0.90466117439114957,0.90466117439114957,19.09,"Pass","N/A","N/A","N/A","N/A","N/A","N/A","N/A","Pass AA","N/A","N/A","N/A"]
["Minimise button (Disabled)","Grey icon against grey background",null,"N/A","N/A","No change","#BBBBBB","#F4F4F4",true,187,0.49693299506087041,187,0.49693299506087041,187,0.49693299506087041,0.49693299506087041,true,244,0.90466117439114957,244,0.90466117439114957,244,0.90466117439114957,0.90466117439114957,1.75,"Fail","N/A","N/A","N/A","N/A","N/A","N/A","N/A","Fail AA","N/A","N/A","N/A"]
["Layers button","Grey icon against white background",null,"N/A","N/A","No change","#B9B9B9","#FFFFFF",true,185,0.48514994005607043,185,0.48514994005607043,185,0.48514994005607043,0.48514994005607037,true,255,1,255,1,255,1,1,1.96,"Fail","N/A","N/A","N/A","N/A","N/A","N/A","N/A","Fail AA","N/A","N/A","N/A"]
["Radio button","Blue dot against white background",null,"N/A","N/A","No change","#0163A4","#FFFFFF",true,1,3.0352698354883752E-4,99,0.12477181756095049,164,0.37123768047414912,0.11610469428652782,true,255,1,255,1,255,1,1,6.32,"Pass","N/A","N/A","N/A","N/A","N/A","N/A","N/A","Pass AA","N/A","N/A","N/A"]
["Radio button","Grey dot against white background",null,"N/A","N/A","No change","#666666","#FFFFFF",{"$f":"IF(LEN(G31)=0,\"\",AND(LEFT(G31,1)=\"#\",LEN(G31)=7))","v":true},{"$f":"HEX2DEC(RIGHT(LEFT(G31,3),2))","v":102},0.13286832155381798,{"$f":"HEX2DEC(RIGHT(LEFT(G31,5),2))","v":102},0.13286832155381798,{"$f":"HEX2DEC(RIGHT(G31,2))","v":102},0.13286832155381798,0.13286832155381795,{"$f":"IF(LEN(H31)=0,\"\",AND(LEFT(H31,1)=\"#\",LEN(H31)=7))","v":true},{"$f":"HEX2DEC(RIGHT(LEFT(H31,3),2))","v":255},1,{"$f":"HEX2DEC(RIGHT(LEFT(H31,5),2))","v":255},1,{"$f":"HEX2DEC(RIGHT(H31,2))","v":255},1,1,5.74,"Pass","N/A","N/A","N/A","N/A","N/A","N/A","N/A","Pass AA","N/A","N/A","N/A"]
["Map Layer","Blue line against grey background",null,"N/A","N/A","Instead of using a different solid colour use a blackdotted line instead to distinguish the line.","#22A7F0","#EFEDEA",true,34,1.5996293365509635E-2,167,0.38642943378704903,240,0.87136711919879717,0.34268784902015798,true,239,0.86315721345410235,237,0.84687323150985805,234,0.82278575439628354,0.84859609022360416,2.29,"Fail","N/A","N/A","N/A","N/A","N/A","N/A","N/A","Fail AA","N/A","N/A","N/A"]
["Map Layer (Police BCU Post 2018)","Purple line against blue line",null,"N/A","N/A","Use a different shaped black dotted line with square for example.","#DF00AC","#25A8F0",true,223,0.73791040877273095,0,0,172,0.41254261348390375,0.18666532959862045,true,37,1.8500220128379697E-2,168,0.39157247774972326,240,0.87136711919879717,0.34689848889204877,1.68,"Fail","N/A","N/A","N/A","N/A","N/A","N/A","N/A","Fail AA","N/A","N/A","N/A"]
["Map Layer (Police BCU Post 2018)","Purple line against grey background",null,"N/A","N/A","Use a different shaped black dotted line with square for example.","#DF00AC","#EFEDEA",true,223,0.73791040877273095,0,0,172,0.41254261348390375,0.18666532959862045,true,239,0.86315721345410235,237,0.84687323150985805,234,0.82278575439628354,0.84859609022360416,3.8,"Pass","N/A","N/A","N/A","N/A","N/A","N/A","N/A","Pass AA","N/A","N/A","N/A"]
["Map Layer (Police BCU Sector)","Brown line against grey background",null,"N/A","N/A","Use a different shaped black dotted line with square dots for example.","#E38D00","#EFEDEA",true,227,0.7681511472475071,141,0.26635560480286247,0,0,0.35380646245982728,true,239,0.86315721345410235,237,0.84687323150985805,234,0.82278575439628354,0.84859609022360416,2.23,"Fail","N/A","N/A","N/A","N/A","N/A","N/A","N/A","Fail AA","N/A","N/A","N/A"]
["Map Layer (Police BCU Sector)","Brown line against blue line",null,"N/A","N/A","Use a different shaped black dotted line with square dotsfor example.","#E38D00","#22A7F0",true,227,0.7681511472475071,141,0.26635560480286247,0,0,0.35380646245982728,true,34,1.5996293365509635E-2,167,0.38642943378704903,240,0.87136711919879717,0.34268784902015798,1.03,"Fail","N/A","N/A","N/A","N/A","N/A","N/A","N/A","Fail AA","N/A","N/A","N/A"]
["Map Layer (Police BCU Pre 2018)","Green line against grey background",null,"N/A","N/A","Use a different shaped black dotted line with triangle dots for example.","#54B25A","#EFEDEA",true,84,8.8655586285772928E-2,178,0.44520119451622792,90,0.10224173308810132,0.34463792509132241,true,239,0.86315721345410235,237,0.84687323150985805,234,0.82278575439628354,0.84859609022360416,2.2799999999999998,"Fail","N/A","N/A","N/A","N/A","N/A","N/A","N/A","Fail AA","N/A","N/A","N/A"]
["Map Layer (Police BCU Pre 2018)","Green line against  blue line",null,"N/A","N/A","Use a different shaped black dotted line with triangle dots for example.","#54B25A","#22A7F0",true,84,8.8655586285772928E-2,178,0.44520119451622792,90,0.10224173308810132,0.34463792509132241,true,34,1.5996293365509635E-2,167,0.38642943378704903,240,0.87136711919879717,0.34268784902015798,1,"Fail","N/A","N/A","N/A","N/A","N/A","N/A","N/A","Fail AA","N/A","N/A","N/A"]
["Download button","White icon against the purple background",null,"N/A","N/A","No change","#FFFFFF","#65268A",true,255,1,255,1,255,1,1,true,101,0.13013647669036432,38,1.9382360956935723E-2,138,0.25415209433082675,5.9879060711457571E-2,9.56,"Pass","N/A","N/A","N/A","N/A","N/A","N/A","N/A","N/A","N/A","Pass AA","N/A"]
["Save Query Button","Green Button against grey background",null,"N/A","N/A","Change green to a darker green","#4CAF50","#EEEEEE",true,76,7.2271850682317465E-2,175,0.42869049661390662,80,8.0219820314468296E-2,0.32775630966003128,true,238,0.85499260812423383,238,0.85499260812423383,238,0.85499260812423383,0.85499260812423383,2.4,"Fail","N/A","N/A","N/A","N/A","N/A","N/A","N/A","N/A","N/A","Fail AA","Fail AA"]
["Save Query Button (Hover and Focus)","Green Button against grey background",null,null,"N/A","Change green to a darker green","#47A44B","#EEEEEE",true,71,6.301001765316766E-2,164,0.37123768047414912,75,7.0360095696595876E-2,0.28398511773746915,true,238,0.85499260812423383,238,0.85499260812423383,238,0.85499260812423383,0.85499260812423383,2.71,"Fail","N/A","N/A","N/A","N/A","N/A","N/A","N/A","N/A","N/A","Fail AA","Fail AA"]
["Minimise button ","Blue button against grey background",null,"N/A","N/A","Change blue to a darker blue","#00BCD4","#EEEEEE",true,0,0,188,0.50288645803256871,212,0.65837481727944847,0.40719905659246924,true,238,0.85499260812423383,238,0.85499260812423383,238,0.85499260812423383,0.85499260812423383,1.98,"Fail","N/A","N/A","N/A","N/A","N/A","N/A","N/A","N/A","N/A","Fail AA","Fail AA"]
["Minimise button \n(Hover and Focus)","Blue button against grey background",null,null,"N/A","Change blue to a darker blue","#00AEC5","#EEEEEE",true,0,0,174,0.42326766998607168,197,0.5583403896342678,0.34303321370563261,true,238,0.85499260812423383,238,0.85499260812423383,238,0.85499260812423383,0.85499260812423383,2.2999999999999998,"Fail","N/A","N/A","N/A","N/A","N/A","N/A","N/A","N/A","N/A","Fail AA","Fail AA"]
["Download Button","purple button against the grey background",null,"N/A","N/A","No change","#65268A","#EEEEEE",{"$f":"IF(LEN(G44)=0,\"\",AND(LEFT(G44,1)=\"#\",LEN(G44)=7))","v":true},{"$f":"HEX2DEC(RIGHT(LEFT(G44,3),2))","v":101},{"$f":"IF(J44/255<= 0.03928,J44/(255*12.92),(((J44/255)+0.055)/1.055)^2.4)","v":0.13013647669036432},{"$f":"HEX2DEC(RIGHT(LEFT(G44,5),2))","v":38},{"$f":"IF(L44/255<= 0.03928,L44/(255*12.92),(((L44/255)+0.055)/1.055)^2.4)","v":1.9382360956935723E-2},{"$f":"HEX2DEC(RIGHT(G44,2))","v":138},{"$f":"IF(N44/255<= 0.03928,N44/(255*12.92),(((N44/255)+0.055)/1.055)^2.4)","v":0.25415209433082675},{"$f":"(0.2126*K44)+(0.7152*M44)+(0.0722*O44)","v":5.9879060711457571E-2},{"$f":"IF(LEN(H44)=0,\"\",AND(LEFT(H44,1)=\"#\",LEN(H44)=7))","v":true},{"$f":"HEX2DEC(RIGHT(LEFT(H44,3),2))","v":238},{"$f":"IF(R44/255<= 0.03928,R44/(255*12.92),(((R44/255)+0.055)/1.055)^2.4)","v":0.85499260812423383},{"$f":"HEX2DEC(RIGHT(LEFT(H44,5),2))","v":238},{"$f":"IF(T44/255<= 0.03928,T44/(255*12.92),(((T44/255)+0.055)/1.055)^2.4)","v":0.85499260812423383},{"$f":"HEX2DEC(RIGHT(H44,2))","v":238},{"$f":"IF(V44/255<= 0.03928,V44/(255*12.92),(((V44/255)+0.055)/1.055)^2.4)","v":0.85499260812423383},{"$f":"(0.2126*S44)+(0.7152*U44)+(0.0722*W44)","v":0.85499260812423383},{"$f":"IF(OR(I44=\"\",Q44=\"\")=TRUE,\"\",IF(OR(I44=FALSE,Q44=FALSE)=TRUE,\"ERROR\",ROUND(IF(P44>X44,(P44+0.05)/(X44+0.05),(X44+0.05)/(P44+0.05)),2)))","v":8.24},{"$f":"IF(Y44=\"\",\"\",IF(Y44>=3,\"Pass\",\"Fail\"))","v":"Pass"},"N/A","N/A","N/A","N/A","N/A","N/A","N/A","N/A","N/A","Pass AA","Pass AA"]
["Download Button\n(Hover and Focus)","purple button against the grey background",null,"N/A","N/A","No change","#65268A","#EEEEEE",{"$f":"IF(LEN(G45)=0,\"\",AND(LEFT(G45,1)=\"#\",LEN(G45)=7))","v":true},{"$f":"HEX2DEC(RIGHT(LEFT(G45,3),2))","v":101},{"$f":"IF(J45/255<= 0.03928,J45/(255*12.92),(((J45/255)+0.055)/1.055)^2.4)","v":0.13013647669036432},{"$f":"HEX2DEC(RIGHT(LEFT(G45,5),2))","v":38},{"$f":"IF(L45/255<= 0.03928,L45/(255*12.92),(((L45/255)+0.055)/1.055)^2.4)","v":1.9382360956935723E-2},{"$f":"HEX2DEC(RIGHT(G45,2))","v":138},{"$f":"IF(N45/255<= 0.03928,N45/(255*12.92),(((N45/255)+0.055)/1.055)^2.4)","v":0.25415209433082675},{"$f":"(0.2126*K45)+(0.7152*M45)+(0.0722*O45)","v":5.9879060711457571E-2},{"$f":"IF(LEN(H45)=0,\"\",AND(LEFT(H45,1)=\"#\",LEN(H45)=7))","v":true},{"$f":"HEX2DEC(RIGHT(LEFT(H45,3),2))","v":238},{"$f":"IF(R45/255<= 0.03928,R45/(255*12.92),(((R45/255)+0.055)/1.055)^2.4)","v":0.85499260812423383},{"$f":"HEX2DEC(RIGHT(LEFT(H45,5),2))","v":238},{"$f":"IF(T45/255<= 0.03928,T45/(255*12.92),(((T45/255)+0.055)/1.055)^2.4)","v":0.85499260812423383},{"$f":"HEX2DEC(RIGHT(H45,2))","v":238},{"$f":"IF(V45/255<= 0.03928,V45/(255*12.92),(((V45/255)+0.055)/1.055)^2.4)","v":0.85499260812423383},{"$f":"(0.2126*S45)+(0.7152*U45)+(0.0722*W45)","v":0.85499260812423383},{"$f":"IF(OR(I45=\"\",Q45=\"\")=TRUE,\"\",IF(OR(I45=FALSE,Q45=FALSE)=TRUE,\"ERROR\",ROUND(IF(P45>X45,(P45+0.05)/(X45+0.05),(X45+0.05)/(P45+0.05)),2)))","v":8.24},{"$f":"IF(Y45=\"\",\"\",IF(Y45>=3,\"Pass\",\"Fail\"))","v":"Pass"},"N/A","N/A","N/A","N/A","N/A","N/A","N/A","N/A","N/A","Pass AA","Pass AA"]
["Join Button","Orange button against grey backrround",null,"N/A","N/A","Change ornage to a darker orange","#FF9800","#EEEEEE",true,255,1,152,0.31398871337571754,0,0,0.43716472780631321,true,238,0.85499260812423383,238,0.85499260812423383,238,0.85499260812423383,0.85499260812423383,1.86,"Fail","N/A","N/A","N/A","N/A","N/A","N/A","N/A","N/A","N/A","Fail AA","Fail AA"]
["Join Button\n(Hover and Focus)","Orange button against grey backrround",null,"N/A","N/A","Change ornage to a darker orange","#F08F00","#EEEEEE",true,240,0.87136711919879717,143,0.2746773120603847,0,0,0.38170186312725141,true,238,0.85499260812423383,238,0.85499260812423383,238,0.85499260812423383,0.85499260812423383,2.1,"Fail","N/A","N/A","N/A","N/A","N/A","N/A","N/A","N/A","N/A","Fail AA","Fail AA"]
[null,null,null,null,null,null,null,null,"",0,0,0,0,0,0,0,"",0,0,0,0,0,0,0,"",""]
[null,null,null,null,null,null,null,null,"",0,0,0,0,0,0,0,"",0,0,0,0,0,0,0,"",""]
[null,null,null,null,null,null,null,null,"",0,0,0,0,0,0,0,"",0,0,0,0,0,0,0,"",""]
[null,null,null,null,null,null,null,null,"",0,0,0,0,0,0,0,"",0,0,0,0,0,0,0,"",""]
[null,null,null,null,null,null,null,null,"",0,0,0,0,0,0,0,"",0,0,0,0,0,0,0,"",""]
[null,null,null,null,null,null,null,null,"",0,0,0,0,0,0,0,"",0,0,0,0,0,0,0,"",""]
[null,null,null,null,null,null,null,null,"",0,0,0,0,0,0,0,"",0,0,0,0,0,0,0,"",""]
[null,null,null,null,null,null,null,null,"",0,0,0,0,0,0,0,"",0,0,0,0,0,0,0,"",""]
[null,null,null,null,null,null,null,null,"",0,0,0,0,0,0,0,"",0,0,0,0,0,0,0,"",""]
[null,null,null,null,null,null,null,null,"",0,0,0,0,0,0,0,"",0,0,0,0,0,0,0,"",""]
[null,null,null,null,null,null,null,null,"",0,0,0,0,0,0,0,"",0,0,0,0,0,0,0,"",""]
[null,null,null,null,null,null,null,null,"",0,0,0,0,0,0,0,"",0,0,0,0,0,0,0,"",""]
[null,null,null,null,null,null,null,null,"",0,0,0,0,0,0,0,"",0,0,0,0,0,0,0,"",""]
[null,null,null,null,null,null,null,null,"",0,0,0,0,0,0,0,"",0,0,0,0,0,0,0,"",""]
[null,null,null,null,null,null,null,null,"",0,0,0,0,0,0,0,"",0,0,0,0,0,0,0,"",""]
[null,null,null,null,null,null,null,null,"",0,0,0,0,0,0,0,"",0,0,0,0,0,0,0,"",""]
[null,null,null,null,null,null,null,null,"",0,0,0,0,0,0,0,"",0,0,0,0,0,0,0,"",""]
[null,null,null,null,null,null,null,null,"",0,0,0,0,0,0,{"$f":"(0.2126*K65)+(0.7152*M65)+(0.0722*O65)","v":0},"",0,0,0,0,0,0,{"$f":"(0.2126*S65)+(0.7152*U65)+(0.0722*W65)","v":0},{"$f":"IF(OR(I65=\"\",Q65=\"\")=TRUE,\"\",IF(OR(I65=FALSE,Q65=FALSE)=TRUE,\"ERROR\",ROUND(IF(P65>X65,(P65+0.05)/(X65+0.05),(X65+0.05)/(P65+0.05)),2)))","v":""},""]
[null,null,null,null,null,null,null,null,"",0,0,0,0,0,0,{"$f":"(0.2126*K66)+(0.7152*M66)+(0.0722*O66)","v":0},"",0,0,0,0,0,0,{"$f":"(0.2126*S66)+(0.7152*U66)+(0.0722*W66)","v":0},{"$f":"IF(OR(I66=\"\",Q66=\"\")=TRUE,\"\",IF(OR(I66=FALSE,Q66=FALSE)=TRUE,\"ERROR\",ROUND(IF(P66>X66,(P66+0.05)/(X66+0.05),(X66+0.05)/(P66+0.05)),2)))","v":""},{"$f":"IF(Y66=\"\",\"\",IF(Y66>=3,\"Pass\",\"Fail\"))","v":""}]
[]
["Colour combinations shown in pink do not meet the contrast ratio (3:1 Minimum) recommended by W3C WCAG 2.1"]

{"sheet":"Changelog","index":5,"n_rows":3,"n_cols":2,"rows_kept":3,"cut":false,"hidden":true,"merged":[]}
["Version","Changes"]
[3.2,"1. Set the results for all AAA success criteria to Not Tested. Added instruction to delete them all when testing for compliance with AAA.\n\n2. Added a combobox to the header of the Colour Contrast Analysis worksheet to switch between the different thresholds that apply at AA and AAA. The combobox setting automatically sets the appropriate thresholds in the formulae in the Results column.\n\n3. Hid the Cover worksheet. We should update it at some point but it is very low priority.\n\n4. Changed the Hyperlink style so the URL on the Statistics sheet is 11pt bold, the same as the other cells."]
[3.3,"1. Added examples in the Non-text Contrast worksheet.\n\n2. Added the \"What we are comparing\" and \"Recommendation (description) columns to the Non-text Contrast worksheet and reduced the width of most columns.\n\n3. Fixed the VBA so the Fail Only link works on the Non-text Contrast worksheet."]

{"sheet":"Comboboxes","index":6,"n_rows":6,"n_cols":2,"rows_kept":6,"cut":false,"hidden":true,"merged":[]}
["Level","Variable Name"]
["(Level AA)","Option value 1"]
["(Level AAA)","Option value 2"]
["(Level AA)","Selected value"]
[{"$f":"IF(A4=A2,4.5,7)","v":4.5},"Colour contrast ratio (small text)"]
[{"$f":"IF(A4=A2,3,4.5)","v":3},"Colour contrast ratio (large text)"]

{"sheet":"Data Table","index":7,"n_rows":51,"n_cols":7,"rows_kept":51,"cut":false,"hidden":true,"merged":[]}
["Page","WCAG 2.0 Level A Criteria\nFailed / Total\n","WCAG 2.0 Level AA Criteria\nFailed / Total\n","Total WCAG 2.0 Criteria\nFailed / Total\n",null,null,"Instructions for copying this data table into the Management Summary Report"]
[{"$f":"Statistics!B14","v":"Header and footer"},{"$f":"CONCATENATE(Statistics!E14,\" / 25\")","v":"3 / 25"},{"$f":"CONCATENATE(Statistics!I14,\" / 13\")","v":"4 / 13"},{"$f":"CONCATENATE(Statistics!Q14,\" / 38\")","v":"7 / 38"},null,1,"Locate the Statistics data table in the Management Summary Report."]
[{"$f":"Statistics!B15","v":"Sign in"},{"$f":"CONCATENATE(Statistics!E15,\" / 25\")","v":"3 / 25"},{"$f":"CONCATENATE(Statistics!I15,\" / 13\")","v":"3 / 13"},{"$f":"CONCATENATE(Statistics!Q15,\" / 38\")","v":"6 / 38"},null,2,"Delete the contents of the data table."]
[{"$f":"Statistics!B16","v":"Register"},{"$f":"CONCATENATE(Statistics!E16,\" / 25\")","v":"5 / 25"},{"$f":"CONCATENATE(Statistics!I16,\" / 13\")","v":"5 / 13"},{"$f":"CONCATENATE(Statistics!Q16,\" / 38\")","v":"10 / 38"},null,3,"Add or delete rows and columns in the data table such that they match the number of rows and columns in the data in this worksheet, including the heading row."]
[{"$f":"Statistics!B17","v":"Home"},{"$f":"CONCATENATE(Statistics!E17,\" / 25\")","v":"4 / 25"},{"$f":"CONCATENATE(Statistics!I17,\" / 13\")","v":"5 / 13"},{"$f":"CONCATENATE(Statistics!Q17,\" / 38\")","v":"9 / 38"},null,4,"Select all the cells in the data table in this worksheet."]
[{"$f":"Statistics!B18","v":"Data Explorer results"},{"$f":"CONCATENATE(Statistics!E18,\" / 25\")","v":"6 / 25"},{"$f":"CONCATENATE(Statistics!I18,\" / 13\")","v":"5 / 13"},{"$f":"CONCATENATE(Statistics!Q18,\" / 38\")","v":"11 / 38"},null,5,"Copy the cells (Ctrl+C is the easiest way to do this)."]
[{"$f":"Statistics!B19","v":"Query Builder"},{"$f":"CONCATENATE(Statistics!E19,\" / 25\")","v":"7 / 25"},{"$f":"CONCATENATE(Statistics!I19,\" / 13\")","v":"5 / 13"},{"$f":"CONCATENATE(Statistics!Q19,\" / 38\")","v":"12 / 38"},null,6,"Select all the cells in the data table in the Management Summary Report."]
[{"$f":"Statistics!B20","v":"Query Builder expanded with Offence Group overlay"},{"$f":"CONCATENATE(Statistics!E20,\" / 25\")","v":"7 / 25"},{"$f":"CONCATENATE(Statistics!I20,\" / 13\")","v":"4 / 13"},{"$f":"CONCATENATE(Statistics!Q20,\" / 38\")","v":"11 / 38"},null,7,"Paste the cells into the Management Summary Report (Ctrl+V is the easiest way to do this)."]
[{"$f":"Statistics!B21","v":"Query Builder expanded with Location map overlay"},{"$f":"CONCATENATE(Statistics!E21,\" / 25\")","v":"6 / 25"},{"$f":"CONCATENATE(Statistics!I21,\" / 13\")","v":"6 / 13"},{"$f":"CONCATENATE(Statistics!Q21,\" / 38\")","v":"12 / 38"},null,8,"While the cells are still selected, set the Paragraph Spacing to 3pt Before and 3pt After."]
[{"$f":"Statistics!B22","v":"Query Builder - Save Query"},{"$f":"CONCATENATE(Statistics!E22,\" / 25\")","v":"6 / 25"},{"$f":"CONCATENATE(Statistics!I22,\" / 13\")","v":"4 / 13"},{"$f":"CONCATENATE(Statistics!Q22,\" / 38\")","v":"10 / 38"},null,9,"Make the column headings bold."]
[{"$f":"Statistics!B23","v":"Query Builder - Join"},{"$f":"CONCATENATE(Statistics!E23,\" / 25\")","v":"6 / 25"},{"$f":"CONCATENATE(Statistics!I23,\" / 13\")","v":"5 / 13"},{"$f":"CONCATENATE(Statistics!Q23,\" / 38\")","v":"11 / 38"},null,10,"Select all the data cells but not the row and column headings."]
[{"$f":"Statistics!B24","v":"Query Builder - Results"},{"$f":"CONCATENATE(Statistics!E24,\" / 25\")","v":"5 / 25"},{"$f":"CONCATENATE(Statistics!I24,\" / 13\")","v":"5 / 13"},{"$f":"CONCATENATE(Statistics!Q24,\" / 38\")","v":"10 / 38"},null,11,"Right-click anywhere in the selected area. A dropdown menu will appear. Select Cell Alignment > Align Centre (the option in the middle)."]
[{"$f":"Statistics!B25","v":"Page 12"},{"$f":"CONCATENATE(Statistics!E25,\" / 25\")","v":"0 / 25"},{"$f":"CONCATENATE(Statistics!I25,\" / 13\")","v":"0 / 13"},{"$f":"CONCATENATE(Statistics!Q25,\" / 38\")","v":"0 / 38"}]
[{"$f":"Statistics!B26","v":"Page 13"},{"$f":"CONCATENATE(Statistics!E26,\" / 25\")","v":"0 / 25"},{"$f":"CONCATENATE(Statistics!I26,\" / 13\")","v":"0 / 13"},{"$f":"CONCATENATE(Statistics!Q26,\" / 38\")","v":"0 / 38"},null,null,"This sheet needs to be updated for WCAG 2.1 AAA"]
[{"$f":"Statistics!B27","v":"Page 14"},{"$f":"CONCATENATE(Statistics!E27,\" / 25\")","v":"0 / 25"},{"$f":"CONCATENATE(Statistics!I27,\" / 13\")","v":"0 / 13"},{"$f":"CONCATENATE(Statistics!Q27,\" / 38\")","v":"0 / 38"}]
[{"$f":"Statistics!B28","v":"Page 15"},{"$f":"CONCATENATE(Statistics!E28,\" / 25\")","v":"0 / 25"},{"$f":"CONCATENATE(Statistics!I28,\" / 13\")","v":"0 / 13"},{"$f":"CONCATENATE(Statistics!Q28,\" / 38\")","v":"0 / 38"}]
[{"$f":"Statistics!B29","v":"Page 16"},{"$f":"CONCATENATE(Statistics!E29,\" / 25\")","v":"0 / 25"},{"$f":"CONCATENATE(Statistics!I29,\" / 13\")","v":"0 / 13"},{"$f":"CONCATENATE(Statistics!Q29,\" / 38\")","v":"0 / 38"}]
[{"$f":"Statistics!B30","v":"Page 17"},{"$f":"CONCATENATE(Statistics!E30,\" / 25\")","v":"0 / 25"},{"$f":"CONCATENATE(Statistics!I30,\" / 13\")","v":"0 / 13"},{"$f":"CONCATENATE(Statistics!Q30,\" / 38\")","v":"0 / 38"}]
[{"$f":"Statistics!B31","v":"Page 18"},{"$f":"CONCATENATE(Statistics!E31,\" / 25\")","v":"0 / 25"},{"$f":"CONCATENATE(Statistics!I31,\" / 13\")","v":"0 / 13"},{"$f":"CONCATENATE(Statistics!Q31,\" / 38\")","v":"0 / 38"}]
[{"$f":"Statistics!B32","v":"Page 19"},{"$f":"CONCATENATE(Statistics!E32,\" / 25\")","v":"0 / 25"},{"$f":"CONCATENATE(Statistics!I32,\" / 13\")","v":"0 / 13"},{"$f":"CONCATENATE(Statistics!Q32,\" / 38\")","v":"0 / 38"}]
[{"$f":"Statistics!B33","v":"Page 20"},{"$f":"CONCATENATE(Statistics!E33,\" / 25\")","v":"0 / 25"},{"$f":"CONCATENATE(Statistics!I33,\" / 13\")","v":"0 / 13"},{"$f":"CONCATENATE(Statistics!Q33,\" / 38\")","v":"0 / 38"}]
[{"$f":"Statistics!B34","v":"Page 21"},{"$f":"CONCATENATE(Statistics!E34,\" / 25\")","v":"0 / 25"},{"$f":"CONCATENATE(Statistics!I34,\" / 13\")","v":"0 / 13"},{"$f":"CONCATENATE(Statistics!Q34,\" / 38\")","v":"0 / 38"}]
[{"$f":"Statistics!B35","v":"Page 22"},{"$f":"CONCATENATE(Statistics!E35,\" / 25\")","v":"0 / 25"},{"$f":"CONCATENATE(Statistics!I35,\" / 13\")","v":"0 / 13"},{"$f":"CONCATENATE(Statistics!Q35,\" / 38\")","v":"0 / 38"}]
[{"$f":"Statistics!B36","v":"Page 23"},{"$f":"CONCATENATE(Statistics!E36,\" / 25\")","v":"0 / 25"},{"$f":"CONCATENATE(Statistics!I36,\" / 13\")","v":"0 / 13"},{"$f":"CONCATENATE(Statistics!Q36,\" / 38\")","v":"0 / 38"}]
[{"$f":"Statistics!B37","v":"Page 24"},{"$f":"CONCATENATE(Statistics!E37,\" / 25\")","v":"0 / 25"},{"$f":"CONCATENATE(Statistics!I37,\" / 13\")","v":"0 / 13"},{"$f":"CONCATENATE(Statistics!Q37,\" / 38\")","v":"0 / 38"}]
[{"$f":"Statistics!B38","v":"Page 25"},{"$f":"CONCATENATE(Statistics!E38,\" / 25\")","v":"0 / 25"},{"$f":"CONCATENATE(Statistics!I38,\" / 13\")","v":"0 / 13"},{"$f":"CONCATENATE(Statistics!Q38,\" / 38\")","v":"0 / 38"}]
[{"$f":"Statistics!B39","v":"Page 26"},{"$f":"CONCATENATE(Statistics!E39,\" / 25\")","v":"0 / 25"},{"$f":"CONCATENATE(Statistics!I39,\" / 13\")","v":"0 / 13"},{"$f":"CONCATENATE(Statistics!Q39,\" / 38\")","v":"0 / 38"}]
[{"$f":"Statistics!B40","v":"Page 27"},{"$f":"CONCATENATE(Statistics!E40,\" / 25\")","v":"0 / 25"},{"$f":"CONCATENATE(Statistics!I40,\" / 13\")","v":"0 / 13"},{"$f":"CONCATENATE(Statistics!Q40,\" / 38\")","v":"0 / 38"}]
[{"$f":"Statistics!B41","v":"Page 28"},{"$f":"CONCATENATE(Statistics!E41,\" / 25\")","v":"0 / 25"},{"$f":"CONCATENATE(Statistics!I41,\" / 13\")","v":"0 / 13"},{"$f":"CONCATENATE(Statistics!Q41,\" / 38\")","v":"0 / 38"}]
[{"$f":"Statistics!B42","v":"Page 29"},{"$f":"CONCATENATE(Statistics!E42,\" / 25\")","v":"0 / 25"},{"$f":"CONCATENATE(Statistics!I42,\" / 13\")","v":"0 / 13"},{"$f":"CONCATENATE(Statistics!Q42,\" / 38\")","v":"0 / 38"}]
[{"$f":"Statistics!B43","v":"Page 30"},{"$f":"CONCATENATE(Statistics!E43,\" / 25\")","v":"0 / 25"},{"$f":"CONCATENATE(Statistics!I43,\" / 13\")","v":"0 / 13"},{"$f":"CONCATENATE(Statistics!Q43,\" / 38\")","v":"0 / 38"}]
[{"$f":"Statistics!B44","v":"Page 31"},{"$f":"CONCATENATE(Statistics!E44,\" / 25\")","v":"0 / 25"},{"$f":"CONCATENATE(Statistics!I44,\" / 13\")","v":"0 / 13"},{"$f":"CONCATENATE(Statistics!Q44,\" / 38\")","v":"0 / 38"}]
[{"$f":"Statistics!B45","v":"Page 32"},{"$f":"CONCATENATE(Statistics!E45,\" / 25\")","v":"0 / 25"},{"$f":"CONCATENATE(Statistics!I45,\" / 13\")","v":"0 / 13"},{"$f":"CONCATENATE(Statistics!Q45,\" / 38\")","v":"0 / 38"}]
[{"$f":"Statistics!B46","v":"Page 33"},{"$f":"CONCATENATE(Statistics!E46,\" / 25\")","v":"0 / 25"},{"$f":"CONCATENATE(Statistics!I46,\" / 13\")","v":"0 / 13"},{"$f":"CONCATENATE(Statistics!Q46,\" / 38\")","v":"0 / 38"}]
[{"$f":"Statistics!B47","v":"Page 34"},{"$f":"CONCATENATE(Statistics!E47,\" / 25\")","v":"0 / 25"},{"$f":"CONCATENATE(Statistics!I47,\" / 13\")","v":"0 / 13"},{"$f":"CONCATENATE(Statistics!Q47,\" / 38\")","v":"0 / 38"}]
[{"$f":"Statistics!B48","v":"Page 35"},{"$f":"CONCATENATE(Statistics!E48,\" / 25\")","v":"0 / 25"},{"$f":"CONCATENATE(Statistics!I48,\" / 13\")","v":"0 / 13"},{"$f":"CONCATENATE(Statistics!Q48,\" / 38\")","v":"0 / 38"}]
[{"$f":"Statistics!B49","v":"Page 36"},{"$f":"CONCATENATE(Statistics!E49,\" / 25\")","v":"0 / 25"},{"$f":"CONCATENATE(Statistics!I49,\" / 13\")","v":"0 / 13"},{"$f":"CONCATENATE(Statistics!Q49,\" / 38\")","v":"0 / 38"}]
[{"$f":"Statistics!B50","v":"Page 37"},{"$f":"CONCATENATE(Statistics!E50,\" / 25\")","v":"0 / 25"},{"$f":"CONCATENATE(Statistics!I50,\" / 13\")","v":"0 / 13"},{"$f":"CONCATENATE(Statistics!Q50,\" / 38\")","v":"0 / 38"}]
[{"$f":"Statistics!B51","v":"Page 38"},{"$f":"CONCATENATE(Statistics!E51,\" / 25\")","v":"0 / 25"},{"$f":"CONCATENATE(Statistics!I51,\" / 13\")","v":"0 / 13"},{"$f":"CONCATENATE(Statistics!Q51,\" / 38\")","v":"0 / 38"}]
[{"$f":"Statistics!B52","v":"Page 39"},{"$f":"CONCATENATE(Statistics!E52,\" / 25\")","v":"0 / 25"},{"$f":"CONCATENATE(Statistics!I52,\" / 13\")","v":"0 / 13"},{"$f":"CONCATENATE(Statistics!Q52,\" / 38\")","v":"0 / 38"}]
[{"$f":"Statistics!B53","v":"Page 40"},{"$f":"CONCATENATE(Statistics!E53,\" / 25\")","v":"0 / 25"},{"$f":"CONCATENATE(Statistics!I53,\" / 13\")","v":"0 / 13"},{"$f":"CONCATENATE(Statistics!Q53,\" / 38\")","v":"0 / 38"}]
[{"$f":"Statistics!B54","v":"Page 41"},{"$f":"CONCATENATE(Statistics!E54,\" / 25\")","v":"0 / 25"},{"$f":"CONCATENATE(Statistics!I54,\" / 13\")","v":"0 / 13"},{"$f":"CONCATENATE(Statistics!Q54,\" / 38\")","v":"0 / 38"}]
[{"$f":"Statistics!B55","v":"Page 42"},{"$f":"CONCATENATE(Statistics!E55,\" / 25\")","v":"0 / 25"},{"$f":"CONCATENATE(Statistics!I55,\" / 13\")","v":"0 / 13"},{"$f":"CONCATENATE(Statistics!Q55,\" / 38\")","v":"0 / 38"}]
[{"$f":"Statistics!B56","v":"Page 43"},{"$f":"CONCATENATE(Statistics!E56,\" / 25\")","v":"0 / 25"},{"$f":"CONCATENATE(Statistics!I56,\" / 13\")","v":"0 / 13"},{"$f":"CONCATENATE(Statistics!Q56,\" / 38\")","v":"0 / 38"}]
[{"$f":"Statistics!B57","v":"Page 44"},{"$f":"CONCATENATE(Statistics!E57,\" / 25\")","v":"0 / 25"},{"$f":"CONCATENATE(Statistics!I57,\" / 13\")","v":"0 / 13"},{"$f":"CONCATENATE(Statistics!Q57,\" / 38\")","v":"0 / 38"}]
[{"$f":"Statistics!B58","v":"Page 45"},{"$f":"CONCATENATE(Statistics!E58,\" / 25\")","v":"0 / 25"},{"$f":"CONCATENATE(Statistics!I58,\" / 13\")","v":"0 / 13"},{"$f":"CONCATENATE(Statistics!Q58,\" / 38\")","v":"0 / 38"}]
[{"$f":"Statistics!B59","v":"Page 46"},{"$f":"CONCATENATE(Statistics!E59,\" / 25\")","v":"0 / 25"},{"$f":"CONCATENATE(Statistics!I59,\" / 13\")","v":"0 / 13"},{"$f":"CONCATENATE(Statistics!Q59,\" / 38\")","v":"0 / 38"}]
[{"$f":"Statistics!B60","v":"Page 47"},{"$f":"CONCATENATE(Statistics!E60,\" / 25\")","v":"0 / 25"},{"$f":"CONCATENATE(Statistics!I60,\" / 13\")","v":"0 / 13"},{"$f":"CONCATENATE(Statistics!Q60,\" / 38\")","v":"0 / 38"}]
[{"$f":"Statistics!B61","v":"Page 48"},{"$f":"CONCATENATE(Statistics!E61,\" / 25\")","v":"0 / 25"},{"$f":"CONCATENATE(Statistics!I61,\" / 13\")","v":"0 / 13"},{"$f":"CONCATENATE(Statistics!Q61,\" / 38\")","v":"0 / 38"}]
[{"$f":"Statistics!B62","v":"Page 49"},{"$f":"CONCATENATE(Statistics!E62,\" / 25\")","v":"0 / 25"},{"$f":"CONCATENATE(Statistics!I62,\" / 13\")","v":"0 / 13"},{"$f":"CONCATENATE(Statistics!Q62,\" / 38\")","v":"0 / 38"}]
[{"$f":"Statistics!B63","v":"Page 50"},{"$f":"CONCATENATE(Statistics!E63,\" / 25\")","v":"0 / 25"},{"$f":"CONCATENATE(Statistics!I63,\" / 13\")","v":"0 / 13"},{"$f":"CONCATENATE(Statistics!Q63,\" / 38\")","v":"0 / 38"}]